Workbook

Sheet Forside 2019
A1: Resultatliste Oslo Cup 2019
A5: - Oslo Cup arrangeres av Oslo Skikrets i samarbeid med IRS, Heming, Ready, Njård, HSIL og Kjelsås
A6: - 8 renn, arrangert av de samarbeidende klubbene, inngår i Oslo Cup
A7: - Det konkurreres i separate årsklasser, J11, G11, J12 og G12
A8: - Sammenlagtresultatene beregnes med World Cup poeng + deltakerpoeng.
A9: - De seks beste resultatene er tellende sammenlagt, men alle deltakerpoengene teller med i totalresultatet
A10: - Premiering av de tre beste sammenlagt i hver klasse
A13: Poengsystem:
A14: - World Cup poeng for plasseringer (100 poeng for seier, 80 for andre plass osv).
A15: - De seks beste resultatene er tellende i sammendraget
A16: - Det gis 5 deltakerpoeng pr. renn, uanhengig av resultat og om resultatet er tellende i sammendraget
A19: Forklaring på overskriften i resultatlistene:
A20: - Plass = plassering i rennet
A21: - Res. = resultatpoeng etter World Cup skala
A22: - Del. = deltakerpoeng, 5 poeng for deltakelse
A23: - Tot. = totalpoeng for rennet, sum av resultatpoeng og deltakerpoeng
A24: - Resultater/poeng som ikke er tellende for de som har kjørt flere enn seks renn er markert/skravert med grått

Sheet J11 2019
A1: Resultatliste Oslo Cup 2019 - Jenter 11 år
A2: ='Forside 2019'!A2 -> 0
H3: IRS Rennet | I3: Ljan Rennet | J3: Njård Rennet | K3: Ready Rennet | L3: Telenor Arena Cup | M3: Euro-tecfarten | N3: Oslo Alpinfestival SL | O3: Oslo Alpinfestival SSL | R3: IRS Rennet | S3: Ljan Rennet | T3: Njård Rennet | U3: Ready Rennet | V3: Telenor Arena Cup | W3: Euro-tecfarten | X3: Oslo Alpinfestival SL | Y3: Oslo Alpinfestival SSL | AA3: --------IRS Rennet---------- | AF3: ----------Ljan Rennet--------- | AK3: --------Njård Rennet---------- | AP3: --------Ready Rennet--------- | AU3: -----Telenor Arena Cup---- | AZ3: ------Euro-tecfarten-------- | BE3: ---Oslo Alpinfestival SL--- | BJ3: ---Oslo Alpinfestival SSL---
F4: Antall | H4: 2018-02-03 | I4: 2018-02-04 | J4: 2018-02-10 | K4: 2018-02-11 | L4: 2018-02-14 | M4: 2018-02-28 | N4: 2018-03-03 | O4: 2018-03-04 | Q4: Poeng | R4: 2018-02-03 | S4: 2018-02-04 | T4: 2018-02-10 | U4: 2018-02-11 | V4: 2018-02-14 | W4: 2018-02-28 | X4: 2018-03-03 | Y4: 2018-03-04 | AB4: --------Poeng-------- | AG4: --------Poeng-------- | AL4: -------Poeng--------- | AQ4: -------Poeng--------- | AV4: -------Poeng--------- | BA4: -------Poeng--------- | BF4: -------Poeng--------- | BK4: -------Poeng--------- | BQ4: Løpere med | BR4: Løpere med | BS4: Løpere med | BT4: Løpere med | BU4: Løpere med | BV4: Løpere med | BW4: Løpere med | BX4: Løpere med
A5: Plass | B5: Etternavn | C5: Fornavn | D5: Klubb | E5: Poeng | F5: renn | H5: ------------------------------Plassering i rennene--------------------------------- | Q5: brutto | R5: ----------------Resultatpoeng hvis mer enn 6 renn---------------- | AA5: Plass | AB5: Res. | AC5: Del. | AD5: Tot. | AF5: Plass | AG5: Res. | AH5: Del. | AI5: Tot. | AK5: Plass | AL5: Res. | AM5: Del. | AN5: Tot. | AP5: Plass | AQ5: Res. | AR5: Del. | AS5: Tot. | AU5: Plass | AV5: Res. | AW5: Del. | AX5: Tot. | AZ5: Plass | BA5: Res. | BB5: Del. | BC5: Tot. | BE5: Plass | BF5: Res. | BG5: Del. | BH5: Tot. | BJ5: Plass | BK5: Res. | BL5: Del. | BM5: Tot. | BO5: Plass | BP5: Poeng | BQ5: 8 renn | BR5: 7 renn | BS5: 6 renn | BT5: 5 renn | BU5: 4 renn | BV5: 3 renn | BW5: 2 renn | BX5: kun 1 renn
A6: =IF(E6<E5,BO6,A5) -> 1 | B6: Danielsen | C6: Regine Heggelund | D6: Ullensaker Skiklubb - Ski | E6: =IF(F6<=6,Q6,(Q6-SUM(SMALL(R6:Y6,{1;2})))) -> 600 | F6: =(IF(AC6=5,1,0)+IF(AH6=5,1,0)+IF(AM6=5,1,0)+IF(AR6=5,1,0)+IF(AW6=5,1,0)+IF(BB6=5,1,0)+IF(BG6=5,1,0)+IF(BL6=5,1,0)) -> 8 | H6: =IF(AA6="","",AA6) -> DSQ | I6: =IF(AF6="","",AF6) -> 1 | J6: =IF(AK6="","",AK6) -> 2 | K6: =IF(AP6="","",AP6) -> 3 | L6: =IF(AU6="","",AU6) -> 1 | M6: =IF(AZ6="","",AZ6) -> 1 | N6: =IF(BE6="","",BE6) -> 1 | O6: =IF(BJ6="","",BJ6) -> 2 | Q6: =AD6+AI6+AN6+AS6+AX6+BC6+BH6+BM6 -> 660 | R6: =IF($F6>=7,IF(AB6="","",AB6),"") -> 0 | S6: =IF($F6>=7,IF(AG6="","",AG6),"") -> 100 | T6: =IF($F6>=7,IF(AL6="","",AL6),"") -> 80 | U6: =IF($F6>=7,IF(AQ6="","",AQ6),"") -> 60 | V6: =IF($F6>=7,IF(AV6="","",AV6),"") -> 100 | W6: =IF($F6>=7,IF(BA6="","",BA6),"") -> 100 | X6: =IF($F6>=7,IF(BF6="","",BF6),"") -> 100 | Y6: =IF($F6>=7,IF(BK6="","",BK6),"") -> 80 | AA6: DSQ | AB6: =IF(ISNUMBER(AA6),(VLOOKUP(AA6,$BO$6:$BP$50,2)),0) -> 0 | AC6: =IF(AA6<>"",5,0) -> 5 | AD6: =AB6+AC6 -> 5 | AF6: 1 | AG6: =IF(ISNUMBER(AF6),(VLOOKUP(AF6,$BO$6:$BP$50,2)),0) -> 100 | AH6: =IF(AF6<>"",5,0) -> 5 | AI6: =AG6+AH6 -> 105 | AK6: 2 | AL6: =IF(ISNUMBER(AK6),(VLOOKUP(AK6,$BO$6:$BP$50,2)),0) -> 80 | AM6: =IF(AK6<>"",5,0) -> 5 | AN6: =AL6+AM6 -> 85 | AP6: 3 | AQ6: =IF(ISNUMBER(AP6),(VLOOKUP(AP6,$BO$6:$BP$50,2)),0) -> 60 | AR6: =IF(AP6<>"",5,0) -> 5 | AS6: =AQ6+AR6 -> 65 | AU6: 1 | AV6: =IF(ISNUMBER(AU6),(VLOOKUP(AU6,$BO$6:$BP$50,2)),0) -> 100 | AW6: =IF(AU6<>"",5,0) -> 5 | AX6: =AV6+AW6 -> 105 | AZ6: 1 | BA6: =IF(ISNUMBER(AZ6),(VLOOKUP(AZ6,$BO$6:$BP$50,2)),0) -> 100 | BB6: =IF(AZ6<>"",5,0) -> 5 | BC6: =BA6+BB6 -> 105 | BE6: 1 | BF6: =IF(ISNUMBER(BE6),(VLOOKUP(BE6,$BO$6:$BP$50,2)),0) -> 100 | BG6: =IF(BE6<>"",5,0) -> 5 | BH6: =BF6+BG6 -> 105 | BJ6: 2 | BK6: =IF(ISNUMBER(BJ6),(VLOOKUP(BJ6,$BO$6:$BP$50,2)),0) -> 80 | BL6: =IF(BJ6<>"",5,0) -> 5 | BM6: =BK6+BL6 -> 85 | BO6: 1 | BP6: 100 | BQ6: =IF($F6=8,1,0) -> 1 | BR6: =IF($F6=7,1,0) -> 0 | BS6: =IF($F6=6,1,0) -> 0 | BT6: =IF($F6=5,1,0) -> 0 | BU6: =IF($F6=4,1,0) -> 0 | BV6: =IF($F6=3,1,0) -> 0 | BW6: =IF($F6=2,1,0) -> 0 | BX6: =IF($F6=1,1,0) -> 0
A7: 2 | B7: Meinich Pappos | C7: Olympia | D7: Heming, IL - Ski | E7: =IF(F7<=6,Q7,(Q7-SUM(SMALL(R7:Y7,{1;2})))) -> 550 | F7: 6 | J7: 1 | K7: 1 | L7: 3 | M7: 2 | N7: 2 | O7: 1 | Q7: 550 | AB7: 0 | AC7: 0 | AD7: 0 | AG7: 0 | AH7: 0 | AI7: 0 | AK7: 1 | AL7: 100 | AM7: 5 | AN7: 105 | AP7: 1 | AQ7: 100 | AR7: 5 | AS7: 105 | AU7: 3 | AV7: 60 | AW7: 5 | AX7: 65 | AZ7: 2 | BA7: 80 | BB7: 5 | BC7: 85 | BE7: 2 | BF7: 80 | BG7: 5 | BH7: 85 | BJ7: 1 | BK7: 100 | BL7: 5 | BM7: 105 | BO7: 2 | BP7: 80 | BQ7: =IF($F7=8,1,0) -> 0 | BR7: 0 | BS7: 1 | BT7: 0 | BU7: 0 | BV7: 0 | BW7: 0 | BX7: 0
A8: 3 | B8: Halvorsen | C8: Hennie Ba | D8: Heming, IL - Ski | E8: =IF(F8<=6,Q8,(Q8-SUM(SMALL(R8:Y8,{1;2})))) -> 375 | F8: 8 | H8: 1 | I8: 6 | J8: 4 | K8: 4 | L8: 6 | M8: DNF | N8: 4 | O8: 5 | Q8: 415 | R8: 100 | S8: 40 | T8: 50 | U8: 50 | V8: 40 | W8: 0 | X8: 50 | Y8: 45 | AA8: 1 | AB8: 100 | AC8: 5 | AD8: 105 | AF8: 6 | AG8: 40 | AH8: 5 | AI8: 45 | AK8: 4 | AL8: 50 | AM8: 5 | AN8: 55 | AP8: 4 | AQ8: 50 | AR8: 5 | AS8: 55 | AU8: 6 | AV8: 40 | AW8: 5 | AX8: 45 | AZ8: DNF | BA8: 0 | BB8: 5 | BC8: 5 | BE8: 4 | BF8: 50 | BG8: 5 | BH8: 55 | BJ8: 5 | BK8: 45 | BL8: 5 | BM8: 50 | BO8: 3 | BP8: 60 | BQ8: 1 | BR8: 0 | BS8: 0 | BT8: 0 | BU8: 0 | BV8: 0 | BW8: 0 | BX8: 0
A9: 4 | B9: Takle | C9: Sonja Elea Hjorth | D9: Heming, IL - Ski | E9: =IF(F9<=6,Q9,(Q9-SUM(SMALL(R9:Y9,{1;2})))) -> 336 | F9: 7 | H9: DSQ | I9: 3 | J9: 7 | K9: 5 | L9: 4 | N9: 3 | O9: 4 | Q9: 336 | R9: 0 | S9: 60 | T9: 36 | U9: 45 | V9: 50 | W9: 0 | X9: 60 | Y9: 50 | AA9: DSQ | AB9: 0 | AC9: 5 | AD9: 5 | AF9: 3 | AG9: 60 | AH9: 5 | AI9: 65 | AK9: 7 | AL9: 36 | AM9: 5 | AN9: 41 | AP9: 5 | AQ9: 45 | AR9: 5 | AS9: 50 | AU9: 4 | AV9: 50 | AW9: 5 | AX9: 55 | BA9: 0 | BB9: 0 | BC9: 0 | BE9: 3 | BF9: 60 | BG9: 5 | BH9: 65 | BJ9: 4 | BK9: 50 | BL9: 5 | BM9: 55 | BO9: 4 | BP9: 50 | BQ9: 0 | BR9: 1 | BS9: 0 | BT9: 0 | BU9: 0 | BV9: 0 | BW9: 0 | BX9: 0
A10: 4 | B10: Aadnesen | C10: Julie Trægde Hauger | D10: Heming, IL - Ski | E10: =IF(F10<=6,Q10,(Q10-SUM(SMALL(R10:Y10,{1;2})))) -> 336 | F10: 8 | H10: 2 | I10: 4 | J10: 6 | K10: 7 | L10: 5 | M10: 5 | N10: 7 | O10: 8 | Q10: 404 | R10: 80 | S10: 50 | T10: 40 | U10: 36 | V10: 45 | W10: 45 | X10: 36 | Y10: 32 | AA10: 2 | AB10: 80 | AC10: 5 | AD10: 85 | AF10: 4 | AG10: 50 | AH10: 5 | AI10: 55 | AK10: 6 | AL10: 40 | AM10: 5 | AN10: 45 | AP10: 7 | AQ10: 36 | AR10: 5 | AS10: 41 | AU10: 5 | AV10: 45 | AW10: 5 | AX10: 50 | AZ10: 5 | BA10: 45 | BB10: 5 | BC10: 50 | BE10: 7 | BF10: 36 | BG10: 5 | BH10: 41 | BJ10: 8 | BK10: 32 | BL10: 5 | BM10: 37 | BO10: 5 | BP10: 45 | BQ10: 1 | BR10: 0 | BS10: 0 | BT10: 0 | BU10: 0 | BV10: 0 | BW10: 0 | BX10: 0
A11: 6 | B11: Brækken | C11: Mone | D11: Ingierkollen/Rustad Slalomklubb - Ski | E11: =IF(F11<=6,Q11,(Q11-SUM(SMALL(R11:Y11,{1;2})))) -> 317 | F11: 7 | H11: DSQ | I11: 2 | J11: 3 | K11: 6 | M11: 10 | N11: 6 | O11: 7 | Q11: 317 | R11: 0 | S11: 80 | T11: 60 | U11: 40 | V11: 0 | W11: 26 | X11: 40 | Y11: 36 | AA11: DSQ | AB11: 0 | AC11: 5 | AD11: 5 | AF11: 2 | AG11: 80 | AH11: 5 | AI11: 85 | AK11: 3 | AL11: 60 | AM11: 5 | AN11: 65 | AP11: 6 | AQ11: 40 | AR11: 5 | AS11: 45 | AV11: 0 | AW11: 0 | AX11: 0 | AZ11: 10 | BA11: 26 | BB11: 5 | BC11: 31 | BE11: 6 | BF11: 40 | BG11: 5 | BH11: 45 | BJ11: 7 | BK11: 36 | BL11: 5 | BM11: 41 | BO11: 6 | BP11: 40 | BQ11: 0 | BR11: 1 | BS11: 0 | BT11: 0 | BU11: 0 | BV11: 0 | BW11: 0 | BX11: 0
A12: 7 | B12: Astrup | C12: Stella | D12: Heming, IL - Ski | E12: =IF(F12<=6,Q12,(Q12-SUM(SMALL(R12:Y12,{1;2})))) -> 278 | F12: 8 | H12: DSQ | I12: DSQ | J12: 5 | K12: 8 | L12: 7 | M12: 6 | N12: 5 | O12: 6 | Q12: 278 | R12: 0 | S12: 0 | T12: 45 | U12: 32 | V12: 36 | W12: 40 | X12: 45 | Y12: 40 | AA12: DSQ | AB12: 0 | AC12: 5 | AD12: 5 | AF12: DSQ | AG12: 0 | AH12: 5 | AI12: 5 | AK12: 5 | AL12: 45 | AM12: 5 | AN12: 50 | AP12: 8 | AQ12: 32 | AR12: 5 | AS12: 37 | AU12: 7 | AV12: 36 | AW12: 5 | AX12: 41 | AZ12: 6 | BA12: 40 | BB12: 5 | BC12: 45 | BE12: 5 | BF12: 45 | BG12: 5 | BH12: 50 | BJ12: 6 | BK12: 40 | BL12: 5 | BM12: 45 | BO12: 7 | BP12: 36 | BQ12: 1 | BR12: 0 | BS12: 0 | BT12: 0 | BU12: 0 | BV12: 0 | BW12: 0 | BX12: 0
A13: 8 | B13: Carlsson | C13: Lilja Bjørgo | D13: Ready - Ski | E13: =IF(F13<=6,Q13,(Q13-SUM(SMALL(R13:Y13,{1;2})))) -> 227 | F13: 8 | H13: DSQ | I13: 5 | J13: 9 | K13: 10 | L13: 10 | M13: 8 | N13: 9 | O13: 10 | Q13: 253 | R13: 0 | S13: 45 | T13: 29 | U13: 26 | V13: 26 | W13: 32 | X13: 29 | Y13: 26 | AA13: DSQ | AB13: 0 | AC13: 5 | AD13: 5 | AF13: 5 | AG13: 45 | AH13: 5 | AI13: 50 | AK13: 9 | AL13: 29 | AM13: 5 | AN13: 34 | AP13: 10 | AQ13: 26 | AR13: 5 | AS13: 31 | AU13: 10 | AV13: 26 | AW13: 5 | AX13: 31 | AZ13: 8 | BA13: 32 | BB13: 5 | BC13: 37 | BE13: 9 | BF13: 29 | BG13: 5 | BH13: 34 | BJ13: 10 | BK13: 26 | BL13: 5 | BM13: 31 | BO13: 8 | BP13: 32 | BQ13: 1 | BR13: 0 | BS13: 0 | BT13: 0 | BU13: 0 | BV13: 0 | BW13: 0 | BX13: 0
A14: 9 | B14: Sellæg | C14: Ada | D14: Ready - Ski | E14: =IF(F14<=6,Q14,(Q14-SUM(SMALL(R14:Y14,{1;2})))) -> 215 | F14: 6 | I14: DSQ | J14: 8 | K14: 9 | L14: 8 | N14: 8 | O14: 3 | Q14: 215 | AB14: 0 | AC14: 0 | AD14: 0 | AF14: DSQ | AG14: 0 | AH14: 5 | AI14: 5 | AK14: 8 | AL14: 32 | AM14: 5 | AN14: 37 | AP14: 9 | AQ14: 29 | AR14: 5 | AS14: 34 | AU14: 8 | AV14: 32 | AW14: 5 | AX14: 37 | BA14: 0 | BB14: 0 | BC14: 0 | BE14: 8 | BF14: 32 | BG14: 5 | BH14: 37 | BJ14: 3 | BK14: 60 | BL14: 5 | BM14: 65 | BO14: 9 | BP14: 29 | BQ14: 0 | BR14: 0 | BS14: 1 | BT14: 0 | BU14: 0 | BV14: 0 | BW14: 0 | BX14: 0
A15: 10 | B15: Sivle | C15: Frida Amalie | D15: Ready - Ski | E15: =IF(F15<=6,Q15,(Q15-SUM(SMALL(R15:Y15,{1;2})))) -> 201 | F15: 6 | I15: 7 | K15: 12 | L15: 9 | M15: 3 | N15: 16 | O15: 22 | Q15: 201 | AB15: 0 | AC15: 0 | AD15: 0 | AF15: 7 | AG15: 36 | AH15: 5 | AI15: 41 | AL15: 0 | AM15: 0 | AN15: 0 | AP15: 12 | AQ15: 22 | AR15: 5 | AS15: 27 | AU15: 9 | AV15: 29 | AW15: 5 | AX15: 34 | AZ15: 3 | BA15: 60 | BB15: 5 | BC15: 65 | BE15: 16 | BF15: 15 | BG15: 5 | BH15: 20 | BJ15: 22 | BK15: 9 | BL15: 5 | BM15: 14 | BO15: 10 | BP15: 26 | BQ15: 0 | BR15: 0 | BS15: 1 | BT15: 0 | BU15: 0 | BV15: 0 | BW15: 0 | BX15: 0
A16: 11 | B16: Hovind | C16: Eleonora Nuila | D16: Ljan Alpinklubb - Ski | E16: =IF(F16<=6,Q16,(Q16-SUM(SMALL(R16:Y16,{1;2})))) -> 186 | F16: 6 | H16: 3 | I16: 8 | J16: 14 | M16: 13 | N16: 17 | O16: 19 | Q16: 186 | AA16: 3 | AB16: 60 | AC16: 5 | AD16: 65 | AF16: 8 | AG16: 32 | AH16: 5 | AI16: 37 | AK16: 14 | AL16: 18 | AM16: 5 | AN16: 23 | AQ16: 0 | AR16: 0 | AS16: 0 | AV16: 0 | AW16: 0 | AX16: 0 | AZ16: 13 | BA16: 20 | BB16: 5 | BC16: 25 | BE16: 17 | BF16: 14 | BG16: 5 | BH16: 19 | BJ16: 19 | BK16: 12 | BL16: 5 | BM16: 17 | BO16: 11 | BP16: 24 | BQ16: 0 | BR16: 0 | BS16: 1 | BT16: 0 | BU16: 0 | BV16: 0 | BW16: 0 | BX16: 0
A17: 12 | B17: Thorsrud Hepsø | C17: Frida | D17: Stabæk IF - Ski | E17: =IF(F17<=6,Q17,(Q17-SUM(SMALL(R17:Y17,{1;2})))) -> 170 | F17: 2 | K17: 2 | L17: 2 | Q17: 170 | AB17: 0 | AC17: 0 | AD17: 0 | AG17: 0 | AH17: 0 | AI17: 0 | AL17: 0 | AM17: 0 | AN17: 0 | AP17: 2 | AQ17: 80 | AR17: 5 | AS17: 85 | AU17: 2 | AV17: 80 | AW17: 5 | AX17: 85 | BA17: 0 | BB17: 0 | BC17: 0 | BF17: 0 | BG17: 0 | BH17: 0 | BK17: 0 | BL17: 0 | BM17: 0 | BO17: 12 | BP17: 22 | BQ17: 0 | BR17: 0 | BS17: 0 | BT17: 0 | BU17: 0 | BV17: 0 | BW17: 1 | BX17: 0
A18: 13 | B18: Meier | C18: Matilde | D18: Kjelsås IL - Ski | E18: =IF(F18<=6,Q18,(Q18-SUM(SMALL(R18:Y18,{1;2})))) -> 165 | F18: 5 | I18: 8 | L18: 11 | M18: 7 | N18: 11 | O18: 11 | Q18: 165 | AB18: 0 | AC18: 0 | AD18: 0 | AF18: 8 | AG18: 32 | AH18: 5 | AI18: 37 | AL18: 0 | AM18: 0 | AN18: 0 | AQ18: 0 | AR18: 0 | AS18: 0 | AU18: 11 | AV18: 24 | AW18: 5 | AX18: 29 | AZ18: 7 | BA18: 36 | BB18: 5 | BC18: 41 | BE18: 11 | BF18: 24 | BG18: 5 | BH18: 29 | BJ18: 11 | BK18: 24 | BL18: 5 | BM18: 29 | BO18: 13 | BP18: 20 | BQ18: 0 | BR18: 0 | BS18: 0 | BT18: 1 | BU18: 0 | BV18: 0 | BW18: 0 | BX18: 0
A19: 14 | B19: Hellerud | C19: Aurora | D19: Ullensaker Skiklubb - Ski | E19: =IF(F19<=6,Q19,(Q19-SUM(SMALL(R19:Y19,{1;2})))) -> 161 | F19: 7 | H19: DSQ | J19: 11 | K19: 14 | L19: 12 | M19: 15 | N19: 10 | O19: 13 | Q19: 161 | R19: 0 | S19: 0 | T19: 24 | U19: 18 | V19: 22 | W19: 16 | X19: 26 | Y19: 20 | AA19: DSQ | AB19: 0 | AC19: 5 | AD19: 5 | AG19: 0 | AH19: 0 | AI19: 0 | AK19: 11 | AL19: 24 | AM19: 5 | AN19: 29 | AP19: 14 | AQ19: 18 | AR19: 5 | AS19: 23 | AU19: 12 | AV19: 22 | AW19: 5 | AX19: 27 | AZ19: 15 | BA19: 16 | BB19: 5 | BC19: 21 | BE19: 10 | BF19: 26 | BG19: 5 | BH19: 31 | BJ19: 13 | BK19: 20 | BL19: 5 | BM19: 25 | BO19: 14 | BP19: 18 | BQ19: 0 | BR19: 1 | BS19: 0 | BT19: 0 | BU19: 0 | BV19: 0 | BW19: 0 | BX19: 0
A20: 15 | B20: Sande | C20: Aurora Kanutte Brandt | D20: Kjelsås IL - Ski | E20: =IF(F20<=6,Q20,(Q20-SUM(SMALL(R20:Y20,{1;2})))) -> 150 | F20: 6 | J20: 12 | K20: 13 | L20: 14 | M20: 12 | N20: 15 | O20: 12 | Q20: 150 | AB20: 0 | AC20: 0 | AD20: 0 | AG20: 0 | AH20: 0 | AI20: 0 | AK20: 12 | AL20: 22 | AM20: 5 | AN20: 27 | AP20: 13 | AQ20: 20 | AR20: 5 | AS20: 25 | AU20: 14 | AV20: 18 | AW20: 5 | AX20: 23 | AZ20: 12 | BA20: 22 | BB20: 5 | BC20: 27 | BE20: 15 | BF20: 16 | BG20: 5 | BH20: 21 | BJ20: 12 | BK20: 22 | BL20: 5 | BM20: 27 | BO20: 15 | BP20: 16 | BQ20: 0 | BR20: 0 | BS20: 1 | BT20: 0 | BU20: 0 | BV20: 0 | BW20: 0 | BX20: 0
A21: 16 | B21: Toverud | C21: Inger Birgitte | D21: Ingierkollen/Rustad Slalomklubb - Ski | E21: =IF(F21<=6,Q21,(Q21-SUM(SMALL(R21:Y21,{1;2})))) -> 114 | F21: 6 | H21: DSQ | J21: 15 | L21: 13 | M21: 19 | N21: 13 | O21: 15 | Q21: 114 | AA21: DSQ | AB21: 0 | AC21: 5 | AD21: 5 | AG21: 0 | AH21: 0 | AI21: 0 | AK21: 15 | AL21: 16 | AM21: 5 | AN21: 21 | AQ21: 0 | AR21: 0 | AS21: 0 | AU21: 13 | AV21: 20 | AW21: 5 | AX21: 25 | AZ21: 19 | BA21: 12 | BB21: 5 | BC21: 17 | BE21: 13 | BF21: 20 | BG21: 5 | BH21: 25 | BJ21: 15 | BK21: 16 | BL21: 5 | BM21: 21 | BO21: 16 | BP21: 15 | BQ21: 0 | BR21: 0 | BS21: 1 | BT21: 0 | BU21: 0 | BV21: 0 | BW21: 0 | BX21: 0
A22: 17 | B22: Røsten | C22: Hillevi Ragnhildsdatter | D22: Kjelsås IL - Ski | E22: =IF(F22<=6,Q22,(Q22-SUM(SMALL(R22:Y22,{1;2})))) -> 113 | F22: 6 | I22: DSQ | J22: 13 | K22: 15 | M22: 16 | N22: 14 | O22: 17 | Q22: 113 | AB22: 0 | AC22: 0 | AD22: 0 | AF22: DSQ | AG22: 0 | AH22: 5 | AI22: 5 | AK22: 13 | AL22: 20 | AM22: 5 | AN22: 25 | AP22: 15 | AQ22: 16 | AR22: 5 | AS22: 21 | AV22: 0 | AW22: 0 | AX22: 0 | AZ22: 16 | BA22: 15 | BB22: 5 | BC22: 20 | BE22: 14 | BF22: 18 | BG22: 5 | BH22: 23 | BJ22: 17 | BK22: 14 | BL22: 5 | BM22: 19 | BO22: 17 | BP22: 14 | BQ22: 0 | BR22: 0 | BS22: 1 | BT22: 0 | BU22: 0 | BV22: 0 | BW22: 0 | BX22: 0
A23: 18 | B23: Gaarder | C23: Tove Mathea | D23: Høybråten og stovner | E23: =IF(F23<=6,Q23,(Q23-SUM(SMALL(R23:Y23,{1;2})))) -> 105 | F23: 3 | M23: 4 | N23: 12 | O23: 14 | Q23: 105 | AB23: 0 | AC23: 0 | AD23: 0 | AG23: 0 | AH23: 0 | AI23: 0 | AL23: 0 | AM23: 0 | AN23: 0 | AQ23: 0 | AR23: 0 | AS23: 0 | AV23: 0 | AW23: 0 | AX23: 0 | AZ23: 4 | BA23: 50 | BB23: 5 | BC23: 55 | BE23: 12 | BF23: 22 | BG23: 5 | BH23: 27 | BJ23: 14 | BK23: 18 | BL23: 5 | BM23: 23 | BO23: 18 | BP23: 13 | BQ23: 0 | BR23: 0 | BS23: 0 | BT23: 0 | BU23: 0 | BV23: 1 | BW23: 0 | BX23: 0
A24: 19 | B24: Bjercke | C24: Emilie Arndt | D24: Heming, IL - Ski | E24: =IF(F24<=6,Q24,(Q24-SUM(SMALL(R24:Y24,{1;2})))) -> 91 | F24: 5 | H24: DSQ | I24: DSQ | J24: 10 | K24: 11 | L24: 15 | Q24: 91 | AA24: DSQ | AB24: 0 | AC24: 5 | AD24: 5 | AF24: DSQ | AG24: 0 | AH24: 5 | AI24: 5 | AK24: 10 | AL24: 26 | AM24: 5 | AN24: 31 | AP24: 11 | AQ24: 24 | AR24: 5 | AS24: 29 | AU24: 15 | AV24: 16 | AW24: 5 | AX24: 21 | BA24: 0 | BB24: 0 | BC24: 0 | BF24: 0 | BG24: 0 | BH24: 0 | BK24: 0 | BL24: 0 | BM24: 0 | BO24: 19 | BP24: 12 | BQ24: 0 | BR24: 0 | BS24: 0 | BT24: 1 | BU24: 0 | BV24: 0 | BW24: 0 | BX24: 0
A25: 20 | B25: Tangedal | C25: Tuva | D25: Kjelsås IL - Ski | E25: =IF(F25<=6,Q25,(Q25-SUM(SMALL(R25:Y25,{1;2})))) -> 66 | F25: 3 | M25: 11 | N25: 19 | O25: 16 | Q25: 66 | AB25: 0 | AC25: 0 | AD25: 0 | AG25: 0 | AH25: 0 | AI25: 0 | AL25: 0 | AM25: 0 | AN25: 0 | AQ25: 0 | AR25: 0 | AS25: 0 | AV25: 0 | AW25: 0 | AX25: 0 | AZ25: 11 | BA25: 24 | BB25: 5 | BC25: 29 | BE25: 19 | BF25: 12 | BG25: 5 | BH25: 17 | BJ25: 16 | BK25: 15 | BL25: 5 | BM25: 20 | BO25: 20 | BP25: 11 | BQ25: 0 | BR25: 0 | BS25: 0 | BT25: 0 | BU25: 0 | BV25: 1 | BW25: 0 | BX25: 0
A26: 21 | B26: Svensson | C26: Frida | D26: Høybråten og stovner | E26: =IF(F26<=6,Q26,(Q26-SUM(SMALL(R26:Y26,{1;2})))) -> 56 | F26: 3 | M26: 14 | N26: 18 | O26: 21 | Q26: 56 | AB26: 0 | AC26: 0 | AD26: 0 | AG26: 0 | AH26: 0 | AI26: 0 | AL26: 0 | AM26: 0 | AN26: 0 | AQ26: 0 | AR26: 0 | AS26: 0 | AV26: 0 | AW26: 0 | AX26: 0 | AZ26: 14 | BA26: 18 | BB26: 5 | BC26: 23 | BE26: 18 | BF26: 13 | BG26: 5 | BH26: 18 | BJ26: 21 | BK26: 10 | BL26: 5 | BM26: 15 | BO26: 21 | BP26: 10 | BQ26: 0 | BR26: 0 | BS26: 0 | BT26: 0 | BU26: 0 | BV26: 1 | BW26: 0 | BX26: 0
A27: 22 | B27: Selte | C27: Frederikke | D27: Heming, IL - Ski | E27: =IF(F27<=6,Q27,(Q27-SUM(SMALL(R27:Y27,{1;2})))) -> 49 | F27: 4 | H27: DNF | L27: DNF | N27: DSQ | O27: 9 | Q27: 49 | AA27: DNF | AB27: 0 | AC27: 5 | AD27: 5 | AG27: 0 | AH27: 0 | AI27: 0 | AL27: 0 | AM27: 0 | AN27: 0 | AQ27: 0 | AR27: 0 | AS27: 0 | AU27: DNF | AV27: 0 | AW27: 5 | AX27: 5 | BA27: 0 | BB27: 0 | BC27: 0 | BE27: DSQ | BF27: 0 | BG27: 5 | BH27: 5 | BJ27: 9 | BK27: 29 | BL27: 5 | BM27: 34 | BO27: 22 | BP27: 9 | BQ27: 0 | BR27: 0 | BS27: 0 | BT27: 0 | BU27: 1 | BV27: 0 | BW27: 0 | BX27: 0
A28: 23 | B28: Pavolaite | C28: Emilija | D28: Høybråten og stovner | E28: =IF(F28<=6,Q28,(Q28-SUM(SMALL(R28:Y28,{1;2})))) -> 48 | F28: 3 | M28: 20 | N28: 20 | O28: 20 | Q28: 48 | AB28: 0 | AC28: 0 | AD28: 0 | AG28: 0 | AH28: 0 | AI28: 0 | AL28: 0 | AM28: 0 | AN28: 0 | AQ28: 0 | AR28: 0 | AS28: 0 | AV28: 0 | AW28: 0 | AX28: 0 | AZ28: 20 | BA28: 11 | BB28: 5 | BC28: 16 | BE28: 20 | BF28: 11 | BG28: 5 | BH28: 16 | BJ28: 20 | BK28: 11 | BL28: 5 | BM28: 16 | BO28: 23 | BP28: 8 | BQ28: 0 | BR28: 0 | BS28: 0 | BT28: 0 | BU28: 0 | BV28: 1 | BW28: 0 | BX28: 0
A29: 24 | B29: Gjenseth Norborg | C29: Lerke | D29: Kjelsås IL - Ski | E29: =IF(F29<=6,Q29,(Q29-SUM(SMALL(R29:Y29,{1;2})))) -> 41 | F29: 3 | M29: 18 | N29: DSQ | O29: 18 | Q29: 41 | AB29: 0 | AC29: 0 | AD29: 0 | AG29: 0 | AH29: 0 | AI29: 0 | AL29: 0 | AM29: 0 | AN29: 0 | AQ29: 0 | AR29: 0 | AS29: 0 | AV29: 0 | AW29: 0 | AX29: 0 | AZ29: 18 | BA29: 13 | BB29: 5 | BC29: 18 | BE29: DSQ | BF29: 0 | BG29: 5 | BH29: 5 | BJ29: 18 | BK29: 13 | BL29: 5 | BM29: 18 | BO29: 24 | BP29: 7 | BQ29: 0 | BR29: 0 | BS29: 0 | BT29: 0 | BU29: 0 | BV29: 1 | BW29: 0 | BX29: 0
A30: 25 | B30: Isnes | C30: Hedda | D30: Høybråten og stovner | E30: =IF(F30<=6,Q30,(Q30-SUM(SMALL(R30:Y30,{1;2})))) -> 34 | F30: 1 | M30: 9 | Q30: 34 | AB30: 0 | AC30: 0 | AD30: 0 | AG30: 0 | AH30: 0 | AI30: 0 | AL30: 0 | AM30: 0 | AN30: 0 | AQ30: 0 | AR30: 0 | AS30: 0 | AV30: 0 | AW30: 0 | AX30: 0 | AZ30: 9 | BA30: 29 | BB30: 5 | BC30: 34 | BF30: 0 | BG30: 0 | BH30: 0 | BK30: 0 | BL30: 0 | BM30: 0 | BO30: 25 | BP30: 6 | BQ30: 0 | BR30: 0 | BS30: 0 | BT30: 0 | BU30: 0 | BV30: 0 | BW30: 0 | BX30: 1
A31: 26 | B31: Ringvold | C31: Eline Louise Lied | D31: Njrd - Ski | E31: =IF(F31<=6,Q31,(Q31-SUM(SMALL(R31:Y31,{1;2})))) -> 20 | F31: 1 | J31: 16 | Q31: 20 | AB31: 0 | AC31: 0 | AD31: 0 | AG31: 0 | AH31: 0 | AI31: 0 | AK31: 16 | AL31: 15 | AM31: 5 | AN31: 20 | AQ31: 0 | AR31: 0 | AS31: 0 | AV31: 0 | AW31: 0 | AX31: 0 | BA31: 0 | BB31: 0 | BC31: 0 | BF31: 0 | BG31: 0 | BH31: 0 | BK31: 0 | BL31: 0 | BM31: 0 | BO31: 26 | BP31: 5 | BQ31: 0 | BR31: 0 | BS31: 0 | BT31: 0 | BU31: 0 | BV31: 0 | BW31: 0 | BX31: 1
A32: 27 | B32: Olseng | C32: Maja | D32: Høybråten og stovner | E32: =IF(F32<=6,Q32,(Q32-SUM(SMALL(R32:Y32,{1;2})))) -> 19 | F32: 1 | M32: 17 | Q32: 19 | AB32: 0 | AC32: 0 | AD32: 0 | AG32: 0 | AH32: 0 | AI32: 0 | AL32: 0 | AM32: 0 | AN32: 0 | AQ32: 0 | AR32: 0 | AS32: 0 | AV32: 0 | AW32: 0 | AX32: 0 | AZ32: 17 | BA32: 14 | BB32: 5 | BC32: 19 | BF32: 0 | BG32: 0 | BH32: 0 | BK32: 0 | BL32: 0 | BM32: 0 | BO32: 27 | BP32: 4 | BQ32: 0 | BR32: 0 | BS32: 0 | BT32: 0 | BU32: 0 | BV32: 0 | BW32: 0 | BX32: 1
A33: 27 | B33: Fegt | C33: Ingrid Marie | D33: Njård | E33: =IF(F33<=6,Q33,(Q33-SUM(SMALL(R33:Y33,{1;2})))) -> 19 | F33: 1 | J33: 17 | Q33: 19 | AB33: 0 | AC33: 0 | AD33: 0 | AG33: 0 | AH33: 0 | AI33: 0 | AK33: 17 | AL33: 14 | AM33: 5 | AN33: 19 | AQ33: 0 | AR33: 0 | AS33: 0 | AV33: 0 | AW33: 0 | AX33: 0 | BA33: 0 | BB33: 0 | BC33: 0 | BF33: 0 | BG33: 0 | BH33: 0 | BK33: 0 | BL33: 0 | BM33: 0 | BO33: 28 | BP33: 3 | BQ33: 0 | BR33: 0 | BS33: 0 | BT33: 0 | BU33: 0 | BV33: 0 | BW33: 0 | BX33: 1
A34: 29 | B34: Olseng | C34: Emma | D34: Kjelsås IL - Ski | E34: =IF(F34<=6,Q34,(Q34-SUM(SMALL(R34:Y34,{1;2})))) -> 5 | F34: 1 | N34: DSQ | Q34: 5 | AB34: 0 | AC34: 0 | AD34: 0 | AG34: 0 | AH34: 0 | AI34: 0 | AL34: 0 | AM34: 0 | AN34: 0 | AQ34: 0 | AR34: 0 | AS34: 0 | AV34: 0 | AW34: 0 | AX34: 0 | BA34: 0 | BB34: 0 | BC34: 0 | BE34: DSQ | BF34: 0 | BG34: 5 | BH34: 5 | BK34: 0 | BL34: 0 | BM34: 0 | BO34: 29 | BP34: 2 | BQ34: 0 | BR34: 0 | BS34: 0 | BT34: 0 | BU34: 0 | BV34: 0 | BW34: 0 | BX34: 1
A35: 29 | B35: Myrset | C35: Victoria | D35: Heming, IL - Ski | E35: =IF(F35<=6,Q35,(Q35-SUM(SMALL(R35:Y35,{1;2})))) -> 5 | F35: 1 | I35: DSQ | Q35: 5 | AB35: 0 | AC35: 0 | AD35: 0 | AF35: DSQ | AG35: 0 | AH35: 5 | AI35: 5 | AL35: 0 | AM35: 0 | AN35: 0 | AQ35: 0 | AR35: 0 | AS35: 0 | AV35: 0 | AW35: 0 | AX35: 0 | BA35: 0 | BB35: 0 | BC35: 0 | BF35: 0 | BG35: 0 | BH35: 0 | BK35: 0 | BL35: 0 | BM35: 0 | BO35: 30 | BP35: 1 | BQ35: 0 | BR35: 0 | BS35: 0 | BT35: 0 | BU35: 0 | BV35: 0 | BW35: 0 | BX35: 1
A36: 29 | B36: Aamodt | C36: Caroline Amalie | D36: Kjelsås IL - Ski | E36: =IF(F36<=6,Q36,(Q36-SUM(SMALL(R36:Y36,{1;2})))) -> 5 | F36: 1 | I36: DSQ | Q36: 5 | AB36: 0 | AC36: 0 | AD36: 0 | AF36: DSQ | AG36: 0 | AH36: 5 | AI36: 5 | AL36: 0 | AM36: 0 | AN36: 0 | AQ36: 0 | AR36: 0 | AS36: 0 | AV36: 0 | AW36: 0 | AX36: 0 | BA36: 0 | BB36: 0 | BC36: 0 | BF36: 0 | BG36: 0 | BH36: 0 | BK36: 0 | BL36: 0 | BM36: 0 | BO36: 31 | BP36: 0 | BQ36: 0 | BR36: 0 | BS36: 0 | BT36: 0 | BU36: 0 | BV36: 0 | BW36: 0 | BX36: 1
A37: 32 | E37: =IF(F37<=6,Q37,(Q37-SUM(SMALL(R37:Y37,{1;2})))) -> 0 | F37: 0 | Q37: 0 | AB37: 0 | AC37: 0 | AD37: 0 | AG37: 0 | AH37: 0 | AI37: 0 | AL37: 0 | AM37: 0 | AN37: 0 | AQ37: 0 | AR37: 0 | AS37: 0 | AV37: 0 | AW37: 0 | AX37: 0 | BA37: 0 | BB37: 0 | BC37: 0 | BF37: 0 | BG37: 0 | BH37: 0 | BK37: 0 | BL37: 0 | BM37: 0 | BO37: 32 | BP37: 0 | BQ37: 0 | BR37: 0 | BS37: 0 | BT37: 0 | BU37: 0 | BV37: 0 | BW37: 0 | BX37: 0
A38: 32 | E38: =IF(F38<=6,Q38,(Q38-SUM(SMALL(R38:Y38,{1;2})))) -> 0 | F38: 0 | Q38: 0 | AB38: 0 | AC38: 0 | AD38: 0 | AG38: 0 | AH38: 0 | AI38: 0 | AL38: 0 | AM38: 0 | AN38: 0 | AQ38: 0 | AR38: 0 | AS38: 0 | AV38: 0 | AW38: 0 | AX38: 0 | BA38: 0 | BB38: 0 | BC38: 0 | BF38: 0 | BG38: 0 | BH38: 0 | BK38: 0 | BL38: 0 | BM38: 0 | BO38: 33 | BP38: 0 | BQ38: 0 | BR38: 0 | BS38: 0 | BT38: 0 | BU38: 0 | BV38: 0 | BW38: 0 | BX38: 0
A39: 32 | E39: =IF(F39<=6,Q39,(Q39-SUM(SMALL(R39:Y39,{1;2})))) -> 0 | F39: 0 | Q39: 0 | AB39: 0 | AC39: 0 | AD39: 0 | AG39: 0 | AH39: 0 | AI39: 0 | AL39: 0 | AM39: 0 | AN39: 0 | AQ39: 0 | AR39: 0 | AS39: 0 | AV39: 0 | AW39: 0 | AX39: 0 | BA39: 0 | BB39: 0 | BC39: 0 | BF39: 0 | BG39: 0 | BH39: 0 | BK39: 0 | BL39: 0 | BM39: 0 | BO39: 34 | BP39: 0 | BQ39: 0 | BR39: 0 | BS39: 0 | BT39: 0 | BU39: 0 | BV39: 0 | BW39: 0 | BX39: 0
A40: 32 | E40: =IF(F40<=6,Q40,(Q40-SUM(SMALL(R40:Y40,{1;2})))) -> 0 | F40: 0 | Q40: 0 | AB40: 0 | AC40: 0 | AD40: 0 | AG40: 0 | AH40: 0 | AI40: 0 | AL40: 0 | AM40: 0 | AN40: 0 | AQ40: 0 | AR40: 0 | AS40: 0 | AV40: 0 | AW40: 0 | AX40: 0 | BA40: 0 | BB40: 0 | BC40: 0 | BF40: 0 | BG40: 0 | BH40: 0 | BK40: 0 | BL40: 0 | BM40: 0 | BO40: 35 | BP40: 0 | BQ40: 0 | BR40: 0 | BS40: 0 | BT40: 0 | BU40: 0 | BV40: 0 | BW40: 0 | BX40: 0
A41: 32 | E41: =IF(F41<=6,Q41,(Q41-SUM(SMALL(R41:Y41,{1;2})))) -> 0 | F41: 0 | Q41: 0 | AB41: 0 | AC41: 0 | AD41: 0 | AG41: 0 | AH41: 0 | AI41: 0 | AL41: 0 | AM41: 0 | AN41: 0 | AQ41: 0 | AR41: 0 | AS41: 0 | AV41: 0 | AW41: 0 | AX41: 0 | BA41: 0 | BB41: 0 | BC41: 0 | BF41: 0 | BG41: 0 | BH41: 0 | BK41: 0 | BL41: 0 | BM41: 0 | BO41: 36 | BP41: 0 | BQ41: 0 | BR41: 0 | BS41: 0 | BT41: 0 | BU41: 0 | BV41: 0 | BW41: 0 | BX41: 0
A42: 32 | E42: =IF(F42<=6,Q42,(Q42-SUM(SMALL(R42:Y42,{1;2})))) -> 0 | F42: 0 | Q42: 0 | AB42: 0 | AC42: 0 | AD42: 0 | AG42: 0 | AH42: 0 | AI42: 0 | AL42: 0 | AM42: 0 | AN42: 0 | AQ42: 0 | AR42: 0 | AS42: 0 | AV42: 0 | AW42: 0 | AX42: 0 | BA42: 0 | BB42: 0 | BC42: 0 | BF42: 0 | BG42: 0 | BH42: 0 | BK42: 0 | BL42: 0 | BM42: 0 | BO42: 37 | BP42: 0 | BQ42: 0 | BR42: 0 | BS42: 0 | BT42: 0 | BU42: 0 | BV42: 0 | BW42: 0 | BX42: 0
A43: 32 | E43: =IF(F43<=6,Q43,(Q43-SUM(SMALL(R43:Y43,{1;2})))) -> 0 | F43: 0 | Q43: 0 | AB43: 0 | AC43: 0 | AD43: 0 | AG43: 0 | AH43: 0 | AI43: 0 | AL43: 0 | AM43: 0 | AN43: 0 | AQ43: 0 | AR43: 0 | AS43: 0 | AV43: 0 | AW43: 0 | AX43: 0 | BA43: 0 | BB43: 0 | BC43: 0 | BF43: 0 | BG43: 0 | BH43: 0 | BK43: 0 | BL43: 0 | BM43: 0 | BO43: 38 | BP43: 0 | BQ43: 0 | BR43: 0 | BS43: 0 | BT43: 0 | BU43: 0 | BV43: 0 | BW43: 0 | BX43: 0
A44: 32 | E44: =IF(F44<=6,Q44,(Q44-SUM(SMALL(R44:Y44,{1;2})))) -> 0 | F44: 0 | Q44: 0 | AB44: 0 | AC44: 0 | AD44: 0 | AG44: 0 | AH44: 0 | AI44: 0 | AL44: 0 | AM44: 0 | AN44: 0 | AQ44: 0 | AR44: 0 | AS44: 0 | AV44: 0 | AW44: 0 | AX44: 0 | BA44: 0 | BB44: 0 | BC44: 0 | BF44: 0 | BG44: 0 | BH44: 0 | BK44: 0 | BL44: 0 | BM44: 0 | BO44: 39 | BP44: 0 | BQ44: 0 | BR44: 0 | BS44: 0 | BT44: 0 | BU44: 0 | BV44: 0 | BW44: 0 | BX44: 0
A45: 32 | E45: =IF(F45<=6,Q45,(Q45-SUM(SMALL(R45:Y45,{1;2})))) -> 0 | F45: 0 | Q45: 0 | AB45: 0 | AC45: 0 | AD45: 0 | AG45: 0 | AH45: 0 | AI45: 0 | AL45: 0 | AM45: 0 | AN45: 0 | AQ45: 0 | AR45: 0 | AS45: 0 | AV45: 0 | AW45: 0 | AX45: 0 | BA45: 0 | BB45: 0 | BC45: 0 | BF45: 0 | BG45: 0 | BH45: 0 | BK45: 0 | BL45: 0 | BM45: 0 | BO45: 40 | BP45: 0 | BQ45: 0 | BR45: 0 | BS45: 0 | BT45: 0 | BU45: 0 | BV45: 0 | BW45: 0 | BX45: 0
A46: 32 | E46: =IF(F46<=6,Q46,(Q46-SUM(SMALL(R46:Y46,{1;2})))) -> 0 | F46: 0 | Q46: 0 | AB46: 0 | AC46: 0 | AD46: 0 | AG46: 0 | AH46: 0 | AI46: 0 | AL46: 0 | AM46: 0 | AN46: 0 | AQ46: 0 | AR46: 0 | AS46: 0 | AV46: 0 | AW46: 0 | AX46: 0 | BA46: 0 | BB46: 0 | BC46: 0 | BF46: 0 | BG46: 0 | BH46: 0 | BK46: 0 | BL46: 0 | BM46: 0 | BO46: 41 | BP46: 0 | BQ46: 0 | BR46: 0 | BS46: 0 | BT46: 0 | BU46: 0 | BV46: 0 | BW46: 0 | BX46: 0
A47: 32 | Q47: 0 | R47: =IF($F38>=5,IF(AB47="","",AB47),"") ->  | S47: =IF($F38>=5,IF(AG47="","",AG47),"") ->  | T47: =IF($F38>=5,IF(AL47="","",AL47),"") ->  | U47: =IF($F38>=5,IF(AQ47="","",AQ47),"") ->  | V47: =IF($F38>=5,IF(AR47="","",AR47),"") ->  | W47: =IF($F38>=5,IF(AV47="","",AV47),"") ->  | X47: =IF($F38>=5,IF(BA47="","",BA47),"") ->  | Y47: =IF($F38>=5,IF(BF47="","",BF47),"") ->  | AB47: 0 | AC47: 0 | AD47: 0 | AG47: 0 | AH47: 0 | AI47: 0 | AL47: 0 | AM47: 0 | AN47: 0 | AQ47: 0 | AR47: 0 | AS47: 0 | AV47: 0 | AW47: 0 | AX47: 0 | BA47: 0 | BB47: 0 | BC47: 0 | BF47: 0 | BG47: 0 | BH47: 0 | BK47: 0 | BL47: 0 | BM47: 0 | BO47: 42 | BP47: 0 | BQ47: 0 | BR47: 0 | BS47: 0 | BT47: 0 | BU47: 0 | BV47: 0 | BW47: 0 | BX47: 0
A48: 32 | M48: =IF(AU48="","",AU48) ->  | N48: =IF(AZ48="","",AZ48) ->  | O48: =IF(BE48="","",BE48) ->  | Q48: 0 | R48: =IF($F39>=5,IF(AB48="","",AB48),"") ->  | S48: =IF($F39>=5,IF(AG48="","",AG48),"") ->  | T48: =IF($F39>=5,IF(AL48="","",AL48),"") ->  | U48: =IF($F39>=5,IF(AQ48="","",AQ48),"") ->  | V48: =IF($F39>=5,IF(AR48="","",AR48),"") ->  | W48: =IF($F39>=5,IF(AV48="","",AV48),"") ->  | X48: =IF($F39>=5,IF(BA48="","",BA48),"") ->  | Y48: =IF($F39>=5,IF(BF48="","",BF48),"") ->  | AB48: 0 | AC48: 0 | AD48: 0 | AG48: 0 | AH48: 0 | AI48: 0 | AL48: 0 | AM48: 0 | AN48: 0 | AQ48: 0 | AR48: 0 | AS48: 0 | AV48: 0 | AW48: 0 | AX48: 0 | BA48: 0 | BB48: 0 | BC48: 0 | BF48: 0 | BG48: 0 | BH48: 0 | BK48: 0 | BL48: 0 | BM48: 0 | BO48: 43 | BP48: 0 | BQ48: 0 | BR48: 0 | BS48: 0 | BT48: 0 | BU48: 0 | BV48: 0 | BW48: 0 | BX48: 0
H49: =IF(AA49="","",AA49) ->  | I49: =IF(AF49="","",AF49) ->  | J49: =IF(AK49="","",AK49) ->  | K49: =IF(AP49="","",AP49) ->  | L49: =IF(AU49="","",AU49) ->  | M49: =IF(AU49="","",AU49) ->  | N49: =IF(AZ49="","",AZ49) ->  | O49: =IF(BE49="","",BE49) ->  | Q49: =AD49+AI49+AN49+AS49+AX49+BC49+BH49+BM49 -> 0 | R49: =IF($F40>=5,IF(AB49="","",AB49),"") ->  | S49: =IF($F40>=5,IF(AG49="","",AG49),"") ->  | T49: =IF($F40>=5,IF(AL49="","",AL49),"") ->  | U49: =IF($F40>=5,IF(AQ49="","",AQ49),"") ->  | W49: =IF($F40>=5,IF(AV49="","",AV49),"") ->  | X49: =IF($F40>=5,IF(BA49="","",BA49),"") ->  | Y49: =IF($F40>=5,IF(BF49="","",BF49),"") ->  | AB49: =IF(ISNUMBER(AA49),(VLOOKUP(AA49,$BO$6:$BP$50,2)),0) -> 0 | AC49: =IF(AA49<>"",5,0) -> 0 | AD49: =AB49+AC49 -> 0 | AG49: =IF(ISNUMBER(AF49),(VLOOKUP(AF49,$BO$6:$BP$50,2)),0) -> 0 | AH49: =IF(AF49<>"",5,0) -> 0 | AI49: =AG49+AH49 -> 0 | AL49: =IF(ISNUMBER(AK49),(VLOOKUP(AK49,$BO$6:$BP$50,2)),0) -> 0 | AM49: =IF(AK49<>"",5,0) -> 0 | AN49: =AL49+AM49 -> 0 | AQ49: =IF(ISNUMBER(AP49),(VLOOKUP(AP49,$BO$6:$BP$50,2)),0) -> 0 | AR49: =IF(AP49<>"",5,0) -> 0 | AS49: =AQ49+AR49 -> 0 | AV49: =IF(ISNUMBER(AU49),(VLOOKUP(AU49,$BO$6:$BP$50,2)),0) -> 0 | AW49: =IF(AU49<>"",5,0) -> 0 | AX49: =AV49+AW49 -> 0 | BA49: =IF(ISNUMBER(AZ49),(VLOOKUP(AZ49,$BO$6:$BP$50,2)),0) -> 0 | BB49: =IF(AZ49<>"",5,0) -> 0 | BC49: =BA49+BB49 -> 0 | BF49: =IF(ISNUMBER(BE49),(VLOOKUP(BE49,$BO$6:$BP$50,2)),0) -> 0 | BG49: =IF(BE49<>"",5,0) -> 0 | BH49: =BF49+BG49 -> 0 | BK49: =IF(ISNUMBER(BJ49),(VLOOKUP(BJ49,$BO$6:$BP$50,2)),0) -> 0 | BL49: =IF(BJ49<>"",5,0) -> 0 | BM49: =BK49+BL49 -> 0 | BO49: 44 | BP49: 0 | BQ49: 0 | BR49: 0 | BS49: 0 | BT49: 0 | BU49: 0 | BV49: 0 | BW49: 0 | BX49: 0
Q50: 0 | AI50: 0 | AN50: 0 | AS50: 0 | AX50: 0 | BC50: 0 | BH50: 0 | BM50: 0 | BO50: 45 | BP50: 0 | BQ50: 0 | BR50: 0 | BS50: 0 | BT50: 0 | BU50: 0 | BV50: 0 | BW50: 0 | BX50: 0
Q51: 0 | AI51: 0 | AN51: 0 | AS51: 0 | AX51: 0 | BC51: 0 | BH51: 0 | BM51: 0 | BO51: 46 | BP51: 0 | BQ51: 0 | BR51: 0 | BS51: 0 | BT51: 0 | BU51: 0 | BV51: 0 | BW51: 0 | BX51: 0
Q52: 0 | AI52: 0 | AN52: 0 | AS52: 0 | AX52: 0 | BC52: 0 | BH52: 0 | BM52: 0 | BO52: 47 | BP52: 0 | BQ52: 0 | BR52: 0 | BS52: 0 | BT52: 0 | BU52: 0 | BV52: 0 | BW52: 0 | BX52: 0
BO53: 48 | BP53: 0

Sheet G11 2019
A1: Resultatliste Oslo Cup 2019 - Gutter 11 år
A2: ='Forside 2019'!A2 -> 0
H3: IRS Rennet | I3: Ljan Rennet | J3: Njård Rennet | K3: Ready Rennet | L3: Telenor Arena Cup | M3: Euro-tecfarten | N3: Oslo Alpinfestival SL | O3: Oslo Alpinfestival SSL | R3: IRS Rennet | S3: Ljan Rennet | T3: Njård Rennet | U3: Ready Rennet | V3: Telenor Arena Cup | W3: Euro-tecfarten | X3: Oslo Alpinfestival SL | Y3: Oslo Alpinfestival SSL | AA3: --------IRS Rennet---------- | AF3: ----------Ljan Rennet--------- | AK3: --------Njård Rennet---------- | AP3: --------Ready Rennet--------- | AU3: -----Telenor Arena Cup---- | AZ3: ------Euro-tecfarten-------- | BE3: ---Oslo Alpinfestival SL--- | BJ3: ---Oslo Alpinfestival SSL---
F4: Antall | H4: 2018-02-03 | I4: 2018-02-04 | J4: 2018-02-10 | K4: 2018-02-11 | L4: 2018-02-14 | M4: 2018-02-28 | N4: 2018-03-03 | O4: 2018-03-04 | Q4: Poeng | R4: 2018-02-03 | S4: 2018-02-04 | T4: 2018-02-10 | U4: 2018-02-11 | V4: 2018-02-14 | W4: 2018-02-28 | X4: 2018-03-03 | Y4: 2018-03-04 | AB4: --------Poeng-------- | AG4: --------Poeng-------- | AL4: -------Poeng--------- | AQ4: -------Poeng--------- | AV4: -------Poeng--------- | BA4: -------Poeng--------- | BF4: -------Poeng--------- | BK4: -------Poeng--------- | BQ4: Løpere med | BR4: Løpere med | BS4: Løpere med | BT4: Løpere med | BU4: Løpere med | BV4: Løpere med | BW4: Løpere med | BX4: Løpere med
A5: Plass | B5: Etternavn | C5: Fornavn | D5: Klubb | E5: Poeng | F5: renn | H5: ------------------------------Plassering i rennene--------------------------------- | Q5: brutto | R5: ----------------Resultatpoeng hvis mer enn 6 renn---------------- | AA5: Plass | AB5: Res. | AC5: Del. | AD5: Tot. | AF5: Plass | AG5: Res. | AH5: Del. | AI5: Tot. | AK5: Plass | AL5: Res. | AM5: Del. | AN5: Tot. | AP5: Plass | AQ5: Res. | AR5: Del. | AS5: Tot. | AU5: Plass | AV5: Res. | AW5: Del. | AX5: Tot. | AZ5: Plass | BA5: Res. | BB5: Del. | BC5: Tot. | BE5: Plass | BF5: Res. | BG5: Del. | BH5: Tot. | BJ5: Plass | BK5: Res. | BL5: Del. | BM5: Tot. | BO5: Plass | BP5: Poeng | BQ5: 8 renn | BR5: 7 renn | BS5: 6 renn | BT5: 5 renn | BU5: 4 renn | BV5: 3 renn | BW5: 2 renn | BX5: kun 1 renn
A6: =IF(E6<E5,BO6,A5) -> 1 | B6: Stubsrud | C6: Tobias | D6: Heming, IL - Ski | E6: =IF(F6<=6,Q6,(Q6-SUM(SMALL(R6:Y6,{1;2})))) -> 635 | F6: =(IF(AC6=5,1,0)+IF(AH6=5,1,0)+IF(AM6=5,1,0)+IF(AR6=5,1,0)+IF(AW6=5,1,0)+IF(BB6=5,1,0)+IF(BG6=5,1,0)+IF(BL6=5,1,0)) -> 7 | H6: =IF(AA6="","",AA6) -> DSQ | I6: =IF(AF6="","",AF6) -> 1 | J6: =IF(AK6="","",AK6) -> 1 | K6: =IF(AP6="","",AP6) -> 1 | L6: =IF(AU6="","",AU6) -> 1 | M6: =IF(AZ6="","",AZ6) ->  | N6: =IF(BE6="","",BE6) -> 1 | O6: =IF(BJ6="","",BJ6) -> 1 | Q6: =AD6+AI6+AN6+AS6+AX6+BC6+BH6+BM6 -> 635 | R6: =IF($F6>=7,IF(AB6="","",AB6),"") -> 0 | S6: =IF($F6>=7,IF(AG6="","",AG6),"") -> 100 | T6: =IF($F6>=7,IF(AL6="","",AL6),"") -> 100 | U6: =IF($F6>=7,IF(AQ6="","",AQ6),"") -> 100 | V6: =IF($F6>=7,IF(AV6="","",AV6),"") -> 100 | W6: =IF($F6>=7,IF(BA6="","",BA6),"") -> 0 | X6: =IF($F6>=7,IF(BF6="","",BF6),"") -> 100 | Y6: =IF($F6>=7,IF(BK6="","",BK6),"") -> 100 | AA6: DSQ | AB6: =IF(ISNUMBER(AA6),(VLOOKUP(AA6,$BO$6:$BP$50,2)),0) -> 0 | AC6: =IF(AA6<>"",5,0) -> 5 | AD6: =AB6+AC6 -> 5 | AF6: 1 | AG6: =IF(ISNUMBER(AF6),(VLOOKUP(AF6,$BO$6:$BP$50,2)),0) -> 100 | AH6: =IF(AF6<>"",5,0) -> 5 | AI6: =AG6+AH6 -> 105 | AK6: 1 | AL6: =IF(ISNUMBER(AK6),(VLOOKUP(AK6,$BO$6:$BP$50,2)),0) -> 100 | AM6: =IF(AK6<>"",5,0) -> 5 | AN6: =AL6+AM6 -> 105 | AP6: 1 | AQ6: =IF(ISNUMBER(AP6),(VLOOKUP(AP6,$BO$6:$BP$50,2)),0) -> 100 | AR6: =IF(AP6<>"",5,0) -> 5 | AS6: =AQ6+AR6 -> 105 | AU6: 1 | AV6: =IF(ISNUMBER(AU6),(VLOOKUP(AU6,$BO$6:$BP$50,2)),0) -> 100 | AW6: =IF(AU6<>"",5,0) -> 5 | AX6: =AV6+AW6 -> 105 | BA6: =IF(ISNUMBER(AZ6),(VLOOKUP(AZ6,$BO$6:$BP$50,2)),0) -> 0 | BB6: =IF(AZ6<>"",5,0) -> 0 | BC6: =BA6+BB6 -> 0 | BE6: 1 | BF6: =IF(ISNUMBER(BE6),(VLOOKUP(BE6,$BO$6:$BP$50,2)),0) -> 100 | BG6: =IF(BE6<>"",5,0) -> 5 | BH6: =BF6+BG6 -> 105 | BJ6: 1 | BK6: =IF(ISNUMBER(BJ6),(VLOOKUP(BJ6,$BO$6:$BP$50,2)),0) -> 100 | BL6: =IF(BJ6<>"",5,0) -> 5 | BM6: =BK6+BL6 -> 105 | BO6: 1 | BP6: 100 | BQ6: =IF($F6=8,1,0) -> 0 | BR6: =IF($F6=7,1,0) -> 1 | BS6: =IF($F6=6,1,0) -> 0 | BT6: =IF($F6=5,1,0) -> 0 | BU6: =IF($F6=4,1,0) -> 0 | BV6: =IF($F6=3,1,0) -> 0 | BW6: =IF($F6=2,1,0) -> 0 | BX6: =IF($F6=1,1,0) -> 0
A7: 2 | B7: Vigsnæs | C7: Kjell Conrad Ulrichsen | D7: Heming, IL - Ski | E7: =IF(F7<=6,Q7,(Q7-SUM(SMALL(R7:Y7,{1;2})))) -> 455 | F7: 7 | H7: 1 | I7: 3 | J7: 3 | K7: 3 | L7: 4 | N7: 3 | O7: 2 | Q7: 505 | R7: 100 | S7: 60 | T7: 60 | U7: 60 | V7: 50 | W7: 0 | X7: 60 | Y7: 80 | AA7: 1 | AB7: 100 | AC7: 5 | AD7: 105 | AF7: 3 | AG7: 60 | AH7: 5 | AI7: 65 | AK7: 3 | AL7: 60 | AM7: 5 | AN7: 65 | AP7: 3 | AQ7: 60 | AR7: 5 | AS7: 65 | AU7: 4 | AV7: 50 | AW7: 5 | AX7: 55 | BA7: 0 | BB7: 0 | BC7: 0 | BE7: 3 | BF7: 60 | BG7: 5 | BH7: 65 | BJ7: 2 | BK7: 80 | BL7: 5 | BM7: 85 | BO7: 2 | BP7: 80 | BQ7: =IF($F7=8,1,0) -> 0 | BR7: 1 | BS7: 0 | BT7: 0 | BU7: 0 | BV7: 0 | BW7: 0 | BX7: 0
A8: 3 | B8: Aasen | C8: Sondre | D8: Ingierkollen/Rustad Slalomklubb - Ski | E8: =IF(F8<=6,Q8,(Q8-SUM(SMALL(R8:Y8,{1;2})))) -> 386 | F8: 8 | H8: 3 | I8: 2 | J8: 4 | K8: 7 | L8: 7 | M8: 2 | N8: 7 | O8: 6 | Q8: 458 | R8: 60 | S8: 80 | T8: 50 | U8: 36 | V8: 36 | W8: 80 | X8: 36 | Y8: 40 | AA8: 3 | AB8: 60 | AC8: 5 | AD8: 65 | AF8: 2 | AG8: 80 | AH8: 5 | AI8: 85 | AK8: 4 | AL8: 50 | AM8: 5 | AN8: 55 | AP8: 7 | AQ8: 36 | AR8: 5 | AS8: 41 | AU8: 7 | AV8: 36 | AW8: 5 | AX8: 41 | AZ8: 2 | BA8: 80 | BB8: 5 | BC8: 85 | BE8: 7 | BF8: 36 | BG8: 5 | BH8: 41 | BJ8: 6 | BK8: 40 | BL8: 5 | BM8: 45 | BO8: 3 | BP8: 60 | BQ8: 1 | BR8: 0 | BS8: 0 | BT8: 0 | BU8: 0 | BV8: 0 | BW8: 0 | BX8: 0
A9: 4 | B9: Wroll-Evensen | C9: Henrik | D9: Heming, IL - Ski | E9: =IF(F9<=6,Q9,(Q9-SUM(SMALL(R9:Y9,{1;2})))) -> 340 | F9: 7 | H9: DSQ | I9: 4 | J9: 7 | K9: 2 | L9: 9 | N9: 4 | O9: 3 | Q9: 340 | R9: 0 | S9: 50 | T9: 36 | U9: 80 | V9: 29 | W9: 0 | X9: 50 | Y9: 60 | AA9: DSQ | AB9: 0 | AC9: 5 | AD9: 5 | AF9: 4 | AG9: 50 | AH9: 5 | AI9: 55 | AK9: 7 | AL9: 36 | AM9: 5 | AN9: 41 | AP9: 2 | AQ9: 80 | AR9: 5 | AS9: 85 | AU9: 9 | AV9: 29 | AW9: 5 | AX9: 34 | BA9: 0 | BB9: 0 | BC9: 0 | BE9: 4 | BF9: 50 | BG9: 5 | BH9: 55 | BJ9: 3 | BK9: 60 | BL9: 5 | BM9: 65 | BO9: 4 | BP9: 50 | BQ9: 0 | BR9: 1 | BS9: 0 | BT9: 0 | BU9: 0 | BV9: 0 | BW9: 0 | BX9: 0
A10: 5 | B10: Simonsen | C10: Olav | D10: Ready - Ski | E10: =IF(F10<=6,Q10,(Q10-SUM(SMALL(R10:Y10,{1;2})))) -> 322 | F10: 8 | H10: 5 | I10: DSQ | J10: 18 | K10: 5 | L10: 8 | M10: 1 | N10: 11 | O10: 7 | Q10: 335 | R10: 45 | S10: 0 | T10: 13 | U10: 45 | V10: 32 | W10: 100 | X10: 24 | Y10: 36 | AA10: 5 | AB10: 45 | AC10: 5 | AD10: 50 | AF10: DSQ | AG10: 0 | AH10: 5 | AI10: 5 | AK10: 18 | AL10: 13 | AM10: 5 | AN10: 18 | AP10: 5 | AQ10: 45 | AR10: 5 | AS10: 50 | AU10: 8 | AV10: 32 | AW10: 5 | AX10: 37 | AZ10: 1 | BA10: 100 | BB10: 5 | BC10: 105 | BE10: 11 | BF10: 24 | BG10: 5 | BH10: 29 | BJ10: 7 | BK10: 36 | BL10: 5 | BM10: 41 | BO10: 5 | BP10: 45 | BQ10: 1 | BR10: 0 | BS10: 0 | BT10: 0 | BU10: 0 | BV10: 0 | BW10: 0 | BX10: 0
A11: 6 | B11: Hiorth | C11: Wilhelm Fredrik | D11: Heming, IL - Ski | E11: =IF(F11<=6,Q11,(Q11-SUM(SMALL(R11:Y11,{1;2})))) -> 245 | F11: 7 | H11: 8 | I11: 5 | J11: 15 | K11: 6 | L11: 15 | N11: 8 | O11: 5 | Q11: 261 | R11: 32 | S11: 45 | T11: 16 | U11: 40 | V11: 16 | W11: 0 | X11: 32 | Y11: 45 | AA11: 8 | AB11: 32 | AC11: 5 | AD11: 37 | AF11: 5 | AG11: 45 | AH11: 5 | AI11: 50 | AK11: 15 | AL11: 16 | AM11: 5 | AN11: 21 | AP11: 6 | AQ11: 40 | AR11: 5 | AS11: 45 | AU11: 15 | AV11: 16 | AW11: 5 | AX11: 21 | BA11: 0 | BB11: 0 | BC11: 0 | BE11: 8 | BF11: 32 | BG11: 5 | BH11: 37 | BJ11: 5 | BK11: 45 | BL11: 5 | BM11: 50 | BO11: 6 | BP11: 40 | BQ11: 0 | BR11: 1 | BS11: 0 | BT11: 0 | BU11: 0 | BV11: 0 | BW11: 0 | BX11: 0
A12: 7 | B12: Finn-Hansen | C12: Fredrik | D12: Heming, IL - Ski | E12: =IF(F12<=6,Q12,(Q12-SUM(SMALL(R12:Y12,{1;2})))) -> 182 | F12: 6 | H12: 6 | I12: 6 | J12: 8 | L12: DNF | N12: 6 | O12: DNF | Q12: 182 | AA12: 6 | AB12: 40 | AC12: 5 | AD12: 45 | AF12: 6 | AG12: 40 | AH12: 5 | AI12: 45 | AK12: 8 | AL12: 32 | AM12: 5 | AN12: 37 | AQ12: 0 | AR12: 0 | AS12: 0 | AU12: DNF | AV12: 0 | AW12: 5 | AX12: 5 | BA12: 0 | BB12: 0 | BC12: 0 | BE12: 6 | BF12: 40 | BG12: 5 | BH12: 45 | BJ12: DNF | BK12: 0 | BL12: 5 | BM12: 5 | BO12: 7 | BP12: 36 | BQ12: 0 | BR12: 0 | BS12: 1 | BT12: 0 | BU12: 0 | BV12: 0 | BW12: 0 | BX12: 0
A13: 7 | B13: Sommerseth | C13: Mikkel | D13: Bærums Skiklub - Ski | E13: =IF(F13<=6,Q13,(Q13-SUM(SMALL(R13:Y13,{1;2})))) -> 182 | F13: 4 | H13: 4 | J13: 6 | K13: 4 | L13: 12 | Q13: 182 | AA13: 4 | AB13: 50 | AC13: 5 | AD13: 55 | AG13: 0 | AH13: 0 | AI13: 0 | AK13: 6 | AL13: 40 | AM13: 5 | AN13: 45 | AP13: 4 | AQ13: 50 | AR13: 5 | AS13: 55 | AU13: 12 | AV13: 22 | AW13: 5 | AX13: 27 | BA13: 0 | BB13: 0 | BC13: 0 | BF13: 0 | BG13: 0 | BH13: 0 | BK13: 0 | BL13: 0 | BM13: 0 | BO13: 8 | BP13: 32 | BQ13: 0 | BR13: 0 | BS13: 0 | BT13: 0 | BU13: 1 | BV13: 0 | BW13: 0 | BX13: 0
A14: 9 | B14: Torrissen | C14: Linus Ingulstad | D14: Kjelsås IL - Ski | E14: =IF(F14<=6,Q14,(Q14-SUM(SMALL(R14:Y14,{1;2})))) -> 180 | F14: 6 | H14: 7 | I14: 9 | K14: 13 | L14: 21 | N14: 10 | O14: 9 | Q14: 180 | AA14: 7 | AB14: 36 | AC14: 5 | AD14: 41 | AF14: 9 | AG14: 29 | AH14: 5 | AI14: 34 | AL14: 0 | AM14: 0 | AN14: 0 | AP14: 13 | AQ14: 20 | AR14: 5 | AS14: 25 | AU14: 21 | AV14: 10 | AW14: 5 | AX14: 15 | BA14: 0 | BB14: 0 | BC14: 0 | BE14: 10 | BF14: 26 | BG14: 5 | BH14: 31 | BJ14: 9 | BK14: 29 | BL14: 5 | BM14: 34 | BO14: 9 | BP14: 29 | BQ14: 0 | BR14: 0 | BS14: 1 | BT14: 0 | BU14: 0 | BV14: 0 | BW14: 0 | BX14: 0
A15: 10 | B15: Orholm | C15: Herman Fredrick | D15: Heming, IL - Ski | E15: =IF(F15<=6,Q15,(Q15-SUM(SMALL(R15:Y15,{1;2})))) -> 164 | F15: 7 | H15: DSQ | I15: 8 | J15: 14 | K15: 11 | L15: 26 | N15: DSQ | O15: 4 | Q15: 164 | R15: 0 | S15: 32 | T15: 18 | U15: 24 | V15: 5 | W15: 0 | X15: 0 | Y15: 50 | AA15: DSQ | AB15: 0 | AC15: 5 | AD15: 5 | AF15: 8 | AG15: 32 | AH15: 5 | AI15: 37 | AK15: 14 | AL15: 18 | AM15: 5 | AN15: 23 | AP15: 11 | AQ15: 24 | AR15: 5 | AS15: 29 | AU15: 26 | AV15: 5 | AW15: 5 | AX15: 10 | BA15: 0 | BB15: 0 | BC15: 0 | BE15: DSQ | BF15: 0 | BG15: 5 | BH15: 5 | BJ15: 4 | BK15: 50 | BL15: 5 | BM15: 55 | BO15: 10 | BP15: 26 | BQ15: 0 | BR15: 1 | BS15: 0 | BT15: 0 | BU15: 0 | BV15: 0 | BW15: 0 | BX15: 0
A16: 11 | B16: Furuseth | C16: Emil Breivik | D16: Kjelsås IL - Ski | E16: =IF(F16<=6,Q16,(Q16-SUM(SMALL(R16:Y16,{1;2})))) -> 163 | F16: 7 | H16: 11 | I16: DSQ | J16: 19 | K16: 12 | L16: 13 | M16: 4 | O16: DNF | Q16: 163 | R16: 24 | S16: 0 | T16: 12 | U16: 22 | V16: 20 | W16: 50 | X16: 0 | Y16: 0 | AA16: 11 | AB16: 24 | AC16: 5 | AD16: 29 | AF16: DSQ | AG16: 0 | AH16: 5 | AI16: 5 | AK16: 19 | AL16: 12 | AM16: 5 | AN16: 17 | AP16: 12 | AQ16: 22 | AR16: 5 | AS16: 27 | AU16: 13 | AV16: 20 | AW16: 5 | AX16: 25 | AZ16: 4 | BA16: 50 | BB16: 5 | BC16: 55 | BF16: 0 | BG16: 0 | BH16: 0 | BJ16: DNF | BK16: 0 | BL16: 5 | BM16: 5 | BO16: 11 | BP16: 24 | BQ16: 0 | BR16: 1 | BS16: 0 | BT16: 0 | BU16: 0 | BV16: 0 | BW16: 0 | BX16: 0
A17: 12 | B17: Stuge | C17: Fredrik | D17: Heming, IL - Ski | E17: =IF(F17<=6,Q17,(Q17-SUM(SMALL(R17:Y17,{1;2})))) -> 155 | F17: 3 | J17: 2 | K17: DNF | L17: 3 | Q17: 155 | AB17: 0 | AC17: 0 | AD17: 0 | AG17: 0 | AH17: 0 | AI17: 0 | AK17: 2 | AL17: 80 | AM17: 5 | AN17: 85 | AP17: DNF | AQ17: 0 | AR17: 5 | AS17: 5 | AU17: 3 | AV17: 60 | AW17: 5 | AX17: 65 | BA17: 0 | BB17: 0 | BC17: 0 | BF17: 0 | BG17: 0 | BH17: 0 | BK17: 0 | BL17: 0 | BM17: 0 | BO17: 12 | BP17: 22 | BQ17: 0 | BR17: 0 | BS17: 0 | BT17: 0 | BU17: 0 | BV17: 1 | BW17: 0 | BX17: 0
A18: 13 | B18: Sandaas | C18: Sebastian | D18: Heming, IL - Ski | E18: =IF(F18<=6,Q18,(Q18-SUM(SMALL(R18:Y18,{1;2})))) -> 146 | F18: 4 | J18: 17 | L18: 2 | N18: DSQ | O18: 8 | Q18: 146 | AB18: 0 | AC18: 0 | AD18: 0 | AG18: 0 | AH18: 0 | AI18: 0 | AK18: 17 | AL18: 14 | AM18: 5 | AN18: 19 | AQ18: 0 | AR18: 0 | AS18: 0 | AU18: 2 | AV18: 80 | AW18: 5 | AX18: 85 | BA18: 0 | BB18: 0 | BC18: 0 | BE18: DSQ | BF18: 0 | BG18: 5 | BH18: 5 | BJ18: 8 | BK18: 32 | BL18: 5 | BM18: 37 | BO18: 13 | BP18: 20 | BQ18: 0 | BR18: 0 | BS18: 0 | BT18: 0 | BU18: 1 | BV18: 0 | BW18: 0 | BX18: 0
A19: 14 | B19: Stray-Larsen | C19: Theis | D19: Stabæk IF - Ski | E19: =IF(F19<=6,Q19,(Q19-SUM(SMALL(R19:Y19,{1;2})))) -> 135 | F19: 2 | H19: 2 | J19: 5 | Q19: 135 | AA19: 2 | AB19: 80 | AC19: 5 | AD19: 85 | AG19: 0 | AH19: 0 | AI19: 0 | AK19: 5 | AL19: 45 | AM19: 5 | AN19: 50 | AQ19: 0 | AR19: 0 | AS19: 0 | AV19: 0 | AW19: 0 | AX19: 0 | BA19: 0 | BB19: 0 | BC19: 0 | BF19: 0 | BG19: 0 | BH19: 0 | BK19: 0 | BL19: 0 | BM19: 0 | BO19: 14 | BP19: 18 | BQ19: 0 | BR19: 0 | BS19: 0 | BT19: 0 | BU19: 0 | BV19: 0 | BW19: 1 | BX19: 0
A20: 15 | B20: Skjeldal | C20: Olav Kaasine | D20: Kjelsås IL - Ski | E20: =IF(F20<=6,Q20,(Q20-SUM(SMALL(R20:Y20,{1;2})))) -> 133 | F20: 8 | H20: 13 | I20: DNF | J20: 25 | K20: 18 | L20: 22 | M20: 5 | N20: DSQ | O20: DNF | Q20: 133 | R20: 20 | S20: 0 | T20: 6 | U20: 13 | V20: 9 | W20: 45 | X20: 0 | Y20: 0 | AA20: 13 | AB20: 20 | AC20: 5 | AD20: 25 | AF20: DNF | AG20: 0 | AH20: 5 | AI20: 5 | AK20: 25 | AL20: 6 | AM20: 5 | AN20: 11 | AP20: 18 | AQ20: 13 | AR20: 5 | AS20: 18 | AU20: 22 | AV20: 9 | AW20: 5 | AX20: 14 | AZ20: 5 | BA20: 45 | BB20: 5 | BC20: 50 | BE20: DSQ | BF20: 0 | BG20: 5 | BH20: 5 | BJ20: DNF | BK20: 0 | BL20: 5 | BM20: 5 | BO20: 15 | BP20: 16 | BQ20: 1 | BR20: 0 | BS20: 0 | BT20: 0 | BU20: 0 | BV20: 0 | BW20: 0 | BX20: 0
A21: 16 | B21: Nilsen | C21: Andre Jay | D21: Kjelsås IL - Ski | E21: =IF(F21<=6,Q21,(Q21-SUM(SMALL(R21:Y21,{1;2})))) -> 129 | F21: 7 | H21: DSQ | I21: 11 | J21: 26 | L21: 29 | M21: 8 | N21: 16 | O21: 15 | Q21: 129 | R21: 0 | S21: 24 | T21: 5 | U21: 0 | V21: 2 | W21: 32 | X21: 15 | Y21: 16 | AA21: DSQ | AB21: 0 | AC21: 5 | AD21: 5 | AF21: 11 | AG21: 24 | AH21: 5 | AI21: 29 | AK21: 26 | AL21: 5 | AM21: 5 | AN21: 10 | AQ21: 0 | AR21: 0 | AS21: 0 | AU21: 29 | AV21: 2 | AW21: 5 | AX21: 7 | AZ21: 8 | BA21: 32 | BB21: 5 | BC21: 37 | BE21: 16 | BF21: 15 | BG21: 5 | BH21: 20 | BJ21: 15 | BK21: 16 | BL21: 5 | BM21: 21 | BO21: 16 | BP21: 15 | BQ21: 0 | BR21: 1 | BS21: 0 | BT21: 0 | BU21: 0 | BV21: 0 | BW21: 0 | BX21: 0
A22: 17 | B22: Hommerstad | C22: Thorvald Bakken | D22: Kjelsås IL - Ski | E22: =IF(F22<=6,Q22,(Q22-SUM(SMALL(R22:Y22,{1;2})))) -> 111 | F22: 7 | H22: DSQ | I22: DSQ | J22: DSQ | K22: 16 | L22: 16 | N22: 12 | O22: 11 | Q22: 111 | R22: 0 | S22: 0 | T22: 0 | U22: 15 | V22: 15 | W22: 0 | X22: 22 | Y22: 24 | AA22: DSQ | AB22: 0 | AC22: 5 | AD22: 5 | AF22: DSQ | AG22: 0 | AH22: 5 | AI22: 5 | AK22: DSQ | AL22: 0 | AM22: 5 | AN22: 5 | AP22: 16 | AQ22: 15 | AR22: 5 | AS22: 20 | AU22: 16 | AV22: 15 | AW22: 5 | AX22: 20 | BA22: 0 | BB22: 0 | BC22: 0 | BE22: 12 | BF22: 22 | BG22: 5 | BH22: 27 | BJ22: 11 | BK22: 24 | BL22: 5 | BM22: 29 | BO22: 17 | BP22: 14 | BQ22: 0 | BR22: 1 | BS22: 0 | BT22: 0 | BU22: 0 | BV22: 0 | BW22: 0 | BX22: 0
A23: 18 | B23: Skisaker | C23: Kristian Benedikt | D23: Heming, IL - Ski | E23: =IF(F23<=6,Q23,(Q23-SUM(SMALL(R23:Y23,{1;2})))) -> 103 | F23: 5 | H23: 14 | I23: 10 | J23: 23 | K23: 14 | L23: 23 | Q23: 103 | AA23: 14 | AB23: 18 | AC23: 5 | AD23: 23 | AF23: 10 | AG23: 26 | AH23: 5 | AI23: 31 | AK23: 23 | AL23: 8 | AM23: 5 | AN23: 13 | AP23: 14 | AQ23: 18 | AR23: 5 | AS23: 23 | AU23: 23 | AV23: 8 | AW23: 5 | AX23: 13 | BA23: 0 | BB23: 0 | BC23: 0 | BF23: 0 | BG23: 0 | BH23: 0 | BK23: 0 | BL23: 0 | BM23: 0 | BO23: 18 | BP23: 13 | BQ23: 0 | BR23: 0 | BS23: 0 | BT23: 1 | BU23: 0 | BV23: 0 | BW23: 0 | BX23: 0
A24: 19 | B24: Valderhaug | C24: Marcus | D24: Heming, IL - Ski | E24: =IF(F24<=6,Q24,(Q24-SUM(SMALL(R24:Y24,{1;2})))) -> 102 | F24: 5 | J24: 24 | K24: 17 | L24: 17 | N24: 13 | O24: 12 | Q24: 102 | AB24: 0 | AC24: 0 | AD24: 0 | AG24: 0 | AH24: 0 | AI24: 0 | AK24: 24 | AL24: 7 | AM24: 5 | AN24: 12 | AP24: 17 | AQ24: 14 | AR24: 5 | AS24: 19 | AU24: 17 | AV24: 14 | AW24: 5 | AX24: 19 | BA24: 0 | BB24: 0 | BC24: 0 | BE24: 13 | BF24: 20 | BG24: 5 | BH24: 25 | BJ24: 12 | BK24: 22 | BL24: 5 | BM24: 27 | BO24: 19 | BP24: 12 | BQ24: 0 | BR24: 0 | BS24: 0 | BT24: 1 | BU24: 0 | BV24: 0 | BW24: 0 | BX24: 0
A25: 20 | B25: Kulseng-Hansen | C25: Jacob | D25: Heming, IL - Ski | E25: =IF(F25<=6,Q25,(Q25-SUM(SMALL(R25:Y25,{1;2})))) -> 101 | F25: 3 | J25: 16 | L25: 10 | N25: 5 | Q25: 101 | AB25: 0 | AC25: 0 | AD25: 0 | AG25: 0 | AH25: 0 | AI25: 0 | AK25: 16 | AL25: 15 | AM25: 5 | AN25: 20 | AQ25: 0 | AR25: 0 | AS25: 0 | AU25: 10 | AV25: 26 | AW25: 5 | AX25: 31 | BA25: 0 | BB25: 0 | BC25: 0 | BE25: 5 | BF25: 45 | BG25: 5 | BH25: 50 | BK25: 0 | BL25: 0 | BM25: 0 | BO25: 20 | BP25: 11 | BQ25: 0 | BR25: 0 | BS25: 0 | BT25: 0 | BU25: 0 | BV25: 1 | BW25: 0 | BX25: 0
A26: 21 | B26: Brodtkorb | C26: Jeppe | D26: Heming, IL - Ski | E26: =IF(F26<=6,Q26,(Q26-SUM(SMALL(R26:Y26,{1;2})))) -> 100 | F26: 5 | J26: 12 | K26: DNF | L26: 11 | N26: 9 | O26: DSQ | Q26: 100 | AB26: 0 | AC26: 0 | AD26: 0 | AG26: 0 | AH26: 0 | AI26: 0 | AK26: 12 | AL26: 22 | AM26: 5 | AN26: 27 | AP26: DNF | AQ26: 0 | AR26: 5 | AS26: 5 | AU26: 11 | AV26: 24 | AW26: 5 | AX26: 29 | BA26: 0 | BB26: 0 | BC26: 0 | BE26: 9 | BF26: 29 | BG26: 5 | BH26: 34 | BJ26: DSQ | BK26: 0 | BL26: 5 | BM26: 5 | BO26: 21 | BP26: 10 | BQ26: 0 | BR26: 0 | BS26: 0 | BT26: 1 | BU26: 0 | BV26: 0 | BW26: 0 | BX26: 0
A27: 22 | B27: Eliassen | C27: Rasmus Nordløkken | D27: Heming, IL - Ski | E27: =IF(F27<=6,Q27,(Q27-SUM(SMALL(R27:Y27,{1;2})))) -> 98 | F27: 4 | J27: 10 | K27: 10 | L27: DNF | O27: 10 | Q27: 98 | AB27: 0 | AC27: 0 | AD27: 0 | AG27: 0 | AH27: 0 | AI27: 0 | AK27: 10 | AL27: 26 | AM27: 5 | AN27: 31 | AP27: 10 | AQ27: 26 | AR27: 5 | AS27: 31 | AU27: DNF | AV27: 0 | AW27: 5 | AX27: 5 | BA27: 0 | BB27: 0 | BC27: 0 | BF27: 0 | BG27: 0 | BH27: 0 | BJ27: 10 | BK27: 26 | BL27: 5 | BM27: 31 | BO27: 22 | BP27: 9 | BQ27: 0 | BR27: 0 | BS27: 0 | BT27: 0 | BU27: 1 | BV27: 0 | BW27: 0 | BX27: 0
A28: 23 | B28: Hareide Vedal | C28: Aleksander | E28: =IF(F28<=6,Q28,(Q28-SUM(SMALL(R28:Y28,{1;2})))) -> 94 | F28: 2 | L28: 27 | N28: 2 | Q28: 94 | AB28: 0 | AC28: 0 | AD28: 0 | AG28: 0 | AH28: 0 | AI28: 0 | AL28: 0 | AM28: 0 | AN28: 0 | AQ28: 0 | AR28: 0 | AS28: 0 | AU28: 27 | AV28: 4 | AW28: 5 | AX28: 9 | BA28: 0 | BB28: 0 | BC28: 0 | BE28: 2 | BF28: 80 | BG28: 5 | BH28: 85 | BK28: 0 | BL28: 0 | BM28: 0 | BO28: 23 | BP28: 8 | BQ28: 0 | BR28: 0 | BS28: 0 | BT28: 0 | BU28: 0 | BV28: 0 | BW28: 1 | BX28: 0
A29: 24 | B29: Cock | C29: Oscar | D29: Heming, IL - Ski | E29: =IF(F29<=6,Q29,(Q29-SUM(SMALL(R29:Y29,{1;2})))) -> 93 | F29: 4 | H29: 10 | I29: 7 | J29: 20 | O29: DSQ | Q29: 93 | AA29: 10 | AB29: 26 | AC29: 5 | AD29: 31 | AF29: 7 | AG29: 36 | AH29: 5 | AI29: 41 | AK29: 20 | AL29: 11 | AM29: 5 | AN29: 16 | AQ29: 0 | AR29: 0 | AS29: 0 | AV29: 0 | AW29: 0 | AX29: 0 | BA29: 0 | BB29: 0 | BC29: 0 | BF29: 0 | BG29: 0 | BH29: 0 | BJ29: DSQ | BK29: 0 | BL29: 5 | BM29: 5 | BO29: 24 | BP29: 7 | BQ29: 0 | BR29: 0 | BS29: 0 | BT29: 0 | BU29: 1 | BV29: 0 | BW29: 0 | BX29: 0
A30: 25 | B30: Weiss | C30: Christopher Waller | D30: Stabæk IF - Ski | E30: =IF(F30<=6,Q30,(Q30-SUM(SMALL(R30:Y30,{1;2})))) -> 87 | F30: 2 | K30: 8 | L30: 5 | Q30: 87 | AB30: 0 | AC30: 0 | AD30: 0 | AG30: 0 | AH30: 0 | AI30: 0 | AL30: 0 | AM30: 0 | AN30: 0 | AP30: 8 | AQ30: 32 | AR30: 5 | AS30: 37 | AU30: 5 | AV30: 45 | AW30: 5 | AX30: 50 | BA30: 0 | BB30: 0 | BC30: 0 | BF30: 0 | BG30: 0 | BH30: 0 | BK30: 0 | BL30: 0 | BM30: 0 | BO30: 25 | BP30: 6 | BQ30: 0 | BR30: 0 | BS30: 0 | BT30: 0 | BU30: 0 | BV30: 0 | BW30: 1 | BX30: 0
A31: 26 | B31: Lanseng | C31: Mathias | D31: Kjelsås IL - Ski | E31: =IF(F31<=6,Q31,(Q31-SUM(SMALL(R31:Y31,{1;2})))) -> 78 | F31: 4 | L31: 31 | M31: 9 | N31: 17 | O31: 16 | Q31: 78 | AB31: 0 | AC31: 0 | AD31: 0 | AG31: 0 | AH31: 0 | AI31: 0 | AL31: 0 | AM31: 0 | AN31: 0 | AQ31: 0 | AR31: 0 | AS31: 0 | AU31: 31 | AV31: 0 | AW31: 5 | AX31: 5 | AZ31: 9 | BA31: 29 | BB31: 5 | BC31: 34 | BE31: 17 | BF31: 14 | BG31: 5 | BH31: 19 | BJ31: 16 | BK31: 15 | BL31: 5 | BM31: 20 | BO31: 26 | BP31: 5 | BQ31: 0 | BR31: 0 | BS31: 0 | BT31: 0 | BU31: 1 | BV31: 0 | BW31: 0 | BX31: 0
A32: 27 | B32: Moe | C32: Christian Alexander Bang | D32: Bærums Skiklub - Ski | E32: =IF(F32<=6,Q32,(Q32-SUM(SMALL(R32:Y32,{1;2})))) -> 73 | F32: 3 | H32: 12 | N32: 14 | O32: 14 | Q32: 73 | AA32: 12 | AB32: 22 | AC32: 5 | AD32: 27 | AG32: 0 | AH32: 0 | AI32: 0 | AL32: 0 | AM32: 0 | AN32: 0 | AQ32: 0 | AR32: 0 | AS32: 0 | AV32: 0 | AW32: 0 | AX32: 0 | BA32: 0 | BB32: 0 | BC32: 0 | BE32: 14 | BF32: 18 | BG32: 5 | BH32: 23 | BJ32: 14 | BK32: 18 | BL32: 5 | BM32: 23 | BO32: 27 | BP32: 4 | BQ32: 0 | BR32: 0 | BS32: 0 | BT32: 0 | BU32: 0 | BV32: 1 | BW32: 0 | BX32: 0
A33: 28 | B33: Egner | C33: Richard Christoffer | D33: Njård - Ski | E33: =IF(F33<=6,Q33,(Q33-SUM(SMALL(R33:Y33,{1;2})))) -> 72 | F33: 4 | J33: 27 | K33: 19 | M33: 11 | N33: 19 | Q33: 72 | AB33: 0 | AC33: 0 | AD33: 0 | AG33: 0 | AH33: 0 | AI33: 0 | AK33: 27 | AL33: 4 | AM33: 5 | AN33: 9 | AP33: 19 | AQ33: 12 | AR33: 5 | AS33: 17 | AV33: 0 | AW33: 0 | AX33: 0 | AZ33: 11 | BA33: 24 | BB33: 5 | BC33: 29 | BE33: 19 | BF33: 12 | BG33: 5 | BH33: 17 | BK33: 0 | BL33: 0 | BM33: 0 | BO33: 28 | BP33: 3 | BQ33: 0 | BR33: 0 | BS33: 0 | BT33: 0 | BU33: 1 | BV33: 0 | BW33: 0 | BX33: 0
A34: 29 | B34: Berg | C34: Eskil | D34: Rælingen Skiklubb - Ski | E34: =IF(F34<=6,Q34,(Q34-SUM(SMALL(R34:Y34,{1;2})))) -> 65 | F34: 1 | M34: 3 | Q34: 65 | AB34: 0 | AC34: 0 | AD34: 0 | AG34: 0 | AH34: 0 | AI34: 0 | AL34: 0 | AM34: 0 | AN34: 0 | AQ34: 0 | AR34: 0 | AS34: 0 | AV34: 0 | AW34: 0 | AX34: 0 | AZ34: 3 | BA34: 60 | BB34: 5 | BC34: 65 | BF34: 0 | BG34: 0 | BH34: 0 | BK34: 0 | BL34: 0 | BM34: 0 | BO34: 29 | BP34: 2 | BQ34: 0 | BR34: 0 | BS34: 0 | BT34: 0 | BU34: 0 | BV34: 0 | BW34: 0 | BX34: 1
A35: 30 | B35: Kildal | C35: August | D35: Kjelsås IL - Ski | E35: =IF(F35<=6,Q35,(Q35-SUM(SMALL(R35:Y35,{1;2})))) -> 58 | F35: 3 | J35: 21 | L35: 18 | O35: 13 | Q35: 58 | AB35: 0 | AC35: 0 | AD35: 0 | AG35: 0 | AH35: 0 | AI35: 0 | AK35: 21 | AL35: 10 | AM35: 5 | AN35: 15 | AQ35: 0 | AR35: 0 | AS35: 0 | AU35: 18 | AV35: 13 | AW35: 5 | AX35: 18 | BA35: 0 | BB35: 0 | BC35: 0 | BF35: 0 | BG35: 0 | BH35: 0 | BJ35: 13 | BK35: 20 | BL35: 5 | BM35: 25 | BO35: 30 | BP35: 1 | BQ35: 0 | BR35: 0 | BS35: 0 | BT35: 0 | BU35: 0 | BV35: 1 | BW35: 0 | BX35: 0
A36: 31 | B36: Midtbø | C36: Petter Albert | D36: Heming, IL - Ski | E36: =IF(F36<=6,Q36,(Q36-SUM(SMALL(R36:Y36,{1;2})))) -> 56 | F36: 4 | J36: 9 | L36: 24 | N36: DSQ | O36: DNF | Q36: 56 | AB36: 0 | AC36: 0 | AD36: 0 | AG36: 0 | AH36: 0 | AI36: 0 | AK36: 9 | AL36: 29 | AM36: 5 | AN36: 34 | AQ36: 0 | AR36: 0 | AS36: 0 | AU36: 24 | AV36: 7 | AW36: 5 | AX36: 12 | BA36: 0 | BB36: 0 | BC36: 0 | BE36: DSQ | BF36: 0 | BG36: 5 | BH36: 5 | BJ36: DNF | BK36: 0 | BL36: 5 | BM36: 5 | BO36: 31 | BP36: 0 | BQ36: 0 | BR36: 0 | BS36: 0 | BT36: 0 | BU36: 1 | BV36: 0 | BW36: 0 | BX36: 0
A37: 32 | B37: Nordklev | C37: Elias | D37: Heming, IL - Ski | E37: =IF(F37<=6,Q37,(Q37-SUM(SMALL(R37:Y37,{1;2})))) -> 52 | F37: 2 | J37: 11 | L37: 14 | Q37: 52 | AB37: 0 | AC37: 0 | AD37: 0 | AG37: 0 | AH37: 0 | AI37: 0 | AK37: 11 | AL37: 24 | AM37: 5 | AN37: 29 | AQ37: 0 | AR37: 0 | AS37: 0 | AU37: 14 | AV37: 18 | AW37: 5 | AX37: 23 | BA37: 0 | BB37: 0 | BC37: 0 | BF37: 0 | BG37: 0 | BH37: 0 | BK37: 0 | BL37: 0 | BM37: 0 | BO37: 32 | BP37: 0 | BQ37: 0 | BR37: 0 | BS37: 0 | BT37: 0 | BU37: 0 | BV37: 0 | BW37: 1 | BX37: 0
A38: =IF(E38<E37,BO38,A37) -> 33 | B38: Lorentsen | C38: Aksel | D38: Rælingen Skiklubb - Ski | E38: =IF(F38<=6,Q38,(Q38-SUM(SMALL(R38:Y38,{1;2})))) -> 45 | F38: =(IF(AC38=5,1,0)+IF(AH38=5,1,0)+IF(AM38=5,1,0)+IF(AR38=5,1,0)+IF(AW38=5,1,0)+IF(BB38=5,1,0)+IF(BG38=5,1,0)+IF(BL38=5,1,0)) -> 1 | H38: =IF(AA38="","",AA38) ->  | I38: =IF(AF38="","",AF38) ->  | J38: =IF(AK38="","",AK38) ->  | K38: =IF(AP38="","",AP38) ->  | L38: =IF(AU38="","",AU38) ->  | M38: =IF(AZ38="","",AZ38) -> 6 | N38: =IF(BE38="","",BE38) ->  | O38: =IF(BJ38="","",BJ38) ->  | Q38: =AD38+AI38+AN38+AS38+AX38+BC38+BH38+BM38 -> 45 | R38: =IF($F38>=7,IF(AB38="","",AB38),"") ->  | S38: =IF($F38>=7,IF(AG38="","",AG38),"") ->  | T38: =IF($F38>=7,IF(AL38="","",AL38),"") ->  | U38: =IF($F38>=7,IF(AQ38="","",AQ38),"") ->  | V38: =IF($F38>=7,IF(AV38="","",AV38),"") ->  | W38: =IF($F38>=7,IF(BA38="","",BA38),"") ->  | X38: =IF($F38>=7,IF(BF38="","",BF38),"") ->  | Y38: =IF($F38>=7,IF(BK38="","",BK38),"") ->  | AB38: =IF(ISNUMBER(AA38),(VLOOKUP(AA38,$BO$6:$BP$50,2)),0) -> 0 | AC38: =IF(AA38<>"",5,0) -> 0 | AD38: =AB38+AC38 -> 0 | AG38: =IF(ISNUMBER(AF38),(VLOOKUP(AF38,$BO$6:$BP$50,2)),0) -> 0 | AH38: =IF(AF38<>"",5,0) -> 0 | AI38: =AG38+AH38 -> 0 | AL38: =IF(ISNUMBER(AK38),(VLOOKUP(AK38,$BO$6:$BP$50,2)),0) -> 0 | AM38: =IF(AK38<>"",5,0) -> 0 | AN38: =AL38+AM38 -> 0 | AQ38: =IF(ISNUMBER(AP38),(VLOOKUP(AP38,$BO$6:$BP$50,2)),0) -> 0 | AR38: =IF(AP38<>"",5,0) -> 0 | AS38: =AQ38+AR38 -> 0 | AV38: =IF(ISNUMBER(AU38),(VLOOKUP(AU38,$BO$6:$BP$50,2)),0) -> 0 | AW38: =IF(AU38<>"",5,0) -> 0 | AX38: =AV38+AW38 -> 0 | AZ38: 6 | BA38: =IF(ISNUMBER(AZ38),(VLOOKUP(AZ38,$BO$6:$BP$50,2)),0) -> 40 | BB38: =IF(AZ38<>"",5,0) -> 5 | BC38: =BA38+BB38 -> 45 | BF38: =IF(ISNUMBER(BE38),(VLOOKUP(BE38,$BO$6:$BP$50,2)),0) -> 0 | BG38: =IF(BE38<>"",5,0) -> 0 | BH38: =BF38+BG38 -> 0 | BK38: =IF(ISNUMBER(BJ38),(VLOOKUP(BJ38,$BO$6:$BP$50,2)),0) -> 0 | BL38: =IF(BJ38<>"",5,0) -> 0 | BM38: =BK38+BL38 -> 0 | BO38: 33 | BP38: 0 | BQ38: 0 | BR38: 0 | BS38: 0 | BT38: 0 | BU38: 0 | BV38: 0 | BW38: 0 | BX38: 1
A39: 33 | B39: Hoel | C39: Oliver | E39: =IF(F39<=6,Q39,(Q39-SUM(SMALL(R39:Y39,{1;2})))) -> 45 | F39: 1 | L39: 6 | Q39: 45 | AB39: 0 | AC39: 0 | AD39: 0 | AG39: 0 | AH39: 0 | AI39: 0 | AL39: 0 | AM39: 0 | AN39: 0 | AQ39: 0 | AR39: 0 | AS39: 0 | AU39: 6 | AV39: 40 | AW39: 5 | AX39: 45 | BA39: 0 | BB39: 0 | BC39: 0 | BF39: 0 | BG39: 0 | BH39: 0 | BK39: 0 | BL39: 0 | BM39: 0 | BO39: 34 | BP39: 0 | BQ39: 0 | BR39: 0 | BS39: 0 | BT39: 0 | BU39: 0 | BV39: 0 | BW39: 0 | BX39: 1
A40: 35 | B40: Arnesen | C40: Aron | D40: Rælingen Skiklubb - Ski | E40: =IF(F40<=6,Q40,(Q40-SUM(SMALL(R40:Y40,{1;2})))) -> 41 | F40: 1 | M40: 7 | Q40: 41 | AB40: 0 | AC40: 0 | AD40: 0 | AG40: 0 | AH40: 0 | AI40: 0 | AL40: 0 | AM40: 0 | AN40: 0 | AQ40: 0 | AR40: 0 | AS40: 0 | AV40: 0 | AW40: 0 | AX40: 0 | AZ40: 7 | BA40: 36 | BB40: 5 | BC40: 41 | BF40: 0 | BG40: 0 | BH40: 0 | BK40: 0 | BL40: 0 | BM40: 0 | BO40: 35 | BP40: 0 | BQ40: 0 | BR40: 0 | BS40: 0 | BT40: 0 | BU40: 0 | BV40: 0 | BW40: 0 | BX40: 1
A41: 36 | B41: Dreiem | C41: Andreas | D41: Kjelsås IL - Ski | E41: =IF(F41<=6,Q41,(Q41-SUM(SMALL(R41:Y41,{1;2})))) -> 37 | F41: 2 | N41: 18 | O41: 17 | Q41: 37 | AB41: 0 | AC41: 0 | AD41: 0 | AG41: 0 | AH41: 0 | AI41: 0 | AL41: 0 | AM41: 0 | AN41: 0 | AQ41: 0 | AR41: 0 | AS41: 0 | AV41: 0 | AW41: 0 | AX41: 0 | BA41: 0 | BB41: 0 | BC41: 0 | BE41: 18 | BF41: 13 | BG41: 5 | BH41: 18 | BJ41: 17 | BK41: 14 | BL41: 5 | BM41: 19 | BO41: 36 | BP41: 0 | BQ41: 0 | BR41: 0 | BS41: 0 | BT41: 0 | BU41: 0 | BV41: 0 | BW41: 1 | BX41: 0
A42: 37 | B42: Frostmann | C42: Theodor August Bæk | D42: Ingierkollen/Rustad Slalomklubb - Ski | E42: =IF(F42<=6,Q42,(Q42-SUM(SMALL(R42:Y42,{1;2})))) -> 34 | F42: 1 | K42: 9 | Q42: 34 | AB42: 0 | AC42: 0 | AD42: 0 | AG42: 0 | AH42: 0 | AI42: 0 | AL42: 0 | AM42: 0 | AN42: 0 | AP42: 9 | AQ42: 29 | AR42: 5 | AS42: 34 | AV42: 0 | AW42: 0 | AX42: 0 | BA42: 0 | BB42: 0 | BC42: 0 | BF42: 0 | BG42: 0 | BH42: 0 | BK42: 0 | BL42: 0 | BM42: 0 | BO42: 37 | BP42: 0 | BQ42: 0 | BR42: 0 | BS42: 0 | BT42: 0 | BU42: 0 | BV42: 0 | BW42: 0 | BX42: 1
A43: 37 | B43: Barkenes | C43: Håvar Kalland | D43: Rælingen Skiklubb - Ski | E43: =IF(F43<=6,Q43,(Q43-SUM(SMALL(R43:Y43,{1;2})))) -> 34 | F43: 1 | H43: 9 | Q43: 34 | AA43: 9 | AB43: 29 | AC43: 5 | AD43: 34 | AG43: 0 | AH43: 0 | AI43: 0 | AL43: 0 | AM43: 0 | AN43: 0 | AQ43: 0 | AR43: 0 | AS43: 0 | AV43: 0 | AW43: 0 | AX43: 0 | BA43: 0 | BB43: 0 | BC43: 0 | BF43: 0 | BG43: 0 | BH43: 0 | BK43: 0 | BL43: 0 | BM43: 0 | BO43: 38 | BP43: 0 | BQ43: 0 | BR43: 0 | BS43: 0 | BT43: 0 | BU43: 0 | BV43: 0 | BW43: 0 | BX43: 1
A44: 39 | B44: Maribo | C44: Kevin | D44: Høybråten og stovner | E44: =IF(F44<=6,Q44,(Q44-SUM(SMALL(R44:Y44,{1;2})))) -> 31 | F44: 1 | M44: 10 | Q44: 31 | AB44: 0 | AC44: 0 | AD44: 0 | AG44: 0 | AH44: 0 | AI44: 0 | AL44: 0 | AM44: 0 | AN44: 0 | AQ44: 0 | AR44: 0 | AS44: 0 | AV44: 0 | AW44: 0 | AX44: 0 | AZ44: 10 | BA44: 26 | BB44: 5 | BC44: 31 | BF44: 0 | BG44: 0 | BH44: 0 | BK44: 0 | BL44: 0 | BM44: 0 | BO44: 39 | BP44: 0 | BQ44: 0 | BR44: 0 | BS44: 0 | BT44: 0 | BU44: 0 | BV44: 0 | BW44: 0 | BX44: 1
A45: 39 | B45: Bratrud | C45: Emil Skeid | D45: Kjelsås IL - Ski | E45: =IF(F45<=6,Q45,(Q45-SUM(SMALL(R45:Y45,{1;2})))) -> 31 | F45: 2 | J45: 22 | L45: 19 | Q45: 31 | AB45: 0 | AC45: 0 | AD45: 0 | AG45: 0 | AH45: 0 | AI45: 0 | AK45: 22 | AL45: 9 | AM45: 5 | AN45: 14 | AQ45: 0 | AR45: 0 | AS45: 0 | AU45: 19 | AV45: 12 | AW45: 5 | AX45: 17 | BA45: 0 | BB45: 0 | BC45: 0 | BF45: 0 | BG45: 0 | BH45: 0 | BK45: 0 | BL45: 0 | BM45: 0 | BO45: 40 | BP45: 0 | BQ45: 0 | BR45: 0 | BS45: 0 | BT45: 0 | BU45: 0 | BV45: 0 | BW45: 1 | BX45: 0
A46: 41 | B46: Jensen | C46: Joachim | D46: Høybråten og stovner | E46: =IF(F46<=6,Q46,(Q46-SUM(SMALL(R46:Y46,{1;2})))) -> 30 | F46: 2 | M46: 13 | N46: DSQ | Q46: 30 | AB46: 0 | AC46: 0 | AD46: 0 | AG46: 0 | AH46: 0 | AI46: 0 | AL46: 0 | AM46: 0 | AN46: 0 | AQ46: 0 | AR46: 0 | AS46: 0 | AV46: 0 | AW46: 0 | AX46: 0 | AZ46: 13 | BA46: 20 | BB46: 5 | BC46: 25 | BE46: DSQ | BF46: 0 | BG46: 5 | BH46: 5 | BK46: 0 | BL46: 0 | BM46: 0 | BO46: 41 | BP46: 0 | BQ46: 0 | BR46: 0 | BS46: 0 | BT46: 0 | BU46: 0 | BV46: 0 | BW46: 1 | BX46: 0
A47: 42 | B47: Wilhelmsen | C47: William | D47: Rælingen Skiklubb - Ski | E47: =IF(F47<=6,Q47,(Q47-SUM(SMALL(R47:Y47,{1;2})))) -> 27 | F47: 1 | M47: 12 | Q47: 27 | AB47: 0 | AC47: 0 | AD47: 0 | AG47: 0 | AH47: 0 | AI47: 0 | AL47: 0 | AM47: 0 | AN47: 0 | AQ47: 0 | AR47: 0 | AS47: 0 | AV47: 0 | AW47: 0 | AX47: 0 | AZ47: 12 | BA47: 22 | BB47: 5 | BC47: 27 | BF47: 0 | BG47: 0 | BH47: 0 | BK47: 0 | BL47: 0 | BM47: 0 | BO47: 42 | BP47: 0 | BQ47: 0 | BR47: 0 | BS47: 0 | BT47: 0 | BU47: 0 | BV47: 0 | BW47: 0 | BX47: 1
A48: 42 | B48: Richardsen | C48: Arthur Hals | D48: Stabæk IF - Ski | E48: =IF(F48<=6,Q48,(Q48-SUM(SMALL(R48:Y48,{1;2})))) -> 27 | F48: 2 | K48: 15 | L48: 30 | Q48: 27 | AB48: 0 | AC48: 0 | AD48: 0 | AG48: 0 | AH48: 0 | AI48: 0 | AL48: 0 | AM48: 0 | AN48: 0 | AP48: 15 | AQ48: 16 | AR48: 5 | AS48: 21 | AU48: 30 | AV48: 1 | AW48: 5 | AX48: 6 | BA48: 0 | BB48: 0 | BC48: 0 | BF48: 0 | BG48: 0 | BH48: 0 | BK48: 0 | BL48: 0 | BM48: 0 | BO48: 43 | BP48: 0 | BQ48: 0 | BR48: 0 | BS48: 0 | BT48: 0 | BU48: 0 | BV48: 0 | BW48: 1 | BX48: 0
A49: 44 | B49: Ferringtomn | C49: Richard | D49: Ready - Ski | E49: =IF(F49<=6,Q49,(Q49-SUM(SMALL(R49:Y49,{1;2})))) -> 25 | F49: 1 | J49: 13 | Q49: 25 | AB49: 0 | AC49: 0 | AD49: 0 | AG49: 0 | AH49: 0 | AI49: 0 | AK49: 13 | AL49: 20 | AM49: 5 | AN49: 25 | AQ49: 0 | AR49: 0 | AS49: 0 | AV49: 0 | AW49: 0 | AX49: 0 | BA49: 0 | BB49: 0 | BC49: 0 | BF49: 0 | BG49: 0 | BH49: 0 | BK49: 0 | BL49: 0 | BM49: 0 | BO49: 44 | BP49: 0 | BQ49: 0 | BR49: 0 | BS49: 0 | BT49: 0 | BU49: 0 | BV49: 0 | BW49: 0 | BX49: 1
A50: 45 | B50: Schjøth-Ivers Nordhus | C50: Leo | D50: Heming, IL - Ski | E50: =IF(F50<=6,Q50,(Q50-SUM(SMALL(R50:Y50,{1;2})))) -> 21 | F50: 2 | I50: DSQ | L50: 20 | Q50: 21 | AB50: 0 | AC50: 0 | AD50: 0 | AF50: DSQ | AG50: 0 | AH50: 5 | AI50: 5 | AL50: 0 | AM50: 0 | AN50: 0 | AQ50: 0 | AR50: 0 | AS50: 0 | AU50: 20 | AV50: 11 | AW50: 5 | AX50: 16 | BA50: 0 | BB50: 0 | BC50: 0 | BF50: 0 | BG50: 0 | BH50: 0 | BK50: 0 | BL50: 0 | BM50: 0 | BO50: 45 | BP50: 0 | BQ50: 0 | BR50: 0 | BS50: 0 | BT50: 0 | BU50: 0 | BV50: 0 | BW50: 1 | BX50: 0
A51: 46 | B51: Nyhus Halvorsen | C51: Herman | E51: =IF(F51<=6,Q51,(Q51-SUM(SMALL(R51:Y51,{1;2})))) -> 11 | F51: 1 | L51: 25 | Q51: 11 | AB51: 0 | AC51: 0 | AD51: 0 | AG51: 0 | AH51: 0 | AI51: 0 | AL51: 0 | AM51: 0 | AN51: 0 | AQ51: 0 | AR51: 0 | AS51: 0 | AU51: 25 | AV51: 6 | AW51: 5 | AX51: 11 | BA51: 0 | BB51: 0 | BC51: 0 | BF51: 0 | BG51: 0 | BH51: 0 | BK51: 0 | BL51: 0 | BM51: 0 | BO51: 46 | BP51: 0 | BQ51: 0 | BR51: 0 | BS51: 0 | BT51: 0 | BU51: 0 | BV51: 0 | BW51: 0 | BX51: 1
A52: 47 | B52: Fakaasen | C52: Christian | E52: =IF(F52<=6,Q52,(Q52-SUM(SMALL(R52:Y52,{1;2})))) -> 8 | F52: 1 | L52: 28 | Q52: 8 | AB52: 0 | AC52: 0 | AD52: 0 | AG52: 0 | AH52: 0 | AI52: 0 | AL52: 0 | AM52: 0 | AN52: 0 | AQ52: 0 | AR52: 0 | AS52: 0 | AU52: 28 | AV52: 3 | AW52: 5 | AX52: 8 | BA52: 0 | BB52: 0 | BC52: 0 | BF52: 0 | BG52: 0 | BH52: 0 | BK52: 0 | BL52: 0 | BM52: 0 | BO52: 47 | BP52: 0 | BQ52: 0 | BR52: 0 | BS52: 0 | BT52: 0 | BU52: 0 | BV52: 0 | BW52: 0 | BX52: 1
A53: 48 | B53: Sørstad | C53: Haakon | E53: =IF(F53<=6,Q53,(Q53-SUM(SMALL(R53:Y53,{1;2})))) -> 5 | F53: 1 | L53: 32 | Q53: 5 | AB53: 0 | AC53: 0 | AD53: 0 | AG53: 0 | AH53: 0 | AI53: 0 | AL53: 0 | AM53: 0 | AN53: 0 | AQ53: 0 | AR53: 0 | AS53: 0 | AU53: 32 | AV53: 0 | AW53: 5 | AX53: 5 | BA53: 0 | BB53: 0 | BC53: 0 | BF53: 0 | BG53: 0 | BH53: 0 | BK53: 0 | BL53: 0 | BM53: 0 | BO53: 48 | BP53: 1 | BQ53: 0 | BR53: 0 | BS53: 0 | BT53: 0 | BU53: 0 | BV53: 0 | BW53: 0 | BX53: 1
A54: 48 | B54: Andersen | C54: Benjamin Weydahl | D54: Hakadal IL | E54: =IF(F54<=6,Q54,(Q54-SUM(SMALL(R54:Y54,{1;2})))) -> 5 | F54: 1 | N54: DSQ | Q54: 5 | AB54: 0 | AC54: 0 | AD54: 0 | AG54: 0 | AH54: 0 | AI54: 0 | AL54: 0 | AM54: 0 | AN54: 0 | AQ54: 0 | AR54: 0 | AS54: 0 | AV54: 0 | AW54: 0 | AX54: 0 | BA54: 0 | BB54: 0 | BC54: 0 | BE54: DSQ | BF54: 0 | BG54: 5 | BH54: 5 | BK54: 0 | BL54: 0 | BM54: 0 | BO54: 49 | BP54: 2 | BQ54: 0 | BR54: 0 | BS54: 0 | BT54: 0 | BU54: 0 | BV54: 0 | BW54: 0 | BX54: 1
A55: 50 | E55: =IF(F55<=6,Q55,(Q55-SUM(SMALL(R55:Y55,{1;2})))) -> 0 | F55: 0 | Q55: 0 | AB55: 0 | AC55: 0 | AD55: 0 | AG55: 0 | AH55: 0 | AI55: 0 | AL55: 0 | AM55: 0 | AN55: 0 | AQ55: 0 | AR55: 0 | AS55: 0 | AV55: 0 | AW55: 0 | AX55: 0 | BA55: 0 | BB55: 0 | BC55: 0 | BF55: 0 | BG55: 0 | BH55: 0 | BK55: 0 | BL55: 0 | BM55: 0 | BO55: 50 | BP55: 3 | BQ55: 0 | BR55: 0 | BS55: 0 | BT55: 0 | BU55: 0 | BV55: 0 | BW55: 0 | BX55: 0
H56: =IF(AA56="","",AA56) ->  | I56: =IF(AF56="","",AF56) ->  | J56: =IF(AK56="","",AK56) ->  | K56: =IF(AP56="","",AP56) ->  | L56: =IF(AU56="","",AU56) ->  | M56: =IF(AZ56="","",AZ56) ->  | N56: =IF(BE56="","",BE56) ->  | O56: =IF(BJ56="","",BJ56) ->  | R56: =IF($F56>=7,IF(AB56="","",AB56),"") ->  | S56: =IF($F56>=7,IF(AG56="","",AG56),"") ->  | T56: =IF($F56>=7,IF(AL56="","",AL56),"") ->  | U56: =IF($F56>=7,IF(AQ56="","",AQ56),"") ->  | V56: =IF($F56>=7,IF(AV56="","",AV56),"") ->  | W56: =IF($F56>=7,IF(BA56="","",BA56),"") ->  | X56: =IF($F56>=7,IF(BF56="","",BF56),"") ->  | Y56: =IF($F56>=7,IF(BK56="","",BK56),"") -> 
H70: =IF(AA70="","",AA70) ->  | I70: =IF(AF70="","",AF70) ->  | J70: =IF(AK70="","",AK70) ->  | K70: =IF(AP70="","",AP70) ->  | L70: =IF(AU70="","",AU70) ->  | M70: =IF(AZ70="","",AZ70) ->  | N70: =IF(BE70="","",BE70) ->  | O70: =IF(BJ70="","",BJ70) ->  | R70: =IF($F70>=7,IF(AB70="","",AB70),"") ->  | S70: =IF($F70>=7,IF(AG70="","",AG70),"") ->  | T70: =IF($F70>=7,IF(AL70="","",AL70),"") ->  | U70: =IF($F70>=7,IF(AQ70="","",AQ70),"") ->  | V70: =IF($F70>=7,IF(AV70="","",AV70),"") ->  | W70: =IF($F70>=7,IF(BA70="","",BA70),"") ->  | X70: =IF($F70>=7,IF(BF70="","",BF70),"") ->  | Y70: =IF($F70>=7,IF(BK70="","",BK70),"") -> 

Sheet J12 2019
A1: Resultatliste Oslo Cup 2019 - Jenter 12 år
A2: ='Forside 2019'!A2 -> 0
H3: IRS Rennet | I3: Ljan Rennet | J3: Njård Rennet | K3: Ready Rennet | L3: Telenor Arena Cup | M3: Euro-tecfarten | N3: Oslo Alpinfestival SL | O3: Oslo Alpinfestival SSL | R3: IRS Rennet | S3: Ljan Rennet | T3: Njård Rennet | U3: Ready Rennet | V3: Telenor Arena Cup | W3: Euro-tecfarten | X3: Oslo Alpinfestival SL | Y3: Oslo Alpinfestival SSL | AA3: --------IRS Rennet---------- | AF3: ----------Ljan Rennet--------- | AK3: --------Njård Rennet---------- | AP3: --------Ready Rennet--------- | AU3: -----Telenor Arena Cup---- | AZ3: ------Euro-tecfarten-------- | BE3: ---Oslo Alpinfestival SL--- | BJ3: ---Oslo Alpinfestival SSL---
F4: Antall | H4: 2018-02-03 | I4: 2018-02-04 | J4: 2018-02-10 | K4: 2018-02-11 | L4: 2018-02-14 | M4: 2018-02-28 | N4: 2018-03-03 | O4: 2018-03-04 | Q4: Poeng | R4: 2018-02-03 | S4: 2018-02-04 | T4: 2018-02-10 | U4: 2018-02-11 | V4: 2018-02-14 | W4: 2018-02-28 | X4: 2018-03-03 | Y4: 2018-03-04 | AB4: --------Poeng-------- | AG4: --------Poeng-------- | AL4: -------Poeng--------- | AQ4: -------Poeng--------- | AV4: -------Poeng--------- | BA4: -------Poeng--------- | BF4: -------Poeng--------- | BK4: -------Poeng--------- | BQ4: Løpere med | BR4: Løpere med | BS4: Løpere med | BT4: Løpere med | BU4: Løpere med | BV4: Løpere med | BW4: Løpere med | BX4: Løpere med
A5: Plass | B5: Etternavn | C5: Fornavn | D5: Klubb | E5: Poeng | F5: renn | H5: ------------------------------Plassering i rennene--------------------------------- | Q5: brutto | R5: ----------------Resultatpoeng hvis mer enn 6 renn---------------- | AA5: Plass | AB5: Res. | AC5: Del. | AD5: Tot. | AF5: Plass | AG5: Res. | AH5: Del. | AI5: Tot. | AK5: Plass | AL5: Res. | AM5: Del. | AN5: Tot. | AP5: Plass | AQ5: Res. | AR5: Del. | AS5: Tot. | AU5: Plass | AV5: Res. | AW5: Del. | AX5: Tot. | AZ5: Plass | BA5: Res. | BB5: Del. | BC5: Tot. | BE5: Plass | BF5: Res. | BG5: Del. | BH5: Tot. | BJ5: Plass | BK5: Res. | BL5: Del. | BM5: Tot. | BO5: Plass | BP5: Poeng | BQ5: 8 renn | BR5: 7 renn | BS5: 6 renn | BT5: 5 renn | BU5: 4 renn | BV5: 3 renn | BW5: 2 renn | BX5: kun 1 renn
A6: =IF(E6<E5,BO6,A5) -> 1 | B6: Grobstok | C6: Emilie Smedsrud | D6: Ready - Ski | E6: =IF(F6<=6,Q6,(Q6-SUM(SMALL(R6:Y6,{1;2})))) -> 540 | F6: =(IF(AC6=5,1,0)+IF(AH6=5,1,0)+IF(AM6=5,1,0)+IF(AR6=5,1,0)+IF(AW6=5,1,0)+IF(BB6=5,1,0)+IF(BG6=5,1,0)+IF(BL6=5,1,0)) -> 8 | H6: =IF(AA6="","",AA6) -> 3 | I6: =IF(AF6="","",AF6) -> 1 | J6: =IF(AK6="","",AK6) -> 2 | K6: =IF(AP6="","",AP6) -> 26 | L6: =IF(AU6="","",AU6) -> 2 | M6: =IF(AZ6="","",AZ6) -> 2 | N6: =IF(BE6="","",BE6) -> 5 | O6: =IF(BJ6="","",BJ6) -> 1 | Q6: =AD6+AI6+AN6+AS6+AX6+BC6+BH6+BM6 -> 590 | R6: =IF($F6>=7,IF(AB6="","",AB6),"") -> 60 | S6: =IF($F6>=7,IF(AG6="","",AG6),"") -> 100 | T6: =IF($F6>=7,IF(AL6="","",AL6),"") -> 80 | U6: =IF($F6>=7,IF(AQ6="","",AQ6),"") -> 5 | V6: =IF($F6>=7,IF(AV6="","",AV6),"") -> 80 | W6: =IF($F6>=7,IF(BA6="","",BA6),"") -> 80 | X6: =IF($F6>=7,IF(BF6="","",BF6),"") -> 45 | Y6: =IF($F6>=7,IF(BK6="","",BK6),"") -> 100 | AA6: 3 | AB6: =IF(ISNUMBER(AA6),(VLOOKUP(AA6,$BO$6:$BP$50,2)),0) -> 60 | AC6: =IF(AA6<>"",5,0) -> 5 | AD6: =AB6+AC6 -> 65 | AF6: 1 | AG6: =IF(ISNUMBER(AF6),(VLOOKUP(AF6,$BO$6:$BP$50,2)),0) -> 100 | AH6: =IF(AF6<>"",5,0) -> 5 | AI6: =AG6+AH6 -> 105 | AK6: 2 | AL6: =IF(ISNUMBER(AK6),(VLOOKUP(AK6,$BO$6:$BP$50,2)),0) -> 80 | AM6: =IF(AK6<>"",5,0) -> 5 | AN6: =AL6+AM6 -> 85 | AP6: 26 | AQ6: =IF(ISNUMBER(AP6),(VLOOKUP(AP6,$BO$6:$BP$50,2)),0) -> 5 | AR6: =IF(AP6<>"",5,0) -> 5 | AS6: =AQ6+AR6 -> 10 | AU6: 2 | AV6: =IF(ISNUMBER(AU6),(VLOOKUP(AU6,$BO$6:$BP$50,2)),0) -> 80 | AW6: =IF(AU6<>"",5,0) -> 5 | AX6: =AV6+AW6 -> 85 | AZ6: 2 | BA6: =IF(ISNUMBER(AZ6),(VLOOKUP(AZ6,$BO$6:$BP$50,2)),0) -> 80 | BB6: =IF(AZ6<>"",5,0) -> 5 | BC6: =BA6+BB6 -> 85 | BE6: 5 | BF6: =IF(ISNUMBER(BE6),(VLOOKUP(BE6,$BO$6:$BP$50,2)),0) -> 45 | BG6: =IF(BE6<>"",5,0) -> 5 | BH6: =BF6+BG6 -> 50 | BJ6: 1 | BK6: =IF(ISNUMBER(BJ6),(VLOOKUP(BJ6,$BO$6:$BP$50,2)),0) -> 100 | BL6: =IF(BJ6<>"",5,0) -> 5 | BM6: =BK6+BL6 -> 105 | BO6: 1 | BP6: 100 | BQ6: =IF($F6=8,1,0) -> 1 | BR6: =IF($F6=7,1,0) -> 0 | BS6: =IF($F6=6,1,0) -> 0 | BT6: =IF($F6=5,1,0) -> 0 | BU6: =IF($F6=4,1,0) -> 0 | BV6: =IF($F6=3,1,0) -> 0 | BW6: =IF($F6=2,1,0) -> 0 | BX6: =IF($F6=1,1,0) -> 0
A7: 2 | B7: Grøndalen | C7: Eira Marie | D7: Ljan Alpinklubb - Ski | E7: =IF(F7<=6,Q7,(Q7-SUM(SMALL(R7:Y7,{1;2})))) -> 530 | F7: 8 | H7: 1 | I7: 2 | J7: 4 | K7: 1 | L7: 5 | M7: 1 | N7: 3 | O7: 7 | Q7: 611 | R7: 100 | S7: 80 | T7: 50 | U7: 100 | V7: 45 | W7: 100 | X7: 60 | Y7: 36 | AA7: 1 | AB7: 100 | AC7: 5 | AD7: 105 | AF7: 2 | AG7: 80 | AH7: 5 | AI7: 85 | AK7: 4 | AL7: 50 | AM7: 5 | AN7: 55 | AP7: 1 | AQ7: 100 | AR7: 5 | AS7: 105 | AU7: 5 | AV7: 45 | AW7: 5 | AX7: 50 | AZ7: 1 | BA7: 100 | BB7: 5 | BC7: 105 | BE7: 3 | BF7: 60 | BG7: 5 | BH7: 65 | BJ7: 7 | BK7: 36 | BL7: 5 | BM7: 41 | BO7: 2 | BP7: 80 | BQ7: =IF($F7=8,1,0) -> 1 | BR7: 0 | BS7: 0 | BT7: 0 | BU7: 0 | BV7: 0 | BW7: 0 | BX7: 0
A8: 3 | B8: Semmelmann | C8: Ellisif Marie | D8: Heming, IL - Ski | E8: =IF(F8<=6,Q8,(Q8-SUM(SMALL(R8:Y8,{1;2})))) -> 399 | F8: 7 | H8: 2 | I8: 11 | J8: 24 | K8: 4 | L8: 4 | N8: 1 | O8: 3 | Q8: 406 | R8: 80 | S8: 24 | T8: 7 | U8: 50 | V8: 50 | W8: 0 | X8: 100 | Y8: 60 | AA8: 2 | AB8: 80 | AC8: 5 | AD8: 85 | AF8: 11 | AG8: 24 | AH8: 5 | AI8: 29 | AK8: 24 | AL8: 7 | AM8: 5 | AN8: 12 | AP8: 4 | AQ8: 50 | AR8: 5 | AS8: 55 | AU8: 4 | AV8: 50 | AW8: 5 | AX8: 55 | BA8: 0 | BB8: 0 | BC8: 0 | BE8: 1 | BF8: 100 | BG8: 5 | BH8: 105 | BJ8: 3 | BK8: 60 | BL8: 5 | BM8: 65 | BO8: 3 | BP8: 60 | BQ8: 0 | BR8: 1 | BS8: 0 | BT8: 0 | BU8: 0 | BV8: 0 | BW8: 0 | BX8: 0
A9: 4 | B9: Merky | C9: Valentina | D9: Kjelsås IL - Ski | E9: =IF(F9<=6,Q9,(Q9-SUM(SMALL(R9:Y9,{1;2})))) -> 380 | F9: 8 | H9: 4 | I9: 3 | J9: 5 | K9: 5 | L9: 3 | M9: 7 | N9: 6 | O9: 2 | Q9: 456 | R9: 50 | S9: 60 | T9: 45 | U9: 45 | V9: 60 | W9: 36 | X9: 40 | Y9: 80 | AA9: 4 | AB9: 50 | AC9: 5 | AD9: 55 | AF9: 3 | AG9: 60 | AH9: 5 | AI9: 65 | AK9: 5 | AL9: 45 | AM9: 5 | AN9: 50 | AP9: 5 | AQ9: 45 | AR9: 5 | AS9: 50 | AU9: 3 | AV9: 60 | AW9: 5 | AX9: 65 | AZ9: 7 | BA9: 36 | BB9: 5 | BC9: 41 | BE9: 6 | BF9: 40 | BG9: 5 | BH9: 45 | BJ9: 2 | BK9: 80 | BL9: 5 | BM9: 85 | BO9: 4 | BP9: 50 | BQ9: 1 | BR9: 0 | BS9: 0 | BT9: 0 | BU9: 0 | BV9: 0 | BW9: 0 | BX9: 0
A10: 5 | B10: Sande | C10: Malene Louise Gaunt | D10: Heming, IL - Ski | E10: =IF(F10<=6,Q10,(Q10-SUM(SMALL(R10:Y10,{1;2})))) -> 348 | F10: 7 | H10: 5 | I10: 3 | J10: 23 | K10: 3 | L10: 1 | N10: 7 | O10: 19 | Q10: 356 | R10: 45 | S10: 60 | T10: 8 | U10: 60 | V10: 100 | W10: 0 | X10: 36 | Y10: 12 | AA10: 5 | AB10: 45 | AC10: 5 | AD10: 50 | AF10: 3 | AG10: 60 | AH10: 5 | AI10: 65 | AK10: 23 | AL10: 8 | AM10: 5 | AN10: 13 | AP10: 3 | AQ10: 60 | AR10: 5 | AS10: 65 | AU10: 1 | AV10: 100 | AW10: 5 | AX10: 105 | BA10: 0 | BB10: 0 | BC10: 0 | BE10: 7 | BF10: 36 | BG10: 5 | BH10: 41 | BJ10: 19 | BK10: 12 | BL10: 5 | BM10: 17 | BO10: 5 | BP10: 45 | BQ10: 0 | BR10: 1 | BS10: 0 | BT10: 0 | BU10: 0 | BV10: 0 | BW10: 0 | BX10: 0
A11: 6 | B11: Mannion | C11: Norah Isabel | D11: Ullensaker Skiklubb - Ski | E11: =IF(F11<=6,Q11,(Q11-SUM(SMALL(R11:Y11,{1;2})))) -> 257 | F11: 8 | H11: DSQ | I11: DSQ | J11: 3 | K11: 6 | L11: 8 | M11: 5 | N11: DSQ | O11: 6 | Q11: 257 | R11: 0 | S11: 0 | T11: 60 | U11: 40 | V11: 32 | W11: 45 | X11: 0 | Y11: 40 | AA11: DSQ | AB11: 0 | AC11: 5 | AD11: 5 | AF11: DSQ | AG11: 0 | AH11: 5 | AI11: 5 | AK11: 3 | AL11: 60 | AM11: 5 | AN11: 65 | AP11: 6 | AQ11: 40 | AR11: 5 | AS11: 45 | AU11: 8 | AV11: 32 | AW11: 5 | AX11: 37 | AZ11: 5 | BA11: 45 | BB11: 5 | BC11: 50 | BE11: DSQ | BF11: 0 | BG11: 5 | BH11: 5 | BJ11: 6 | BK11: 40 | BL11: 5 | BM11: 45 | BO11: 6 | BP11: 40 | BQ11: 1 | BR11: 0 | BS11: 0 | BT11: 0 | BU11: 0 | BV11: 0 | BW11: 0 | BX11: 0
A12: 7 | B12: Heggelund | C12: Hedda Ramstad | D12: Ullensaker Skiklubb - Ski | E12: =IF(F12<=6,Q12,(Q12-SUM(SMALL(R12:Y12,{1;2})))) -> 237 | F12: 6 | H12: 6 | I12: 6 | K12: 12 | L12: 18 | M12: 3 | O12: 8 | Q12: 237 | AA12: 6 | AB12: 40 | AC12: 5 | AD12: 45 | AF12: 6 | AG12: 40 | AH12: 5 | AI12: 45 | AL12: 0 | AM12: 0 | AN12: 0 | AP12: 12 | AQ12: 22 | AR12: 5 | AS12: 27 | AU12: 18 | AV12: 13 | AW12: 5 | AX12: 18 | AZ12: 3 | BA12: 60 | BB12: 5 | BC12: 65 | BF12: 0 | BG12: 0 | BH12: 0 | BJ12: 8 | BK12: 32 | BL12: 5 | BM12: 37 | BO12: 7 | BP12: 36 | BQ12: 0 | BR12: 0 | BS12: 1 | BT12: 0 | BU12: 0 | BV12: 0 | BW12: 0 | BX12: 0
A13: 8 | B13: Borge-Andersen | C13: Felin | D13: Heming, IL - Ski | E13: =IF(F13<=6,Q13,(Q13-SUM(SMALL(R13:Y13,{1;2})))) -> 232 | F13: 7 | H13: 10 | I13: DSQ | J13: 7 | K13: 6 | L13: 14 | N13: 8 | O13: 5 | Q13: 232 | R13: 26 | S13: 0 | T13: 36 | U13: 40 | V13: 18 | W13: 0 | X13: 32 | Y13: 45 | AA13: 10 | AB13: 26 | AC13: 5 | AD13: 31 | AF13: DSQ | AG13: 0 | AH13: 5 | AI13: 5 | AK13: 7 | AL13: 36 | AM13: 5 | AN13: 41 | AP13: 6 | AQ13: 40 | AR13: 5 | AS13: 45 | AU13: 14 | AV13: 18 | AW13: 5 | AX13: 23 | BA13: 0 | BB13: 0 | BC13: 0 | BE13: 8 | BF13: 32 | BG13: 5 | BH13: 37 | BJ13: 5 | BK13: 45 | BL13: 5 | BM13: 50 | BO13: 8 | BP13: 32 | BQ13: 0 | BR13: 1 | BS13: 0 | BT13: 0 | BU13: 0 | BV13: 0 | BW13: 0 | BX13: 0
A14: 9 | B14: Schei | C14: Julie Haakaas | D14: Ingierkollen/Rustad Slalomklubb - Ski | E14: =IF(F14<=6,Q14,(Q14-SUM(SMALL(R14:Y14,{1;2})))) -> 215 | F14: 6 | H14: 9 | I14: 5 | J14: 8 | K14: 9 | N14: 4 | O14: DNF | Q14: 215 | AA14: 9 | AB14: 29 | AC14: 5 | AD14: 34 | AF14: 5 | AG14: 45 | AH14: 5 | AI14: 50 | AK14: 8 | AL14: 32 | AM14: 5 | AN14: 37 | AP14: 9 | AQ14: 29 | AR14: 5 | AS14: 34 | AV14: 0 | AW14: 0 | AX14: 0 | BA14: 0 | BB14: 0 | BC14: 0 | BE14: 4 | BF14: 50 | BG14: 5 | BH14: 55 | BJ14: DNF | BK14: 0 | BL14: 5 | BM14: 5 | BO14: 9 | BP14: 29 | BQ14: 0 | BR14: 0 | BS14: 1 | BT14: 0 | BU14: 0 | BV14: 0 | BW14: 0 | BX14: 0
A15: 10 | B15: Elmenhorst-Larsen | C15: Sina | D15: Ready - Ski | E15: =IF(F15<=6,Q15,(Q15-SUM(SMALL(R15:Y15,{1;2})))) -> 214 | F15: 7 | H15: 7 | J15: 13 | K15: 14 | L15: 13 | M15: 4 | N15: 9 | O15: 11 | Q15: 232 | R15: 36 | S15: 0 | T15: 20 | U15: 18 | V15: 20 | W15: 50 | X15: 29 | Y15: 24 | AA15: 7 | AB15: 36 | AC15: 5 | AD15: 41 | AG15: 0 | AH15: 0 | AI15: 0 | AK15: 13 | AL15: 20 | AM15: 5 | AN15: 25 | AP15: 14 | AQ15: 18 | AR15: 5 | AS15: 23 | AU15: 13 | AV15: 20 | AW15: 5 | AX15: 25 | AZ15: 4 | BA15: 50 | BB15: 5 | BC15: 55 | BE15: 9 | BF15: 29 | BG15: 5 | BH15: 34 | BJ15: 11 | BK15: 24 | BL15: 5 | BM15: 29 | BO15: 10 | BP15: 26 | BQ15: 0 | BR15: 1 | BS15: 0 | BT15: 0 | BU15: 0 | BV15: 0 | BW15: 0 | BX15: 0
A16: 11 | B16: Vigstad-Petersen | C16: Tina | D16: Høybråten og Stovner IL - Ski | E16: =IF(F16<=6,Q16,(Q16-SUM(SMALL(R16:Y16,{1;2})))) -> 205 | F16: 4 | K16: 16 | M16: 6 | N16: 2 | O16: 4 | Q16: 205 | AB16: 0 | AC16: 0 | AD16: 0 | AG16: 0 | AH16: 0 | AI16: 0 | AL16: 0 | AM16: 0 | AN16: 0 | AP16: 16 | AQ16: 15 | AR16: 5 | AS16: 20 | AV16: 0 | AW16: 0 | AX16: 0 | AZ16: 6 | BA16: 40 | BB16: 5 | BC16: 45 | BE16: 2 | BF16: 80 | BG16: 5 | BH16: 85 | BJ16: 4 | BK16: 50 | BL16: 5 | BM16: 55 | BO16: 11 | BP16: 24 | BQ16: 0 | BR16: 0 | BS16: 0 | BT16: 0 | BU16: 1 | BV16: 0 | BW16: 0 | BX16: 0
A17: 12 | B17: Johansen | C17: Eva Unhjem | D17: Asker Skiklubb - Ski | E17: =IF(F17<=6,Q17,(Q17-SUM(SMALL(R17:Y17,{1;2})))) -> 190 | F17: 2 | J17: 1 | K17: 2 | Q17: 190 | AB17: 0 | AC17: 0 | AD17: 0 | AG17: 0 | AH17: 0 | AI17: 0 | AK17: 1 | AL17: 100 | AM17: 5 | AN17: 105 | AP17: 2 | AQ17: 80 | AR17: 5 | AS17: 85 | AV17: 0 | AW17: 0 | AX17: 0 | BA17: 0 | BB17: 0 | BC17: 0 | BF17: 0 | BG17: 0 | BH17: 0 | BK17: 0 | BL17: 0 | BM17: 0 | BO17: 12 | BP17: 22 | BQ17: 0 | BR17: 0 | BS17: 0 | BT17: 0 | BU17: 0 | BV17: 0 | BW17: 1 | BX17: 0
A18: 13 | B18: Wilhelmsen | C18: Victoria Pandher | D18: Ready - Ski | E18: =IF(F18<=6,Q18,(Q18-SUM(SMALL(R18:Y18,{1;2})))) -> 163 | F18: 8 | H18: DSQ | I18: 7 | J18: 18 | K18: 18 | L18: 21 | M18: 9 | N18: DNF | O18: 12 | Q18: 163 | R18: 0 | S18: 36 | T18: 13 | U18: 13 | V18: 10 | W18: 29 | X18: 0 | Y18: 22 | AA18: DSQ | AB18: 0 | AC18: 5 | AD18: 5 | AF18: 7 | AG18: 36 | AH18: 5 | AI18: 41 | AK18: 18 | AL18: 13 | AM18: 5 | AN18: 18 | AP18: 18 | AQ18: 13 | AR18: 5 | AS18: 18 | AU18: 21 | AV18: 10 | AW18: 5 | AX18: 15 | AZ18: 9 | BA18: 29 | BB18: 5 | BC18: 34 | BE18: DNF | BF18: 0 | BG18: 5 | BH18: 5 | BJ18: 12 | BK18: 22 | BL18: 5 | BM18: 27 | BO18: 13 | BP18: 20 | BQ18: 1 | BR18: 0 | BS18: 0 | BT18: 0 | BU18: 0 | BV18: 0 | BW18: 0 | BX18: 0
A19: 14 | B19: Bjørland | C19: Vilde Lind | D19: Heming, IL - Ski | E19: =IF(F19<=6,Q19,(Q19-SUM(SMALL(R19:Y19,{1;2})))) -> 161 | F19: 6 | H19: 11 | I19: 8 | K19: 17 | L19: 19 | N19: 13 | O19: 9 | Q19: 161 | AA19: 11 | AB19: 24 | AC19: 5 | AD19: 29 | AF19: 8 | AG19: 32 | AH19: 5 | AI19: 37 | AL19: 0 | AM19: 0 | AN19: 0 | AP19: 17 | AQ19: 14 | AR19: 5 | AS19: 19 | AU19: 19 | AV19: 12 | AW19: 5 | AX19: 17 | BA19: 0 | BB19: 0 | BC19: 0 | BE19: 13 | BF19: 20 | BG19: 5 | BH19: 25 | BJ19: 9 | BK19: 29 | BL19: 5 | BM19: 34 | BO19: 14 | BP19: 18 | BQ19: 0 | BR19: 0 | BS19: 1 | BT19: 0 | BU19: 0 | BV19: 0 | BW19: 0 | BX19: 0
A20: 15 | B20: Ardem | C20: Emilie Caroline | D20: Kjelsås IL - Ski | E20: =IF(F20<=6,Q20,(Q20-SUM(SMALL(R20:Y20,{1;2})))) -> 150 | F20: 7 | H20: DSQ | I20: 10 | J20: 17 | L20: 20 | M20: 10 | N20: 12 | O20: 15 | Q20: 150 | R20: 0 | S20: 26 | T20: 14 | U20: 0 | V20: 11 | W20: 26 | X20: 22 | Y20: 16 | AA20: DSQ | AB20: 0 | AC20: 5 | AD20: 5 | AF20: 10 | AG20: 26 | AH20: 5 | AI20: 31 | AK20: 17 | AL20: 14 | AM20: 5 | AN20: 19 | AQ20: 0 | AR20: 0 | AS20: 0 | AU20: 20 | AV20: 11 | AW20: 5 | AX20: 16 | AZ20: 10 | BA20: 26 | BB20: 5 | BC20: 31 | BE20: 12 | BF20: 22 | BG20: 5 | BH20: 27 | BJ20: 15 | BK20: 16 | BL20: 5 | BM20: 21 | BO20: 15 | BP20: 16 | BQ20: 0 | BR20: 1 | BS20: 0 | BT20: 0 | BU20: 0 | BV20: 0 | BW20: 0 | BX20: 0
A21: 16 | B21: Meidell | C21: Lucie Marie | D21: Heming, IL - Ski | E21: =IF(F21<=6,Q21,(Q21-SUM(SMALL(R21:Y21,{1;2})))) -> 142 | F21: 5 | H21: 8 | K21: 8 | L21: 9 | N21: 11 | O21: DSQ | Q21: 142 | AA21: 8 | AB21: 32 | AC21: 5 | AD21: 37 | AG21: 0 | AH21: 0 | AI21: 0 | AL21: 0 | AM21: 0 | AN21: 0 | AP21: 8 | AQ21: 32 | AR21: 5 | AS21: 37 | AU21: 9 | AV21: 29 | AW21: 5 | AX21: 34 | BA21: 0 | BB21: 0 | BC21: 0 | BE21: 11 | BF21: 24 | BG21: 5 | BH21: 29 | BJ21: DSQ | BK21: 0 | BL21: 5 | BM21: 5 | BO21: 16 | BP21: 15 | BQ21: 0 | BR21: 0 | BS21: 0 | BT21: 1 | BU21: 0 | BV21: 0 | BW21: 0 | BX21: 0
A22: 17 | B22: Kolbjørnsrud | C22: Ingrid | D22: Kjelsås IL - Ski | E22: =IF(F22<=6,Q22,(Q22-SUM(SMALL(R22:Y22,{1;2})))) -> 138 | F22: 7 | H22: 12 | J22: 20 | K22: 21 | L22: 26 | M22: 10 | N22: 15 | O22: 14 | Q22: 143 | R22: 22 | S22: 0 | T22: 11 | U22: 10 | V22: 5 | W22: 26 | X22: 16 | Y22: 18 | AA22: 12 | AB22: 22 | AC22: 5 | AD22: 27 | AG22: 0 | AH22: 0 | AI22: 0 | AK22: 20 | AL22: 11 | AM22: 5 | AN22: 16 | AP22: 21 | AQ22: 10 | AR22: 5 | AS22: 15 | AU22: 26 | AV22: 5 | AW22: 5 | AX22: 10 | AZ22: 10 | BA22: 26 | BB22: 5 | BC22: 31 | BE22: 15 | BF22: 16 | BG22: 5 | BH22: 21 | BJ22: 14 | BK22: 18 | BL22: 5 | BM22: 23 | BO22: 17 | BP22: 14 | BQ22: 0 | BR22: 1 | BS22: 0 | BT22: 0 | BU22: 0 | BV22: 0 | BW22: 0 | BX22: 0
A23: 18 | B23: Danielsen | C23: Hedvig Aabel | D23: Heming, IL - Ski | E23: =IF(F23<=6,Q23,(Q23-SUM(SMALL(R23:Y23,{1;2})))) -> 127 | F23: 7 | H23: 13 | I23: 9 | J23: 22 | K23: 23 | L23: 33 | N23: 18 | O23: 18 | Q23: 127 | R23: 20 | S23: 29 | T23: 9 | U23: 8 | V23: 0 | W23: 0 | X23: 13 | Y23: 13 | AA23: 13 | AB23: 20 | AC23: 5 | AD23: 25 | AF23: 9 | AG23: 29 | AH23: 5 | AI23: 34 | AK23: 22 | AL23: 9 | AM23: 5 | AN23: 14 | AP23: 23 | AQ23: 8 | AR23: 5 | AS23: 13 | AU23: 33 | AV23: 0 | AW23: 5 | AX23: 5 | BA23: 0 | BB23: 0 | BC23: 0 | BE23: 18 | BF23: 13 | BG23: 5 | BH23: 18 | BJ23: 18 | BK23: 13 | BL23: 5 | BM23: 18 | BO23: 18 | BP23: 13 | BQ23: 0 | BR23: 1 | BS23: 0 | BT23: 0 | BU23: 0 | BV23: 0 | BW23: 0 | BX23: 0
A24: 19 | B24: Størmer-Nilsen | C24: Filippa | D24: Heming, IL - Ski | E24: =IF(F24<=6,Q24,(Q24-SUM(SMALL(R24:Y24,{1;2})))) -> 121 | F24: 5 | J24: 21 | K24: 13 | L24: 17 | N24: 10 | O24: 10 | Q24: 121 | AB24: 0 | AC24: 0 | AD24: 0 | AG24: 0 | AH24: 0 | AI24: 0 | AK24: 21 | AL24: 10 | AM24: 5 | AN24: 15 | AP24: 13 | AQ24: 20 | AR24: 5 | AS24: 25 | AU24: 17 | AV24: 14 | AW24: 5 | AX24: 19 | BA24: 0 | BB24: 0 | BC24: 0 | BE24: 10 | BF24: 26 | BG24: 5 | BH24: 31 | BJ24: 10 | BK24: 26 | BL24: 5 | BM24: 31 | BO24: 19 | BP24: 12 | BQ24: 0 | BR24: 0 | BS24: 0 | BT24: 1 | BU24: 0 | BV24: 0 | BW24: 0 | BX24: 0
A25: 20 | B25: Eskeland | C25: Helen Olivia | D25: Heming, IL - Ski | E25: =IF(F25<=6,Q25,(Q25-SUM(SMALL(R25:Y25,{1;2})))) -> 92 | F25: 3 | J25: 9 | K25: 11 | L25: 11 | Q25: 92 | AB25: 0 | AC25: 0 | AD25: 0 | AG25: 0 | AH25: 0 | AI25: 0 | AK25: 9 | AL25: 29 | AM25: 5 | AN25: 34 | AP25: 11 | AQ25: 24 | AR25: 5 | AS25: 29 | AU25: 11 | AV25: 24 | AW25: 5 | AX25: 29 | BA25: 0 | BB25: 0 | BC25: 0 | BF25: 0 | BG25: 0 | BH25: 0 | BK25: 0 | BL25: 0 | BM25: 0 | BO25: 20 | BP25: 11 | BQ25: 0 | BR25: 0 | BS25: 0 | BT25: 0 | BU25: 0 | BV25: 1 | BW25: 0 | BX25: 0
A26: 21 | B26: Fleischer | C26: Elise Victoria | D26: Heming, IL - Ski | E26: =IF(F26<=6,Q26,(Q26-SUM(SMALL(R26:Y26,{1;2})))) -> 90 | F26: 5 | J26: 16 | K26: 19 | L26: 31 | N26: 14 | O26: 13 | Q26: 90 | AB26: 0 | AC26: 0 | AD26: 0 | AG26: 0 | AH26: 0 | AI26: 0 | AK26: 16 | AL26: 15 | AM26: 5 | AN26: 20 | AP26: 19 | AQ26: 12 | AR26: 5 | AS26: 17 | AU26: 31 | AV26: 0 | AW26: 5 | AX26: 5 | BA26: 0 | BB26: 0 | BC26: 0 | BE26: 14 | BF26: 18 | BG26: 5 | BH26: 23 | BJ26: 13 | BK26: 20 | BL26: 5 | BM26: 25 | BO26: 21 | BP26: 10 | BQ26: 0 | BR26: 0 | BS26: 0 | BT26: 1 | BU26: 0 | BV26: 0 | BW26: 0 | BX26: 0
A27: 22 | B27: Bunæs-Røyr | C27: Cornelia | D27: Stabk IF - Ski | E27: =IF(F27<=6,Q27,(Q27-SUM(SMALL(R27:Y27,{1;2})))) -> 86 | F27: 2 | J27: 6 | L27: 7 | Q27: 86 | AB27: 0 | AC27: 0 | AD27: 0 | AG27: 0 | AH27: 0 | AI27: 0 | AK27: 6 | AL27: 40 | AM27: 5 | AN27: 45 | AQ27: 0 | AR27: 0 | AS27: 0 | AU27: 7 | AV27: 36 | AW27: 5 | AX27: 41 | BA27: 0 | BB27: 0 | BC27: 0 | BF27: 0 | BG27: 0 | BH27: 0 | BK27: 0 | BL27: 0 | BM27: 0 | BO27: 22 | BP27: 9 | BQ27: 0 | BR27: 0 | BS27: 0 | BT27: 0 | BU27: 0 | BV27: 0 | BW27: 1 | BX27: 0
A28: 23 | B28: Sohlberg | C28: Emicke Cecilie | D28: Stabæk IF - Ski | E28: =IF(F28<=6,Q28,(Q28-SUM(SMALL(R28:Y28,{1;2})))) -> 71 | F28: 3 | J28: 11 | K28: 15 | L28: 15 | Q28: 71 | AB28: 0 | AC28: 0 | AD28: 0 | AG28: 0 | AH28: 0 | AI28: 0 | AK28: 11 | AL28: 24 | AM28: 5 | AN28: 29 | AP28: 15 | AQ28: 16 | AR28: 5 | AS28: 21 | AU28: 15 | AV28: 16 | AW28: 5 | AX28: 21 | BA28: 0 | BB28: 0 | BC28: 0 | BF28: 0 | BG28: 0 | BH28: 0 | BK28: 0 | BL28: 0 | BM28: 0 | BO28: 23 | BP28: 8 | BQ28: 0 | BR28: 0 | BS28: 0 | BT28: 0 | BU28: 0 | BV28: 1 | BW28: 0 | BX28: 0
A29: 24 | B29: Kristoffersen | C29: Kajsa Dahl | D29: Ready - Ski | E29: =IF(F29<=6,Q29,(Q29-SUM(SMALL(R29:Y29,{1;2})))) -> 63 | F29: 4 | J29: 19 | K29: 20 | L29: 32 | M29: 13 | Q29: 63 | AB29: 0 | AC29: 0 | AD29: 0 | AG29: 0 | AH29: 0 | AI29: 0 | AK29: 19 | AL29: 12 | AM29: 5 | AN29: 17 | AP29: 20 | AQ29: 11 | AR29: 5 | AS29: 16 | AU29: 32 | AV29: 0 | AW29: 5 | AX29: 5 | AZ29: 13 | BA29: 20 | BB29: 5 | BC29: 25 | BF29: 0 | BG29: 0 | BH29: 0 | BK29: 0 | BL29: 0 | BM29: 0 | BO29: 24 | BP29: 7 | BQ29: 0 | BR29: 0 | BS29: 0 | BT29: 0 | BU29: 1 | BV29: 0 | BW29: 0 | BX29: 0
A30: 25 | B30: Ingebrigtsen | C30: Nora | D30: Heming, IL - Ski | E30: =IF(F30<=6,Q30,(Q30-SUM(SMALL(R30:Y30,{1;2})))) -> 58 | F30: 4 | J30: 15 | L30: 24 | N30: DSQ | O30: 16 | Q30: 58 | AB30: 0 | AC30: 0 | AD30: 0 | AG30: 0 | AH30: 0 | AI30: 0 | AK30: 15 | AL30: 16 | AM30: 5 | AN30: 21 | AQ30: 0 | AR30: 0 | AS30: 0 | AU30: 24 | AV30: 7 | AW30: 5 | AX30: 12 | BA30: 0 | BB30: 0 | BC30: 0 | BE30: DSQ | BF30: 0 | BG30: 5 | BH30: 5 | BJ30: 16 | BK30: 15 | BL30: 5 | BM30: 20 | BO30: 25 | BP30: 6 | BQ30: 0 | BR30: 0 | BS30: 0 | BT30: 0 | BU30: 1 | BV30: 0 | BW30: 0 | BX30: 0
A31: 25 | B31: Høegh | C31: Elise | E31: =IF(F31<=6,Q31,(Q31-SUM(SMALL(R31:Y31,{1;2})))) -> 58 | F31: 2 | J31: 12 | L31: 10 | Q31: 58 | AB31: 0 | AC31: 0 | AD31: 0 | AG31: 0 | AH31: 0 | AI31: 0 | AK31: 12 | AL31: 22 | AM31: 5 | AN31: 27 | AQ31: 0 | AR31: 0 | AS31: 0 | AU31: 10 | AV31: 26 | AW31: 5 | AX31: 31 | BA31: 0 | BB31: 0 | BC31: 0 | BF31: 0 | BG31: 0 | BH31: 0 | BK31: 0 | BL31: 0 | BM31: 0 | BO31: 26 | BP31: 5 | BQ31: 0 | BR31: 0 | BS31: 0 | BT31: 0 | BU31: 0 | BV31: 0 | BW31: 1 | BX31: 0
A32: 27 | B32: Riiber | C32: Kristiane | D32: Heming, IL - Ski | E32: =IF(F32<=6,Q32,(Q32-SUM(SMALL(R32:Y32,{1;2})))) -> 56 | F32: 3 | J32: 14 | L32: 23 | N32: 16 | Q32: 56 | AB32: 0 | AC32: 0 | AD32: 0 | AG32: 0 | AH32: 0 | AI32: 0 | AK32: 14 | AL32: 18 | AM32: 5 | AN32: 23 | AQ32: 0 | AR32: 0 | AS32: 0 | AU32: 23 | AV32: 8 | AW32: 5 | AX32: 13 | BA32: 0 | BB32: 0 | BC32: 0 | BE32: 16 | BF32: 15 | BG32: 5 | BH32: 20 | BK32: 0 | BL32: 0 | BM32: 0 | BO32: 27 | BP32: 4 | BQ32: 0 | BR32: 0 | BS32: 0 | BT32: 0 | BU32: 0 | BV32: 1 | BW32: 0 | BX32: 0
A33: 28 | B33: Myrbø | C33: Maria Isabelle | D33: Try, Idrettslaget - Ski | E33: =IF(F33<=6,Q33,(Q33-SUM(SMALL(R33:Y33,{1;2})))) -> 48 | F33: 3 | K33: 22 | L33: 29 | M33: 12 | Q33: 48 | AB33: 0 | AC33: 0 | AD33: 0 | AG33: 0 | AH33: 0 | AI33: 0 | AL33: 0 | AM33: 0 | AN33: 0 | AP33: 22 | AQ33: 9 | AR33: 5 | AS33: 14 | AU33: 29 | AV33: 2 | AW33: 5 | AX33: 7 | AZ33: 12 | BA33: 22 | BB33: 5 | BC33: 27 | BF33: 0 | BG33: 0 | BH33: 0 | BK33: 0 | BL33: 0 | BM33: 0 | BO33: 28 | BP33: 3 | BQ33: 0 | BR33: 0 | BS33: 0 | BT33: 0 | BU33: 0 | BV33: 1 | BW33: 0 | BX33: 0
A34: 29 | B34: Bryde | C34: Alette | E34: =IF(F34<=6,Q34,(Q34-SUM(SMALL(R34:Y34,{1;2})))) -> 45 | F34: 1 | L34: 6 | Q34: 45 | AB34: 0 | AC34: 0 | AD34: 0 | AG34: 0 | AH34: 0 | AI34: 0 | AL34: 0 | AM34: 0 | AN34: 0 | AQ34: 0 | AR34: 0 | AS34: 0 | AU34: 6 | AV34: 40 | AW34: 5 | AX34: 45 | BA34: 0 | BB34: 0 | BC34: 0 | BF34: 0 | BG34: 0 | BH34: 0 | BK34: 0 | BL34: 0 | BM34: 0 | BO34: 29 | BP34: 2 | BQ34: 0 | BR34: 0 | BS34: 0 | BT34: 0 | BU34: 0 | BV34: 0 | BW34: 0 | BX34: 1
A35: 30 | B35: Christiansen | C35: Aleksandra | D35: Try | E35: =IF(F35<=6,Q35,(Q35-SUM(SMALL(R35:Y35,{1;2})))) -> 42 | F35: 3 | K35: DNF | L35: 22 | M35: 14 | Q35: 42 | AB35: 0 | AC35: 0 | AD35: 0 | AG35: 0 | AH35: 0 | AI35: 0 | AL35: 0 | AM35: 0 | AN35: 0 | AP35: DNF | AQ35: 0 | AR35: 5 | AS35: 5 | AU35: 22 | AV35: 9 | AW35: 5 | AX35: 14 | AZ35: 14 | BA35: 18 | BB35: 5 | BC35: 23 | BF35: 0 | BG35: 0 | BH35: 0 | BK35: 0 | BL35: 0 | BM35: 0 | BO35: 30 | BP35: 1 | BQ35: 0 | BR35: 0 | BS35: 0 | BT35: 0 | BU35: 0 | BV35: 1 | BW35: 0 | BX35: 0
A36: 31 | B36: Karlstrøm | C36: Tomine | D36: Heming, IL - Ski | E36: =IF(F36<=6,Q36,(Q36-SUM(SMALL(R36:Y36,{1;2})))) -> 39 | F36: 3 | K36: 24 | L36: 28 | N36: 17 | Q36: 39 | AB36: 0 | AC36: 0 | AD36: 0 | AG36: 0 | AH36: 0 | AI36: 0 | AL36: 0 | AM36: 0 | AN36: 0 | AP36: 24 | AQ36: 7 | AR36: 5 | AS36: 12 | AU36: 28 | AV36: 3 | AW36: 5 | AX36: 8 | BA36: 0 | BB36: 0 | BC36: 0 | BE36: 17 | BF36: 14 | BG36: 5 | BH36: 19 | BK36: 0 | BL36: 0 | BM36: 0 | BO36: 31 | BP36: 0 | BQ36: 0 | BR36: 0 | BS36: 0 | BT36: 0 | BU36: 0 | BV36: 1 | BW36: 0 | BX36: 0
A37: 32 | B37: Bjørkhaug | C37: Frida | E37: =IF(F37<=6,Q37,(Q37-SUM(SMALL(R37:Y37,{1;2})))) -> 37 | F37: 1 | M37: 8 | Q37: 37 | AB37: 0 | AC37: 0 | AD37: 0 | AG37: 0 | AH37: 0 | AI37: 0 | AL37: 0 | AM37: 0 | AN37: 0 | AQ37: 0 | AR37: 0 | AS37: 0 | AV37: 0 | AW37: 0 | AX37: 0 | AZ37: 8 | BA37: 32 | BB37: 5 | BC37: 37 | BF37: 0 | BG37: 0 | BH37: 0 | BK37: 0 | BL37: 0 | BM37: 0 | BO37: 32 | BP37: 0 | BQ37: 0 | BR37: 0 | BS37: 0 | BT37: 0 | BU37: 0 | BV37: 0 | BW37: 0 | BX37: 1
A38: =IF(E38<E37,BO38,A37) -> 33 | B38: Hjelle | C38: Hanna | D38: Lommedalens IL - Ski | E38: =IF(F38<=6,Q38,(Q38-SUM(SMALL(R38:Y38,{1;2})))) -> 31 | F38: =(IF(AC38=5,1,0)+IF(AH38=5,1,0)+IF(AM38=5,1,0)+IF(AR38=5,1,0)+IF(AW38=5,1,0)+IF(BB38=5,1,0)+IF(BG38=5,1,0)+IF(BL38=5,1,0)) -> 1 | H38: =IF(AA38="","",AA38) ->  | I38: =IF(AF38="","",AF38) ->  | J38: =IF(AK38="","",AK38) ->  | K38: =IF(AP38="","",AP38) -> 10 | L38: =IF(AU38="","",AU38) ->  | M38: =IF(AZ38="","",AZ38) ->  | N38: =IF(BE38="","",BE38) ->  | O38: =IF(BJ38="","",BJ38) ->  | Q38: =AD38+AI38+AN38+AS38+AX38+BC38+BH38+BM38 -> 31 | R38: =IF($F38>=7,IF(AB38="","",AB38),"") ->  | S38: =IF($F38>=7,IF(AG38="","",AG38),"") ->  | T38: =IF($F38>=7,IF(AL38="","",AL38),"") ->  | U38: =IF($F38>=7,IF(AQ38="","",AQ38),"") ->  | V38: =IF($F38>=7,IF(AV38="","",AV38),"") ->  | W38: =IF($F38>=7,IF(BA38="","",BA38),"") ->  | X38: =IF($F38>=7,IF(BF38="","",BF38),"") ->  | Y38: =IF($F38>=7,IF(BK38="","",BK38),"") ->  | AB38: =IF(ISNUMBER(AA38),(VLOOKUP(AA38,$BO$6:$BP$50,2)),0) -> 0 | AC38: =IF(AA38<>"",5,0) -> 0 | AD38: =AB38+AC38 -> 0 | AG38: =IF(ISNUMBER(AF38),(VLOOKUP(AF38,$BO$6:$BP$50,2)),0) -> 0 | AH38: =IF(AF38<>"",5,0) -> 0 | AI38: =AG38+AH38 -> 0 | AL38: =IF(ISNUMBER(AK38),(VLOOKUP(AK38,$BO$6:$BP$50,2)),0) -> 0 | AM38: =IF(AK38<>"",5,0) -> 0 | AN38: =AL38+AM38 -> 0 | AP38: 10 | AQ38: =IF(ISNUMBER(AP38),(VLOOKUP(AP38,$BO$6:$BP$50,2)),0) -> 26 | AR38: =IF(AP38<>"",5,0) -> 5 | AS38: =AQ38+AR38 -> 31 | AV38: =IF(ISNUMBER(AU38),(VLOOKUP(AU38,$BO$6:$BP$50,2)),0) -> 0 | AW38: =IF(AU38<>"",5,0) -> 0 | AX38: =AV38+AW38 -> 0 | BA38: =IF(ISNUMBER(AZ38),(VLOOKUP(AZ38,$BO$6:$BP$50,2)),0) -> 0 | BB38: =IF(AZ38<>"",5,0) -> 0 | BC38: =BA38+BB38 -> 0 | BF38: =IF(ISNUMBER(BE38),(VLOOKUP(BE38,$BO$6:$BP$50,2)),0) -> 0 | BG38: =IF(BE38<>"",5,0) -> 0 | BH38: =BF38+BG38 -> 0 | BK38: =IF(ISNUMBER(BJ38),(VLOOKUP(BJ38,$BO$6:$BP$50,2)),0) -> 0 | BL38: =IF(BJ38<>"",5,0) -> 0 | BM38: =BK38+BL38 -> 0 | BO38: 33 | BP38: 0 | BQ38: 0 | BR38: 0 | BS38: 0 | BT38: 0 | BU38: 0 | BV38: 0 | BW38: 0 | BX38: 1
A39: 33 | B39: Bjerkestrand | C39: Malin Elisabeth Weme | D39: Asker Skiklubb - Ski | E39: =IF(F39<=6,Q39,(Q39-SUM(SMALL(R39:Y39,{1;2})))) -> 31 | F39: 1 | J39: 10 | Q39: 31 | AB39: 0 | AC39: 0 | AD39: 0 | AG39: 0 | AH39: 0 | AI39: 0 | AK39: 10 | AL39: 26 | AM39: 5 | AN39: 31 | AQ39: 0 | AR39: 0 | AS39: 0 | AV39: 0 | AW39: 0 | AX39: 0 | BA39: 0 | BB39: 0 | BC39: 0 | BF39: 0 | BG39: 0 | BH39: 0 | BK39: 0 | BL39: 0 | BM39: 0 | BO39: 34 | BP39: 0 | BQ39: 0 | BR39: 0 | BS39: 0 | BT39: 0 | BU39: 0 | BV39: 0 | BW39: 0 | BX39: 1
A40: 35 | B40: Feen | C40: Ida | E40: =IF(F40<=6,Q40,(Q40-SUM(SMALL(R40:Y40,{1;2})))) -> 27 | F40: 1 | L40: 12 | Q40: 27 | AB40: 0 | AC40: 0 | AD40: 0 | AG40: 0 | AH40: 0 | AI40: 0 | AL40: 0 | AM40: 0 | AN40: 0 | AQ40: 0 | AR40: 0 | AS40: 0 | AU40: 12 | AV40: 22 | AW40: 5 | AX40: 27 | BA40: 0 | BB40: 0 | BC40: 0 | BF40: 0 | BG40: 0 | BH40: 0 | BK40: 0 | BL40: 0 | BM40: 0 | BO40: 35 | BP40: 0 | BQ40: 0 | BR40: 0 | BS40: 0 | BT40: 0 | BU40: 0 | BV40: 0 | BW40: 0 | BX40: 1
A41: 36 | B41: Lønn | C41: Emilie | E41: =IF(F41<=6,Q41,(Q41-SUM(SMALL(R41:Y41,{1;2})))) -> 20 | F41: 1 | L41: 16 | Q41: 20 | AB41: 0 | AC41: 0 | AD41: 0 | AG41: 0 | AH41: 0 | AI41: 0 | AL41: 0 | AM41: 0 | AN41: 0 | AQ41: 0 | AR41: 0 | AS41: 0 | AU41: 16 | AV41: 15 | AW41: 5 | AX41: 20 | BA41: 0 | BB41: 0 | BC41: 0 | BF41: 0 | BG41: 0 | BH41: 0 | BK41: 0 | BL41: 0 | BM41: 0 | BO41: 36 | BP41: 0 | BQ41: 0 | BR41: 0 | BS41: 0 | BT41: 0 | BU41: 0 | BV41: 0 | BW41: 0 | BX41: 1
A42: 37 | B42: Blaker-Rænningen | C42: Erle | D42: Ready - Ski | E42: =IF(F42<=6,Q42,(Q42-SUM(SMALL(R42:Y42,{1;2})))) -> 19 | F42: 1 | O42: 17 | Q42: 19 | AB42: 0 | AC42: 0 | AD42: 0 | AG42: 0 | AH42: 0 | AI42: 0 | AL42: 0 | AM42: 0 | AN42: 0 | AQ42: 0 | AR42: 0 | AS42: 0 | AV42: 0 | AW42: 0 | AX42: 0 | BA42: 0 | BB42: 0 | BC42: 0 | BF42: 0 | BG42: 0 | BH42: 0 | BJ42: 17 | BK42: 14 | BL42: 5 | BM42: 19 | BO42: 37 | BP42: 0 | BQ42: 0 | BR42: 0 | BS42: 0 | BT42: 0 | BU42: 0 | BV42: 0 | BW42: 0 | BX42: 1
A43: 38 | B43: Vik | C43: Mina | D43: Njård | E43: =IF(F43<=6,Q43,(Q43-SUM(SMALL(R43:Y43,{1;2})))) -> 16 | F43: 1 | O43: 20 | Q43: 16 | AB43: 0 | AC43: 0 | AD43: 0 | AG43: 0 | AH43: 0 | AI43: 0 | AL43: 0 | AM43: 0 | AN43: 0 | AQ43: 0 | AR43: 0 | AS43: 0 | AV43: 0 | AW43: 0 | AX43: 0 | BA43: 0 | BB43: 0 | BC43: 0 | BF43: 0 | BG43: 0 | BH43: 0 | BJ43: 20 | BK43: 11 | BL43: 5 | BM43: 16 | BO43: 38 | BP43: 0 | BQ43: 0 | BR43: 0 | BS43: 0 | BT43: 0 | BU43: 0 | BV43: 0 | BW43: 0 | BX43: 1
A44: 39 | B44: Strand-Nielsen | C44: Vera Linnea Bø | E44: =IF(F44<=6,Q44,(Q44-SUM(SMALL(R44:Y44,{1;2})))) -> 11 | F44: 2 | I44: DSQ | L44: 30 | Q44: 11 | AB44: 0 | AC44: 0 | AD44: 0 | AF44: DSQ | AG44: 0 | AH44: 5 | AI44: 5 | AL44: 0 | AM44: 0 | AN44: 0 | AQ44: 0 | AR44: 0 | AS44: 0 | AU44: 30 | AV44: 1 | AW44: 5 | AX44: 6 | BA44: 0 | BB44: 0 | BC44: 0 | BF44: 0 | BG44: 0 | BH44: 0 | BK44: 0 | BL44: 0 | BM44: 0 | BO44: 39 | BP44: 0 | BQ44: 0 | BR44: 0 | BS44: 0 | BT44: 0 | BU44: 0 | BV44: 0 | BW44: 1 | BX44: 0
A45: 39 | B45: Gram | C45: Olivia Tonysdatter | D45: Ready - Ski | E45: =IF(F45<=6,Q45,(Q45-SUM(SMALL(R45:Y45,{1;2})))) -> 11 | F45: 1 | K45: 25 | Q45: 11 | AB45: 0 | AC45: 0 | AD45: 0 | AG45: 0 | AH45: 0 | AI45: 0 | AL45: 0 | AM45: 0 | AN45: 0 | AP45: 25 | AQ45: 6 | AR45: 5 | AS45: 11 | AV45: 0 | AW45: 0 | AX45: 0 | BA45: 0 | BB45: 0 | BC45: 0 | BF45: 0 | BG45: 0 | BH45: 0 | BK45: 0 | BL45: 0 | BM45: 0 | BO45: 40 | BP45: 0 | BQ45: 0 | BR45: 0 | BS45: 0 | BT45: 0 | BU45: 0 | BV45: 0 | BW45: 0 | BX45: 1
A46: 39 | B46: Aabech | C46: Nellie | E46: =IF(F46<=6,Q46,(Q46-SUM(SMALL(R46:Y46,{1;2})))) -> 11 | F46: 1 | L46: 25 | Q46: 11 | AB46: 0 | AC46: 0 | AD46: 0 | AG46: 0 | AH46: 0 | AI46: 0 | AL46: 0 | AM46: 0 | AN46: 0 | AQ46: 0 | AR46: 0 | AS46: 0 | AU46: 25 | AV46: 6 | AW46: 5 | AX46: 11 | BA46: 0 | BB46: 0 | BC46: 0 | BF46: 0 | BG46: 0 | BH46: 0 | BK46: 0 | BL46: 0 | BM46: 0 | BO46: 41 | BP46: 0 | BQ46: 0 | BR46: 0 | BS46: 0 | BT46: 0 | BU46: 0 | BV46: 0 | BW46: 0 | BX46: 1
A47: 42 | B47: Flaaten | C47: Filippa | E47: =IF(F47<=6,Q47,(Q47-SUM(SMALL(R47:Y47,{1;2})))) -> 9 | F47: 1 | L47: 27 | Q47: 9 | AB47: 0 | AC47: 0 | AD47: 0 | AG47: 0 | AH47: 0 | AI47: 0 | AL47: 0 | AM47: 0 | AN47: 0 | AQ47: 0 | AR47: 0 | AS47: 0 | AU47: 27 | AV47: 4 | AW47: 5 | AX47: 9 | BA47: 0 | BB47: 0 | BC47: 0 | BF47: 0 | BG47: 0 | BH47: 0 | BK47: 0 | BL47: 0 | BM47: 0 | BO47: 42 | BP47: 0 | BQ47: 0 | BR47: 0 | BS47: 0 | BT47: 0 | BU47: 0 | BV47: 0 | BW47: 0 | BX47: 1
A48: 43 | E48: =IF(F48<=6,Q48,(Q48-SUM(SMALL(R48:Y48,{1;2})))) -> 0 | F48: 0 | Q48: 0 | AB48: 0 | AC48: 0 | AD48: 0 | AG48: 0 | AH48: 0 | AI48: 0 | AL48: 0 | AM48: 0 | AN48: 0 | AQ48: 0 | AR48: 0 | AS48: 0 | AV48: 0 | AW48: 0 | AX48: 0 | BA48: 0 | BB48: 0 | BC48: 0 | BF48: 0 | BG48: 0 | BH48: 0 | BK48: 0 | BL48: 0 | BM48: 0 | BO48: 43 | BP48: 0 | BQ48: 0 | BR48: 0 | BS48: 0 | BT48: 0 | BU48: 0 | BV48: 0 | BW48: 0 | BX48: 0
A49: 43 | E49: =IF(F49<=6,Q49,(Q49-SUM(SMALL(R49:Y49,{1;2})))) -> 0 | F49: 0 | Q49: 0 | AB49: 0 | AC49: 0 | AD49: 0 | AG49: 0 | AH49: 0 | AI49: 0 | AL49: 0 | AM49: 0 | AN49: 0 | AQ49: 0 | AR49: 0 | AS49: 0 | AV49: 0 | AW49: 0 | AX49: 0 | BA49: 0 | BB49: 0 | BC49: 0 | BF49: 0 | BG49: 0 | BH49: 0 | BK49: 0 | BL49: 0 | BM49: 0 | BO49: 44 | BP49: 0 | BQ49: 0 | BR49: 0 | BS49: 0 | BT49: 0 | BU49: 0 | BV49: 0 | BW49: 0 | BX49: 0
A50: 43 | E50: =IF(F50<=6,Q50,(Q50-SUM(SMALL(R50:Y50,{1;2})))) -> 0 | F50: 0 | Q50: 0 | AB50: 0 | AC50: 0 | AD50: 0 | AG50: 0 | AH50: 0 | AI50: 0 | AL50: 0 | AM50: 0 | AN50: 0 | AQ50: 0 | AR50: 0 | AS50: 0 | AV50: 0 | AW50: 0 | AX50: 0 | BA50: 0 | BB50: 0 | BC50: 0 | BF50: 0 | BG50: 0 | BH50: 0 | BK50: 0 | BL50: 0 | BM50: 0 | BO50: 45 | BP50: 0 | BQ50: 0 | BR50: 0 | BS50: 0 | BT50: 0 | BU50: 0 | BV50: 0 | BW50: 0 | BX50: 0
A51: 43 | E51: =IF(F51<=6,Q51,(Q51-SUM(SMALL(R51:Y51,{1;2})))) -> 0 | F51: 0 | Q51: 0 | AB51: 0 | AC51: 0 | AD51: 0 | AG51: 0 | AH51: 0 | AI51: 0 | AL51: 0 | AM51: 0 | AN51: 0 | AQ51: 0 | AR51: 0 | AS51: 0 | AV51: 0 | AW51: 0 | AX51: 0 | BA51: 0 | BB51: 0 | BC51: 0 | BF51: 0 | BG51: 0 | BH51: 0 | BK51: 0 | BL51: 0 | BM51: 0 | BO51: 46 | BP51: 0 | BQ51: 0 | BR51: 0 | BS51: 0 | BT51: 0 | BU51: 0 | BV51: 0 | BW51: 0 | BX51: 0
A52: 43 | E52: =IF(F52<=6,Q52,(Q52-SUM(SMALL(R52:Y52,{1;2})))) -> 0 | F52: 0 | Q52: 0 | AB52: 0 | AC52: 0 | AD52: 0 | AG52: 0 | AH52: 0 | AI52: 0 | AL52: 0 | AM52: 0 | AN52: 0 | AQ52: 0 | AR52: 0 | AS52: 0 | AV52: 0 | AW52: 0 | AX52: 0 | BA52: 0 | BB52: 0 | BC52: 0 | BF52: 0 | BG52: 0 | BH52: 0 | BK52: 0 | BL52: 0 | BM52: 0 | BO52: 47 | BP52: 0 | BQ52: 0 | BR52: 0 | BS52: 0 | BT52: 0 | BU52: 0 | BV52: 0 | BW52: 0 | BX52: 0
A53: 43 | E53: =IF(F53<=6,Q53,(Q53-SUM(SMALL(R53:Y53,{1;2})))) -> 0 | F53: 0 | Q53: 0 | AB53: 0 | AC53: 0 | AD53: 0 | AG53: 0 | AH53: 0 | AI53: 0 | AL53: 0 | AM53: 0 | AN53: 0 | AQ53: 0 | AR53: 0 | AS53: 0 | AV53: 0 | AW53: 0 | AX53: 0 | BA53: 0 | BB53: 0 | BC53: 0 | BF53: 0 | BG53: 0 | BH53: 0 | BK53: 0 | BL53: 0 | BM53: 0 | BO53: 48 | BP53: 0 | BQ53: 0 | BR53: 0 | BS53: 0 | BT53: 0 | BU53: 0 | BV53: 0 | BW53: 0 | BX53: 0
A54: 43 | E54: =IF(F54<=6,Q54,(Q54-SUM(SMALL(R54:Y54,{1;2})))) -> 0 | F54: 0 | Q54: 0 | AB54: 0 | AC54: 0 | AD54: 0 | AG54: 0 | AH54: 0 | AI54: 0 | AL54: 0 | AM54: 0 | AN54: 0 | AQ54: 0 | AR54: 0 | AS54: 0 | AV54: 0 | AW54: 0 | AX54: 0 | BA54: 0 | BB54: 0 | BC54: 0 | BF54: 0 | BG54: 0 | BH54: 0 | BK54: 0 | BL54: 0 | BM54: 0 | BO54: 49 | BP54: 0 | BQ54: 0 | BR54: 0 | BS54: 0 | BT54: 0 | BU54: 0 | BV54: 0 | BW54: 0 | BX54: 0
H55: =IF(AA55="","",AA55) ->  | I55: =IF(AF55="","",AF55) ->  | J55: =IF(AK55="","",AK55) ->  | K55: =IF(AP55="","",AP55) ->  | L55: =IF(AU55="","",AU55) ->  | M55: =IF(AZ55="","",AZ55) ->  | N55: =IF(BE55="","",BE55) ->  | O55: =IF(BJ55="","",BJ55) ->  | R55: =IF($F55>=7,IF(AB55="","",AB55),"") ->  | S55: =IF($F55>=7,IF(AG55="","",AG55),"") ->  | T55: =IF($F55>=7,IF(AL55="","",AL55),"") ->  | U55: =IF($F55>=7,IF(AQ55="","",AQ55),"") ->  | V55: =IF($F55>=7,IF(AV55="","",AV55),"") ->  | W55: =IF($F55>=7,IF(BA55="","",BA55),"") ->  | X55: =IF($F55>=7,IF(BF55="","",BF55),"") ->  | Y55: =IF($F55>=7,IF(BK55="","",BK55),"") -> 
H56: =IF(AA56="","",AA56) ->  | I56: =IF(AF56="","",AF56) ->  | J56: =IF(AK56="","",AK56) ->  | K56: =IF(AP56="","",AP56) ->  | L56: =IF(AU56="","",AU56) ->  | M56: =IF(AZ56="","",AZ56) ->  | N56: =IF(BE56="","",BE56) ->  | O56: =IF(BJ56="","",BJ56) -> 

Sheet G12 2019
A1: Resultatliste Oslo Cup 2019 - Gutter 12 år
A2: ='Forside 2019'!A2 -> 0
H3: IRS Rennet | I3: Ljan Rennet | J3: Njård Rennet | K3: Ready Rennet | L3: Telenor Arena Cup | M3: Euro-tecfarten | N3: Oslo Alpinfestival SL | O3: Oslo Alpinfestival SSL | R3: IRS Rennet | S3: Ljan Rennet | T3: Njård Rennet | U3: Ready Rennet | V3: Telenor Arena Cup | W3: Euro-tecfarten | X3: Oslo Alpinfestival SL | Y3: Oslo Alpinfestival SSL | AA3: --------IRS Rennet---------- | AF3: ----------Ljan Rennet--------- | AK3: --------Njård Rennet---------- | AP3: --------Ready Rennet--------- | AU3: -----Telenor Arena Cup---- | AZ3: ------Euro-tecfarten-------- | BE3: ---Oslo Alpinfestival SL--- | BJ3: ---Oslo Alpinfestival SSL---
F4: Antall | H4: 2018-02-03 | I4: 2018-02-04 | J4: 2018-02-10 | K4: 2018-02-11 | L4: 2018-02-14 | M4: 2018-02-28 | N4: 2018-03-03 | O4: 2018-03-04 | Q4: Poeng | R4: 2018-02-03 | S4: 2018-02-04 | T4: 2018-02-10 | U4: 2018-02-11 | V4: 2018-02-14 | W4: 2018-02-28 | X4: 2018-03-03 | Y4: 2018-03-04 | AB4: --------Poeng-------- | AG4: --------Poeng-------- | AL4: -------Poeng--------- | AQ4: -------Poeng--------- | AV4: -------Poeng--------- | BA4: -------Poeng--------- | BF4: -------Poeng--------- | BK4: -------Poeng--------- | BQ4: Løpere med | BR4: Løpere med | BS4: Løpere med | BT4: Løpere med | BU4: Løpere med | BV4: Løpere med | BW4: Løpere med | BX4: Løpere med
A5: Plass | B5: Etternavn | C5: Fornavn | D5: Klubb | E5: Poeng | F5: renn | H5: ------------------------------Plassering i rennene--------------------------------- | Q5: brutto | R5: ----------------Resultatpoeng hvis mer enn 6 renn---------------- | AA5: Plass | AB5: Res. | AC5: Del. | AD5: Tot. | AF5: Plass | AG5: Res. | AH5: Del. | AI5: Tot. | AK5: Plass | AL5: Res. | AM5: Del. | AN5: Tot. | AP5: Plass | AQ5: Res. | AR5: Del. | AS5: Tot. | AU5: Plass | AV5: Res. | AW5: Del. | AX5: Tot. | AZ5: Plass | BA5: Res. | BB5: Del. | BC5: Tot. | BE5: Plass | BF5: Res. | BG5: Del. | BH5: Tot. | BJ5: Plass | BK5: Res. | BL5: Del. | BM5: Tot. | BO5: Plass | BP5: Poeng | BQ5: 8 renn | BR5: 7 renn | BS5: 6 renn | BT5: 5 renn | BU5: 4 renn | BV5: 3 renn | BW5: 2 renn | BX5: kun 1 renn
A6: =IF(E6<E5,BO6,A5) -> 1 | B6: Knudsen | C6: Leon | D6: Ingierkollen/Rustad Slalomklubb - Ski | E6: =IF(F6<=6,Q6,(Q6-SUM(SMALL(R6:Y6,{1;2})))) -> 526 | F6: =(IF(AC6=5,1,0)+IF(AH6=5,1,0)+IF(AM6=5,1,0)+IF(AR6=5,1,0)+IF(AW6=5,1,0)+IF(BB6=5,1,0)+IF(BG6=5,1,0)+IF(BL6=5,1,0)) -> 8 | H6: =IF(AA6="","",AA6) -> DSQ | I6: =IF(AF6="","",AF6) -> 1 | J6: =IF(AK6="","",AK6) -> 1 | K6: =IF(AP6="","",AP6) -> 1 | L6: =IF(AU6="","",AU6) -> 4 | M6: =IF(AZ6="","",AZ6) -> 1 | N6: =IF(BE6="","",BE6) -> 7 | O6: =IF(BJ6="","",BJ6) -> 8 | Q6: =AD6+AI6+AN6+AS6+AX6+BC6+BH6+BM6 -> 558 | R6: =IF($F6>=7,IF(AB6="","",AB6),"") -> 0 | S6: =IF($F6>=7,IF(AG6="","",AG6),"") -> 100 | T6: =IF($F6>=7,IF(AL6="","",AL6),"") -> 100 | U6: =IF($F6>=7,IF(AQ6="","",AQ6),"") -> 100 | V6: =IF($F6>=7,IF(AV6="","",AV6),"") -> 50 | W6: =IF($F6>=7,IF(BA6="","",BA6),"") -> 100 | X6: =IF($F6>=7,IF(BF6="","",BF6),"") -> 36 | Y6: =IF($F6>=7,IF(BK6="","",BK6),"") -> 32 | AA6: DSQ | AB6: =IF(ISNUMBER(AA6),(VLOOKUP(AA6,$BO$6:$BP$50,2)),0) -> 0 | AC6: =IF(AA6<>"",5,0) -> 5 | AD6: =AB6+AC6 -> 5 | AF6: 1 | AG6: =IF(ISNUMBER(AF6),(VLOOKUP(AF6,$BO$6:$BP$50,2)),0) -> 100 | AH6: =IF(AF6<>"",5,0) -> 5 | AI6: =AG6+AH6 -> 105 | AK6: 1 | AL6: =IF(ISNUMBER(AK6),(VLOOKUP(AK6,$BO$6:$BP$50,2)),0) -> 100 | AM6: =IF(AK6<>"",5,0) -> 5 | AN6: =AL6+AM6 -> 105 | AP6: 1 | AQ6: =IF(ISNUMBER(AP6),(VLOOKUP(AP6,$BO$6:$BP$50,2)),0) -> 100 | AR6: =IF(AP6<>"",5,0) -> 5 | AS6: =AQ6+AR6 -> 105 | AU6: 4 | AV6: =IF(ISNUMBER(AU6),(VLOOKUP(AU6,$BO$6:$BP$50,2)),0) -> 50 | AW6: =IF(AU6<>"",5,0) -> 5 | AX6: =AV6+AW6 -> 55 | AZ6: 1 | BA6: =IF(ISNUMBER(AZ6),(VLOOKUP(AZ6,$BO$6:$BP$50,2)),0) -> 100 | BB6: =IF(AZ6<>"",5,0) -> 5 | BC6: =BA6+BB6 -> 105 | BE6: 7 | BF6: =IF(ISNUMBER(BE6),(VLOOKUP(BE6,$BO$6:$BP$50,2)),0) -> 36 | BG6: =IF(BE6<>"",5,0) -> 5 | BH6: =BF6+BG6 -> 41 | BJ6: 8 | BK6: =IF(ISNUMBER(BJ6),(VLOOKUP(BJ6,$BO$6:$BP$50,2)),0) -> 32 | BL6: =IF(BJ6<>"",5,0) -> 5 | BM6: =BK6+BL6 -> 37 | BO6: 1 | BP6: 100 | BQ6: =IF($F6=8,1,0) -> 1 | BR6: =IF($F6=7,1,0) -> 0 | BS6: =IF($F6=6,1,0) -> 0 | BT6: =IF($F6=5,1,0) -> 0 | BU6: =IF($F6=4,1,0) -> 0 | BV6: =IF($F6=3,1,0) -> 0 | BW6: =IF($F6=2,1,0) -> 0 | BX6: =IF($F6=1,1,0) -> 0
A7: 2 | B7: Lien | C7: Johan Oscar | D7: Heming, IL - Ski | E7: =IF(F7<=6,Q7,(Q7-SUM(SMALL(R7:Y7,{1;2})))) -> 435 | F7: 7 | H7: 2 | I7: 4 | J7: 4 | K7: 3 | L7: 6 | N7: 2 | O7: 2 | Q7: 475 | R7: 80 | S7: 50 | T7: 50 | U7: 60 | V7: 40 | W7: 0 | X7: 80 | Y7: 80 | AA7: 2 | AB7: 80 | AC7: 5 | AD7: 85 | AF7: 4 | AG7: 50 | AH7: 5 | AI7: 55 | AK7: 4 | AL7: 50 | AM7: 5 | AN7: 55 | AP7: 3 | AQ7: 60 | AR7: 5 | AS7: 65 | AU7: 6 | AV7: 40 | AW7: 5 | AX7: 45 | BA7: 0 | BB7: 0 | BC7: 0 | BE7: 2 | BF7: 80 | BG7: 5 | BH7: 85 | BJ7: 2 | BK7: 80 | BL7: 5 | BM7: 85 | BO7: 2 | BP7: 80 | BQ7: =IF($F7=8,1,0) -> 0 | BR7: 1 | BS7: 0 | BT7: 0 | BU7: 0 | BV7: 0 | BW7: 0 | BX7: 0
A8: 3 | B8: Danielsen | C8: Didrik Heggelund | D8: Ullensaker Skiklubb - Ski | E8: =IF(F8<=6,Q8,(Q8-SUM(SMALL(R8:Y8,{1;2})))) -> 431 | F8: 8 | H8: DSQ | I8: 3 | J8: 5 | K8: 4 | L8: 7 | M8: DSQ | N8: 1 | O8: 1 | Q8: 431 | R8: 0 | S8: 60 | T8: 45 | U8: 50 | V8: 36 | W8: 0 | X8: 100 | Y8: 100 | AA8: DSQ | AB8: 0 | AC8: 5 | AD8: 5 | AF8: 3 | AG8: 60 | AH8: 5 | AI8: 65 | AK8: 5 | AL8: 45 | AM8: 5 | AN8: 50 | AP8: 4 | AQ8: 50 | AR8: 5 | AS8: 55 | AU8: 7 | AV8: 36 | AW8: 5 | AX8: 41 | AZ8: DSQ | BA8: 0 | BB8: 5 | BC8: 5 | BE8: 1 | BF8: 100 | BG8: 5 | BH8: 105 | BJ8: 1 | BK8: 100 | BL8: 5 | BM8: 105 | BO8: 3 | BP8: 60 | BQ8: 1 | BR8: 0 | BS8: 0 | BT8: 0 | BU8: 0 | BV8: 0 | BW8: 0 | BX8: 0
A9: 4 | B9: Foss | C9: Philip | D9: Heming, IL - Ski | E9: =IF(F9<=6,Q9,(Q9-SUM(SMALL(R9:Y9,{1;2})))) -> 405 | F9: 7 | H9: 1 | I9: 2 | J9: 6 | K9: 19 | L9: 5 | N9: 5 | O9: 3 | Q9: 417 | R9: 100 | S9: 80 | T9: 40 | U9: 12 | V9: 45 | W9: 0 | X9: 45 | Y9: 60 | AA9: 1 | AB9: 100 | AC9: 5 | AD9: 105 | AF9: 2 | AG9: 80 | AH9: 5 | AI9: 85 | AK9: 6 | AL9: 40 | AM9: 5 | AN9: 45 | AP9: 19 | AQ9: 12 | AR9: 5 | AS9: 17 | AU9: 5 | AV9: 45 | AW9: 5 | AX9: 50 | BA9: 0 | BB9: 0 | BC9: 0 | BE9: 5 | BF9: 45 | BG9: 5 | BH9: 50 | BJ9: 3 | BK9: 60 | BL9: 5 | BM9: 65 | BO9: 4 | BP9: 50 | BQ9: 0 | BR9: 1 | BS9: 0 | BT9: 0 | BU9: 0 | BV9: 0 | BW9: 0 | BX9: 0
A10: 5 | B10: Øslebø | C10: Kristoffer | D10: Ready - Ski | E10: =IF(F10<=6,Q10,(Q10-SUM(SMALL(R10:Y10,{1;2})))) -> 351 | F10: 8 | H10: 3 | I10: 7 | J10: 7 | K10: 5 | L10: 9 | M10: 2 | N10: 6 | O10: 4 | Q10: 416 | R10: 60 | S10: 36 | T10: 36 | U10: 45 | V10: 29 | W10: 80 | X10: 40 | Y10: 50 | AA10: 3 | AB10: 60 | AC10: 5 | AD10: 65 | AF10: 7 | AG10: 36 | AH10: 5 | AI10: 41 | AK10: 7 | AL10: 36 | AM10: 5 | AN10: 41 | AP10: 5 | AQ10: 45 | AR10: 5 | AS10: 50 | AU10: 9 | AV10: 29 | AW10: 5 | AX10: 34 | AZ10: 2 | BA10: 80 | BB10: 5 | BC10: 85 | BE10: 6 | BF10: 40 | BG10: 5 | BH10: 45 | BJ10: 4 | BK10: 50 | BL10: 5 | BM10: 55 | BO10: 5 | BP10: 45 | BQ10: 1 | BR10: 0 | BS10: 0 | BT10: 0 | BU10: 0 | BV10: 0 | BW10: 0 | BX10: 0
A11: 6 | B11: Hemminghytt | C11: Fredrik | D11: Lommedalens IL - Ski | E11: =IF(F11<=6,Q11,(Q11-SUM(SMALL(R11:Y11,{1;2})))) -> 300 | F11: 4 | J11: 3 | K11: 2 | L11: 3 | M11: 2 | Q11: 300 | AB11: 0 | AC11: 0 | AD11: 0 | AG11: 0 | AH11: 0 | AI11: 0 | AK11: 3 | AL11: 60 | AM11: 5 | AN11: 65 | AP11: 2 | AQ11: 80 | AR11: 5 | AS11: 85 | AU11: 3 | AV11: 60 | AW11: 5 | AX11: 65 | AZ11: 2 | BA11: 80 | BB11: 5 | BC11: 85 | BF11: 0 | BG11: 0 | BH11: 0 | BK11: 0 | BL11: 0 | BM11: 0 | BO11: 6 | BP11: 40 | BQ11: 0 | BR11: 0 | BS11: 0 | BT11: 0 | BU11: 1 | BV11: 0 | BW11: 0 | BX11: 0
A12: 7 | B12: Røkke | C12: Lukas Thulin | D12: Ingierkollen/Rustad Slalomklubb - Ski | E12: =IF(F12<=6,Q12,(Q12-SUM(SMALL(R12:Y12,{1;2})))) -> 230 | F12: 7 | H12: 4 | I12: 5 | J12: 9 | K12: DNF | M12: 5 | N12: 10 | O12: DSQ | Q12: 230 | R12: 50 | S12: 45 | T12: 29 | U12: 0 | V12: 0 | W12: 45 | X12: 26 | Y12: 0 | AA12: 4 | AB12: 50 | AC12: 5 | AD12: 55 | AF12: 5 | AG12: 45 | AH12: 5 | AI12: 50 | AK12: 9 | AL12: 29 | AM12: 5 | AN12: 34 | AP12: DNF | AQ12: 0 | AR12: 5 | AS12: 5 | AV12: 0 | AW12: 0 | AX12: 0 | AZ12: 5 | BA12: 45 | BB12: 5 | BC12: 50 | BE12: 10 | BF12: 26 | BG12: 5 | BH12: 31 | BJ12: DSQ | BK12: 0 | BL12: 5 | BM12: 5 | BO12: 7 | BP12: 36 | BQ12: 0 | BR12: 1 | BS12: 0 | BT12: 0 | BU12: 0 | BV12: 0 | BW12: 0 | BX12: 0
A13: 8 | B13: Aasdal | C13: Birk Skjelle | D13: Ljan Alpinklubb - Ski | E13: =IF(F13<=6,Q13,(Q13-SUM(SMALL(R13:Y13,{1;2})))) -> 225 | F13: 6 | H13: DSQ | I13: 6 | K13: 7 | M13: 4 | N13: 9 | O13: 6 | Q13: 225 | AA13: DSQ | AB13: 0 | AC13: 5 | AD13: 5 | AF13: 6 | AG13: 40 | AH13: 5 | AI13: 45 | AL13: 0 | AM13: 0 | AN13: 0 | AP13: 7 | AQ13: 36 | AR13: 5 | AS13: 41 | AV13: 0 | AW13: 0 | AX13: 0 | AZ13: 4 | BA13: 50 | BB13: 5 | BC13: 55 | BE13: 9 | BF13: 29 | BG13: 5 | BH13: 34 | BJ13: 6 | BK13: 40 | BL13: 5 | BM13: 45 | BO13: 8 | BP13: 32 | BQ13: 0 | BR13: 0 | BS13: 1 | BT13: 0 | BU13: 0 | BV13: 0 | BW13: 0 | BX13: 0
A14: 9 | B14: Finne | C14: Peder August | D14: Heming, IL - Ski | E14: =IF(F14<=6,Q14,(Q14-SUM(SMALL(R14:Y14,{1;2})))) -> 162 | F14: 5 | J14: 11 | K14: 6 | L14: 12 | N14: 12 | O14: 9 | Q14: 162 | AB14: 0 | AC14: 0 | AD14: 0 | AG14: 0 | AH14: 0 | AI14: 0 | AK14: 11 | AL14: 24 | AM14: 5 | AN14: 29 | AP14: 6 | AQ14: 40 | AR14: 5 | AS14: 45 | AU14: 12 | AV14: 22 | AW14: 5 | AX14: 27 | BA14: 0 | BB14: 0 | BC14: 0 | BE14: 12 | BF14: 22 | BG14: 5 | BH14: 27 | BJ14: 9 | BK14: 29 | BL14: 5 | BM14: 34 | BO14: 9 | BP14: 29 | BQ14: 0 | BR14: 0 | BS14: 0 | BT14: 1 | BU14: 0 | BV14: 0 | BW14: 0 | BX14: 0
A15: 10 | B15: Kvæl | C15: Elias | D15: Rælingen | E15: =IF(F15<=6,Q15,(Q15-SUM(SMALL(R15:Y15,{1;2})))) -> 160 | F15: 2 | L15: 1 | N15: 4 | Q15: 160 | AB15: 0 | AC15: 0 | AD15: 0 | AG15: 0 | AH15: 0 | AI15: 0 | AL15: 0 | AM15: 0 | AN15: 0 | AQ15: 0 | AR15: 0 | AS15: 0 | AU15: 1 | AV15: 100 | AW15: 5 | AX15: 105 | BA15: 0 | BB15: 0 | BC15: 0 | BE15: 4 | BF15: 50 | BG15: 5 | BH15: 55 | BK15: 0 | BL15: 0 | BM15: 0 | BO15: 10 | BP15: 26 | BQ15: 0 | BR15: 0 | BS15: 0 | BT15: 0 | BU15: 0 | BV15: 0 | BW15: 1 | BX15: 0
A16: 11 | B16: Bagstevold | C16: Sindre | D16: Heming, IL - Ski | E16: =IF(F16<=6,Q16,(Q16-SUM(SMALL(R16:Y16,{1;2})))) -> 158 | F16: 5 | J16: 8 | K16: 8 | L16: 11 | N16: DSQ | O16: 5 | Q16: 158 | AB16: 0 | AC16: 0 | AD16: 0 | AG16: 0 | AH16: 0 | AI16: 0 | AK16: 8 | AL16: 32 | AM16: 5 | AN16: 37 | AP16: 8 | AQ16: 32 | AR16: 5 | AS16: 37 | AU16: 11 | AV16: 24 | AW16: 5 | AX16: 29 | BA16: 0 | BB16: 0 | BC16: 0 | BE16: DSQ | BF16: 0 | BG16: 5 | BH16: 5 | BJ16: 5 | BK16: 45 | BL16: 5 | BM16: 50 | BO16: 11 | BP16: 24 | BQ16: 0 | BR16: 0 | BS16: 0 | BT16: 1 | BU16: 0 | BV16: 0 | BW16: 0 | BX16: 0
A17: 12 | B17: Toft | C17: Ola Mostraum | D17: Kjelsås IL - Ski | E17: =IF(F17<=6,Q17,(Q17-SUM(SMALL(R17:Y17,{1;2})))) -> 156 | F17: 6 | H17: DSQ | I17: 8 | J17: 13 | K17: 12 | L17: 19 | M17: 6 | Q17: 156 | AA17: DSQ | AB17: 0 | AC17: 5 | AD17: 5 | AF17: 8 | AG17: 32 | AH17: 5 | AI17: 37 | AK17: 13 | AL17: 20 | AM17: 5 | AN17: 25 | AP17: 12 | AQ17: 22 | AR17: 5 | AS17: 27 | AU17: 19 | AV17: 12 | AW17: 5 | AX17: 17 | AZ17: 6 | BA17: 40 | BB17: 5 | BC17: 45 | BF17: 0 | BG17: 0 | BH17: 0 | BK17: 0 | BL17: 0 | BM17: 0 | BO17: 12 | BP17: 22 | BQ17: 0 | BR17: 0 | BS17: 1 | BT17: 0 | BU17: 0 | BV17: 0 | BW17: 0 | BX17: 0
A18: 13 | B18: Hole | C18: Henrik Grøthe | D18: Ingierkollen/Rustad Slalomklubb - Ski | E18: =IF(F18<=6,Q18,(Q18-SUM(SMALL(R18:Y18,{1;2})))) -> 155 | F18: 6 | H18: 6 | I18: 10 | J18: 21 | K18: 15 | N18: 16 | O18: 14 | Q18: 155 | AA18: 6 | AB18: 40 | AC18: 5 | AD18: 45 | AF18: 10 | AG18: 26 | AH18: 5 | AI18: 31 | AK18: 21 | AL18: 10 | AM18: 5 | AN18: 15 | AP18: 15 | AQ18: 16 | AR18: 5 | AS18: 21 | AV18: 0 | AW18: 0 | AX18: 0 | BA18: 0 | BB18: 0 | BC18: 0 | BE18: 16 | BF18: 15 | BG18: 5 | BH18: 20 | BJ18: 14 | BK18: 18 | BL18: 5 | BM18: 23 | BO18: 13 | BP18: 20 | BQ18: 0 | BR18: 0 | BS18: 1 | BT18: 0 | BU18: 0 | BV18: 0 | BW18: 0 | BX18: 0
A19: 13 | B19: Bakkevig | C19: Johannes | D19: Heming, IL - Ski | E19: =IF(F19<=6,Q19,(Q19-SUM(SMALL(R19:Y19,{1;2})))) -> 155 | F19: 3 | L19: 2 | N19: 3 | O19: DSQ | Q19: 155 | AB19: 0 | AC19: 0 | AD19: 0 | AG19: 0 | AH19: 0 | AI19: 0 | AL19: 0 | AM19: 0 | AN19: 0 | AQ19: 0 | AR19: 0 | AS19: 0 | AU19: 2 | AV19: 80 | AW19: 5 | AX19: 85 | BA19: 0 | BB19: 0 | BC19: 0 | BE19: 3 | BF19: 60 | BG19: 5 | BH19: 65 | BJ19: DSQ | BK19: 0 | BL19: 5 | BM19: 5 | BO19: 14 | BP19: 18 | BQ19: 0 | BR19: 0 | BS19: 0 | BT19: 0 | BU19: 0 | BV19: 1 | BW19: 0 | BX19: 0
A20: 15 | B20: Valasjø | C20: Henrik | D20: Ready - Ski | E20: =IF(F20<=6,Q20,(Q20-SUM(SMALL(R20:Y20,{1;2})))) -> 147 | F20: 7 | H20: 8 | I20: 11 | J20: 22 | K20: 18 | M20: 12 | N20: 21 | O20: 20 | Q20: 156 | R20: 32 | S20: 24 | T20: 9 | U20: 13 | V20: 0 | W20: 22 | X20: 10 | Y20: 11 | AA20: 8 | AB20: 32 | AC20: 5 | AD20: 37 | AF20: 11 | AG20: 24 | AH20: 5 | AI20: 29 | AK20: 22 | AL20: 9 | AM20: 5 | AN20: 14 | AP20: 18 | AQ20: 13 | AR20: 5 | AS20: 18 | AV20: 0 | AW20: 0 | AX20: 0 | AZ20: 12 | BA20: 22 | BB20: 5 | BC20: 27 | BE20: 21 | BF20: 10 | BG20: 5 | BH20: 15 | BJ20: 20 | BK20: 11 | BL20: 5 | BM20: 16 | BO20: 15 | BP20: 16 | BQ20: 0 | BR20: 1 | BS20: 0 | BT20: 0 | BU20: 0 | BV20: 0 | BW20: 0 | BX20: 0
A21: 16 | B21: Flaaten | C21: Carl Sebastian | D21: Heming, IL - Ski | E21: =IF(F21<=6,Q21,(Q21-SUM(SMALL(R21:Y21,{1;2})))) -> 130 | F21: 4 | J21: 12 | L21: 13 | N21: 8 | O21: 7 | Q21: 130 | AB21: 0 | AC21: 0 | AD21: 0 | AG21: 0 | AH21: 0 | AI21: 0 | AK21: 12 | AL21: 22 | AM21: 5 | AN21: 27 | AQ21: 0 | AR21: 0 | AS21: 0 | AU21: 13 | AV21: 20 | AW21: 5 | AX21: 25 | BA21: 0 | BB21: 0 | BC21: 0 | BE21: 8 | BF21: 32 | BG21: 5 | BH21: 37 | BJ21: 7 | BK21: 36 | BL21: 5 | BM21: 41 | BO21: 16 | BP21: 15 | BQ21: 0 | BR21: 0 | BS21: 0 | BT21: 0 | BU21: 1 | BV21: 0 | BW21: 0 | BX21: 0
A22: 17 | B22: Hartmann | C22: Marius Holm | D22: Ready - Ski | E22: =IF(F22<=6,Q22,(Q22-SUM(SMALL(R22:Y22,{1;2})))) -> 128 | F22: 5 | H22: 5 | J22: 20 | K22: 14 | L22: 28 | M22: 10 | Q22: 128 | AA22: 5 | AB22: 45 | AC22: 5 | AD22: 50 | AG22: 0 | AH22: 0 | AI22: 0 | AK22: 20 | AL22: 11 | AM22: 5 | AN22: 16 | AP22: 14 | AQ22: 18 | AR22: 5 | AS22: 23 | AU22: 28 | AV22: 3 | AW22: 5 | AX22: 8 | AZ22: 10 | BA22: 26 | BB22: 5 | BC22: 31 | BF22: 0 | BG22: 0 | BH22: 0 | BK22: 0 | BL22: 0 | BM22: 0 | BO22: 17 | BP22: 14 | BQ22: 0 | BR22: 0 | BS22: 0 | BT22: 1 | BU22: 0 | BV22: 0 | BW22: 0 | BX22: 0
A23: 18 | B23: Hagen-Småstu | C23: Sindre | D23: Kjelsås IL - Ski | E23: =IF(F23<=6,Q23,(Q23-SUM(SMALL(R23:Y23,{1;2})))) -> 124 | F23: 6 | H23: 10 | K23: 17 | L23: 24 | M23: 9 | N23: 14 | O23: DNF | Q23: 124 | AA23: 10 | AB23: 26 | AC23: 5 | AD23: 31 | AG23: 0 | AH23: 0 | AI23: 0 | AL23: 0 | AM23: 0 | AN23: 0 | AP23: 17 | AQ23: 14 | AR23: 5 | AS23: 19 | AU23: 24 | AV23: 7 | AW23: 5 | AX23: 12 | AZ23: 9 | BA23: 29 | BB23: 5 | BC23: 34 | BE23: 14 | BF23: 18 | BG23: 5 | BH23: 23 | BJ23: DNF | BK23: 0 | BL23: 5 | BM23: 5 | BO23: 18 | BP23: 13 | BQ23: 0 | BR23: 0 | BS23: 1 | BT23: 0 | BU23: 0 | BV23: 0 | BW23: 0 | BX23: 0
A24: 19 | B24: Lysgård | C24: Sebastian Bang | D24: Heming, IL - Ski | E24: =IF(F24<=6,Q24,(Q24-SUM(SMALL(R24:Y24,{1;2})))) -> 122 | F24: 5 | J24: 17 | K24: 10 | L24: 18 | N24: 11 | O24: 13 | Q24: 122 | AB24: 0 | AC24: 0 | AD24: 0 | AG24: 0 | AH24: 0 | AI24: 0 | AK24: 17 | AL24: 14 | AM24: 5 | AN24: 19 | AP24: 10 | AQ24: 26 | AR24: 5 | AS24: 31 | AU24: 18 | AV24: 13 | AW24: 5 | AX24: 18 | BA24: 0 | BB24: 0 | BC24: 0 | BE24: 11 | BF24: 24 | BG24: 5 | BH24: 29 | BJ24: 13 | BK24: 20 | BL24: 5 | BM24: 25 | BO24: 19 | BP24: 12 | BQ24: 0 | BR24: 0 | BS24: 0 | BT24: 1 | BU24: 0 | BV24: 0 | BW24: 0 | BX24: 0
A25: 20 | B25: Trøan | C25: Caspian Steen | D25: Heming, IL - Ski | E25: =IF(F25<=6,Q25,(Q25-SUM(SMALL(R25:Y25,{1;2})))) -> 116 | F25: 2 | J25: 2 | L25: 10 | Q25: 116 | AB25: 0 | AC25: 0 | AD25: 0 | AG25: 0 | AH25: 0 | AI25: 0 | AK25: 2 | AL25: 80 | AM25: 5 | AN25: 85 | AQ25: 0 | AR25: 0 | AS25: 0 | AU25: 10 | AV25: 26 | AW25: 5 | AX25: 31 | BA25: 0 | BB25: 0 | BC25: 0 | BF25: 0 | BG25: 0 | BH25: 0 | BK25: 0 | BL25: 0 | BM25: 0 | BO25: 20 | BP25: 11 | BQ25: 0 | BR25: 0 | BS25: 0 | BT25: 0 | BU25: 0 | BV25: 0 | BW25: 1 | BX25: 0
A26: 21 | B26: Hunstad | C26: Nicolai Christian | D26: Heming, IL - Ski | E26: =IF(F26<=6,Q26,(Q26-SUM(SMALL(R26:Y26,{1;2})))) -> 114 | F26: 5 | H26: 11 | I26: 9 | J26: 19 | L26: 23 | N26: 15 | Q26: 114 | AA26: 11 | AB26: 24 | AC26: 5 | AD26: 29 | AF26: 9 | AG26: 29 | AH26: 5 | AI26: 34 | AK26: 19 | AL26: 12 | AM26: 5 | AN26: 17 | AQ26: 0 | AR26: 0 | AS26: 0 | AU26: 23 | AV26: 8 | AW26: 5 | AX26: 13 | BA26: 0 | BB26: 0 | BC26: 0 | BE26: 15 | BF26: 16 | BG26: 5 | BH26: 21 | BK26: 0 | BL26: 0 | BM26: 0 | BO26: 21 | BP26: 10 | BQ26: 0 | BR26: 0 | BS26: 0 | BT26: 1 | BU26: 0 | BV26: 0 | BW26: 0 | BX26: 0
A27: 22 | B27: Krohn-Oppi | C27: Kristian | D27: Kjelsås IL - Ski | E27: =IF(F27<=6,Q27,(Q27-SUM(SMALL(R27:Y27,{1;2})))) -> 105 | F27: 5 | H27: 7 | K27: 15 | L27: 27 | N27: DSQ | O27: 11 | Q27: 105 | AA27: 7 | AB27: 36 | AC27: 5 | AD27: 41 | AG27: 0 | AH27: 0 | AI27: 0 | AL27: 0 | AM27: 0 | AN27: 0 | AP27: 15 | AQ27: 16 | AR27: 5 | AS27: 21 | AU27: 27 | AV27: 4 | AW27: 5 | AX27: 9 | BA27: 0 | BB27: 0 | BC27: 0 | BE27: DSQ | BF27: 0 | BG27: 5 | BH27: 5 | BJ27: 11 | BK27: 24 | BL27: 5 | BM27: 29 | BO27: 22 | BP27: 9 | BQ27: 0 | BR27: 0 | BS27: 0 | BT27: 1 | BU27: 0 | BV27: 0 | BW27: 0 | BX27: 0
A28: 23 | B28: Christiansen | C28: Victor Åstasund | D28: Ingierkollen/Rustad Slalomklubb - Ski | E28: =IF(F28<=6,Q28,(Q28-SUM(SMALL(R28:Y28,{1;2})))) -> 97 | F28: 4 | H28: 9 | I28: 12 | N28: 20 | O28: 16 | Q28: 97 | AA28: 9 | AB28: 29 | AC28: 5 | AD28: 34 | AF28: 12 | AG28: 22 | AH28: 5 | AI28: 27 | AL28: 0 | AM28: 0 | AN28: 0 | AQ28: 0 | AR28: 0 | AS28: 0 | AV28: 0 | AW28: 0 | AX28: 0 | BA28: 0 | BB28: 0 | BC28: 0 | BE28: 20 | BF28: 11 | BG28: 5 | BH28: 16 | BJ28: 16 | BK28: 15 | BL28: 5 | BM28: 20 | BO28: 23 | BP28: 8 | BQ28: 0 | BR28: 0 | BS28: 0 | BT28: 0 | BU28: 1 | BV28: 0 | BW28: 0 | BX28: 0
A29: 24 | B29: Kildal | C29: Peder Rise | D29: Heming, IL - Ski | E29: =IF(F29<=6,Q29,(Q29-SUM(SMALL(R29:Y29,{1;2})))) -> 94 | F29: 4 | J29: 14 | L29: 21 | N29: 13 | O29: 10 | Q29: 94 | AB29: 0 | AC29: 0 | AD29: 0 | AG29: 0 | AH29: 0 | AI29: 0 | AK29: 14 | AL29: 18 | AM29: 5 | AN29: 23 | AQ29: 0 | AR29: 0 | AS29: 0 | AU29: 21 | AV29: 10 | AW29: 5 | AX29: 15 | BA29: 0 | BB29: 0 | BC29: 0 | BE29: 13 | BF29: 20 | BG29: 5 | BH29: 25 | BJ29: 10 | BK29: 26 | BL29: 5 | BM29: 31 | BO29: 24 | BP29: 7 | BQ29: 0 | BR29: 0 | BS29: 0 | BT29: 0 | BU29: 1 | BV29: 0 | BW29: 0 | BX29: 0
A30: 25 | B30: Vigstad-Petersen | C30: Eirik | D30: Høybråten og Stovner IL - Ski | E30: =IF(F30<=6,Q30,(Q30-SUM(SMALL(R30:Y30,{1;2})))) -> 89 | F30: 4 | K30: 20 | M30: 8 | N30: 17 | O30: 19 | Q30: 89 | AB30: 0 | AC30: 0 | AD30: 0 | AG30: 0 | AH30: 0 | AI30: 0 | AL30: 0 | AM30: 0 | AN30: 0 | AP30: 20 | AQ30: 11 | AR30: 5 | AS30: 16 | AV30: 0 | AW30: 0 | AX30: 0 | AZ30: 8 | BA30: 32 | BB30: 5 | BC30: 37 | BE30: 17 | BF30: 14 | BG30: 5 | BH30: 19 | BJ30: 19 | BK30: 12 | BL30: 5 | BM30: 17 | BO30: 25 | BP30: 6 | BQ30: 0 | BR30: 0 | BS30: 0 | BT30: 0 | BU30: 1 | BV30: 0 | BW30: 0 | BX30: 0
A31: 26 | B31: Bøhmer | C31: Knut Fredrik Kolle | D31: Heming, IL - Ski | E31: =IF(F31<=6,Q31,(Q31-SUM(SMALL(R31:Y31,{1;2})))) -> 88 | F31: 3 | J31: 10 | K31: 9 | L31: 14 | Q31: 88 | AB31: 0 | AC31: 0 | AD31: 0 | AG31: 0 | AH31: 0 | AI31: 0 | AK31: 10 | AL31: 26 | AM31: 5 | AN31: 31 | AP31: 9 | AQ31: 29 | AR31: 5 | AS31: 34 | AU31: 14 | AV31: 18 | AW31: 5 | AX31: 23 | BA31: 0 | BB31: 0 | BC31: 0 | BF31: 0 | BG31: 0 | BH31: 0 | BK31: 0 | BL31: 0 | BM31: 0 | BO31: 26 | BP31: 5 | BQ31: 0 | BR31: 0 | BS31: 0 | BT31: 0 | BU31: 0 | BV31: 1 | BW31: 0 | BX31: 0
A32: 27 | B32: Rehman | C32: Tor Fabian Evert | D32: Ready - Ski | E32: =IF(F32<=6,Q32,(Q32-SUM(SMALL(R32:Y32,{1;2})))) -> 79 | F32: 4 | J32: 18 | K32: 11 | N32: DSQ | O32: 12 | Q32: 79 | AB32: 0 | AC32: 0 | AD32: 0 | AG32: 0 | AH32: 0 | AI32: 0 | AK32: 18 | AL32: 13 | AM32: 5 | AN32: 18 | AP32: 11 | AQ32: 24 | AR32: 5 | AS32: 29 | AV32: 0 | AW32: 0 | AX32: 0 | BA32: 0 | BB32: 0 | BC32: 0 | BE32: DSQ | BF32: 0 | BG32: 5 | BH32: 5 | BJ32: 12 | BK32: 22 | BL32: 5 | BM32: 27 | BO32: 27 | BP32: 4 | BQ32: 0 | BR32: 0 | BS32: 0 | BT32: 0 | BU32: 1 | BV32: 0 | BW32: 0 | BX32: 0
A33: 28 | B33: Meinich-Bakke | C33: Sverre | D33: Rælingen | E33: =IF(F33<=6,Q33,(Q33-SUM(SMALL(R33:Y33,{1;2})))) -> 78 | F33: 2 | L33: 8 | M33: 7 | Q33: 78 | AB33: 0 | AC33: 0 | AD33: 0 | AG33: 0 | AH33: 0 | AI33: 0 | AL33: 0 | AM33: 0 | AN33: 0 | AQ33: 0 | AR33: 0 | AS33: 0 | AU33: 8 | AV33: 32 | AW33: 5 | AX33: 37 | AZ33: 7 | BA33: 36 | BB33: 5 | BC33: 41 | BF33: 0 | BG33: 0 | BH33: 0 | BK33: 0 | BL33: 0 | BM33: 0 | BO33: 28 | BP33: 3 | BQ33: 0 | BR33: 0 | BS33: 0 | BT33: 0 | BU33: 0 | BV33: 0 | BW33: 1 | BX33: 0
A34: 29 | B34: Ruud-Hansen | C34: Max | D34: Kjelsås IL - Ski | E34: =IF(F34<=6,Q34,(Q34-SUM(SMALL(R34:Y34,{1;2})))) -> 71 | F34: 6 | H34: DSQ | J34: 23 | L34: 25 | M34: DNF | N34: 18 | O34: 17 | Q34: 71 | AA34: DSQ | AB34: 0 | AC34: 5 | AD34: 5 | AG34: 0 | AH34: 0 | AI34: 0 | AK34: 23 | AL34: 8 | AM34: 5 | AN34: 13 | AQ34: 0 | AR34: 0 | AS34: 0 | AU34: 25 | AV34: 6 | AW34: 5 | AX34: 11 | AZ34: DNF | BA34: 0 | BB34: 5 | BC34: 5 | BE34: 18 | BF34: 13 | BG34: 5 | BH34: 18 | BJ34: 17 | BK34: 14 | BL34: 5 | BM34: 19 | BO34: 29 | BP34: 2 | BQ34: 0 | BR34: 0 | BS34: 1 | BT34: 0 | BU34: 0 | BV34: 0 | BW34: 0 | BX34: 0
A35: 30 | B35: Manley | C35: Hermann | D35: Kjelsås IL - Ski | E35: =IF(F35<=6,Q35,(Q35-SUM(SMALL(R35:Y35,{1;2})))) -> 64 | F35: 3 | M35: 11 | N35: 19 | O35: 18 | Q35: 64 | AB35: 0 | AC35: 0 | AD35: 0 | AG35: 0 | AH35: 0 | AI35: 0 | AL35: 0 | AM35: 0 | AN35: 0 | AQ35: 0 | AR35: 0 | AS35: 0 | AV35: 0 | AW35: 0 | AX35: 0 | AZ35: 11 | BA35: 24 | BB35: 5 | BC35: 29 | BE35: 19 | BF35: 12 | BG35: 5 | BH35: 17 | BJ35: 18 | BK35: 13 | BL35: 5 | BM35: 18 | BO35: 30 | BP35: 1 | BQ35: 0 | BR35: 0 | BS35: 0 | BT35: 0 | BU35: 0 | BV35: 1 | BW35: 0 | BX35: 0
A36: 31 | B36: Kulberg | C36: Ulrik | D36: Ready - Ski | E36: =IF(F36<=6,Q36,(Q36-SUM(SMALL(R36:Y36,{1;2})))) -> 57 | F36: 4 | J36: 16 | K36: 13 | L36: 29 | N36: DSQ | Q36: 57 | AB36: 0 | AC36: 0 | AD36: 0 | AG36: 0 | AH36: 0 | AI36: 0 | AK36: 16 | AL36: 15 | AM36: 5 | AN36: 20 | AP36: 13 | AQ36: 20 | AR36: 5 | AS36: 25 | AU36: 29 | AV36: 2 | AW36: 5 | AX36: 7 | BA36: 0 | BB36: 0 | BC36: 0 | BE36: DSQ | BF36: 0 | BG36: 5 | BH36: 5 | BK36: 0 | BL36: 0 | BM36: 0 | BO36: 31 | BP36: 0 | BQ36: 0 | BR36: 0 | BS36: 0 | BT36: 0 | BU36: 1 | BV36: 0 | BW36: 0 | BX36: 0
A37: 32 | B37: Johnsen | C37: Christian Hjallum | D37: Heming, IL - Ski | E37: =IF(F37<=6,Q37,(Q37-SUM(SMALL(R37:Y37,{1;2})))) -> 50 | F37: 4 | J37: 15 | L37: 17 | N37: DSQ | O37: DSQ | Q37: 50 | AB37: 0 | AC37: 0 | AD37: 0 | AG37: 0 | AH37: 0 | AI37: 0 | AK37: 15 | AL37: 16 | AM37: 5 | AN37: 21 | AQ37: 0 | AR37: 0 | AS37: 0 | AU37: 17 | AV37: 14 | AW37: 5 | AX37: 19 | BA37: 0 | BB37: 0 | BC37: 0 | BE37: DSQ | BF37: 0 | BG37: 5 | BH37: 5 | BJ37: DSQ | BK37: 0 | BL37: 5 | BM37: 5 | BO37: 32 | BP37: 0 | BQ37: 0 | BR37: 0 | BS37: 0 | BT37: 0 | BU37: 1 | BV37: 0 | BW37: 0 | BX37: 0
A38: 33 | B38: Coneliussen | C38: Luca | D38: Kjelsås IL - Ski | E38: =IF(F38<=6,Q38,(Q38-SUM(SMALL(R38:Y38,{1;2})))) -> 44 | F38: =(IF(AC38=5,1,0)+IF(AH38=5,1,0)+IF(AM38=5,1,0)+IF(AR38=5,1,0)+IF(AW38=5,1,0)+IF(BB38=5,1,0)+IF(BG38=5,1,0)+IF(BL38=5,1,0)) -> 3 | H38: =IF(AA38="","",AA38) ->  | I38: =IF(AF38="","",AF38) ->  | J38: =IF(AK38="","",AK38) ->  | K38: =IF(AP38="","",AP38) ->  | L38: =IF(AU38="","",AU38) ->  | M38: =IF(AZ38="","",AZ38) -> 13 | N38: =IF(BE38="","",BE38) -> 22 | O38: =IF(BJ38="","",BJ38) -> DSQ | Q38: =AD38+AI38+AN38+AS38+AX38+BC38+BH38+BM38 -> 44 | R38: =IF($F38>=7,IF(AB38="","",AB38),"") ->  | S38: =IF($F38>=7,IF(AG38="","",AG38),"") ->  | T38: =IF($F38>=7,IF(AL38="","",AL38),"") ->  | U38: =IF($F38>=7,IF(AQ38="","",AQ38),"") ->  | V38: =IF($F38>=7,IF(AV38="","",AV38),"") ->  | W38: =IF($F38>=7,IF(BA38="","",BA38),"") ->  | X38: =IF($F38>=7,IF(BF38="","",BF38),"") ->  | Y38: =IF($F38>=7,IF(BK38="","",BK38),"") ->  | AB38: =IF(ISNUMBER(AA38),(VLOOKUP(AA38,$BO$6:$BP$50,2)),0) -> 0 | AC38: =IF(AA38<>"",5,0) -> 0 | AD38: =AB38+AC38 -> 0 | AG38: =IF(ISNUMBER(AF38),(VLOOKUP(AF38,$BO$6:$BP$50,2)),0) -> 0 | AH38: =IF(AF38<>"",5,0) -> 0 | AI38: =AG38+AH38 -> 0 | AL38: =IF(ISNUMBER(AK38),(VLOOKUP(AK38,$BO$6:$BP$50,2)),0) -> 0 | AM38: =IF(AK38<>"",5,0) -> 0 | AN38: =AL38+AM38 -> 0 | AQ38: =IF(ISNUMBER(AP38),(VLOOKUP(AP38,$BO$6:$BP$50,2)),0) -> 0 | AR38: =IF(AP38<>"",5,0) -> 0 | AS38: =AQ38+AR38 -> 0 | AV38: =IF(ISNUMBER(AU38),(VLOOKUP(AU38,$BO$6:$BP$50,2)),0) -> 0 | AW38: =IF(AU38<>"",5,0) -> 0 | AX38: =AV38+AW38 -> 0 | AZ38: 13 | BA38: =IF(ISNUMBER(AZ38),(VLOOKUP(AZ38,$BO$6:$BP$50,2)),0) -> 20 | BB38: =IF(AZ38<>"",5,0) -> 5 | BC38: =BA38+BB38 -> 25 | BE38: 22 | BF38: =IF(ISNUMBER(BE38),(VLOOKUP(BE38,$BO$6:$BP$50,2)),0) -> 9 | BG38: =IF(BE38<>"",5,0) -> 5 | BH38: =BF38+BG38 -> 14 | BJ38: DSQ | BK38: =IF(ISNUMBER(BJ38),(VLOOKUP(BJ38,$BO$6:$BP$50,2)),0) -> 0 | BL38: =IF(BJ38<>"",5,0) -> 5 | BM38: =BK38+BL38 -> 5 | BO38: 33 | BP38: 0 | BQ38: 0 | BR38: 0 | BS38: 0 | BT38: 0 | BU38: 0 | BV38: 1 | BW38: 0 | BX38: 0
A39: 34 | B39: Jacobsen | C39: Nicholas | E39: =IF(F39<=6,Q39,(Q39-SUM(SMALL(R39:Y39,{1;2})))) -> 31 | F39: 2 | L39: 26 | O39: 15 | Q39: 31 | AB39: 0 | AC39: 0 | AD39: 0 | AG39: 0 | AH39: 0 | AI39: 0 | AL39: 0 | AM39: 0 | AN39: 0 | AQ39: 0 | AR39: 0 | AS39: 0 | AU39: 26 | AV39: 5 | AW39: 5 | AX39: 10 | BA39: 0 | BB39: 0 | BC39: 0 | BF39: 0 | BG39: 0 | BH39: 0 | BJ39: 15 | BK39: 16 | BL39: 5 | BM39: 21 | BO39: 34 | BP39: 0 | BQ39: 0 | BR39: 0 | BS39: 0 | BT39: 0 | BU39: 0 | BV39: 0 | BW39: 1 | BX39: 0
A40: 34 | B40: Lysklætt | C40: Sebastian | D40: Heming, IL - Ski | E40: =IF(F40<=6,Q40,(Q40-SUM(SMALL(R40:Y40,{1;2})))) -> 31 | F40: 3 | K40: DNF | L40: 15 | N40: DNF | Q40: 31 | AB40: 0 | AC40: 0 | AD40: 0 | AG40: 0 | AH40: 0 | AI40: 0 | AL40: 0 | AM40: 0 | AN40: 0 | AP40: DNF | AQ40: 0 | AR40: 5 | AS40: 5 | AU40: 15 | AV40: 16 | AW40: 5 | AX40: 21 | BA40: 0 | BB40: 0 | BC40: 0 | BE40: DNF | BF40: 0 | BG40: 5 | BH40: 5 | BK40: 0 | BL40: 0 | BM40: 0 | BO40: 35 | BP40: 0 | BQ40: 0 | BR40: 0 | BS40: 0 | BT40: 0 | BU40: 0 | BV40: 1 | BW40: 0 | BX40: 0
A41: 36 | B41: Riz | C41: Nias Bjørkaa de | D41: Kjelsås IL - Ski | E41: =IF(F41<=6,Q41,(Q41-SUM(SMALL(R41:Y41,{1;2})))) -> 27 | F41: 2 | N41: 23 | O41: 22 | Q41: 27 | AB41: 0 | AC41: 0 | AD41: 0 | AG41: 0 | AH41: 0 | AI41: 0 | AL41: 0 | AM41: 0 | AN41: 0 | AQ41: 0 | AR41: 0 | AS41: 0 | AV41: 0 | AW41: 0 | AX41: 0 | BA41: 0 | BB41: 0 | BC41: 0 | BE41: 23 | BF41: 8 | BG41: 5 | BH41: 13 | BJ41: 22 | BK41: 9 | BL41: 5 | BM41: 14 | BO41: 36 | BP41: 0 | BQ41: 0 | BR41: 0 | BS41: 0 | BT41: 0 | BU41: 0 | BV41: 0 | BW41: 1 | BX41: 0
A42: 37 | B42: Tschudi-Nytvedt | C42: Sebastian | E42: =IF(F42<=6,Q42,(Q42-SUM(SMALL(R42:Y42,{1;2})))) -> 25 | F42: 2 | L42: 16 | N42: DSQ | Q42: 25 | AB42: 0 | AC42: 0 | AD42: 0 | AG42: 0 | AH42: 0 | AI42: 0 | AL42: 0 | AM42: 0 | AN42: 0 | AQ42: 0 | AR42: 0 | AS42: 0 | AU42: 16 | AV42: 15 | AW42: 5 | AX42: 20 | BA42: 0 | BB42: 0 | BC42: 0 | BE42: DSQ | BF42: 0 | BG42: 5 | BH42: 5 | BK42: 0 | BL42: 0 | BM42: 0 | BO42: 37 | BP42: 0 | BQ42: 0 | BR42: 0 | BS42: 0 | BT42: 0 | BU42: 0 | BV42: 0 | BW42: 1 | BX42: 0
A43: 38 | B43: Hjelle | C43: Kristoffer | D43: Lørenskog | E43: =IF(F43<=6,Q43,(Q43-SUM(SMALL(R43:Y43,{1;2})))) -> 23 | F43: 1 | M43: 14 | Q43: 23 | AB43: 0 | AC43: 0 | AD43: 0 | AG43: 0 | AH43: 0 | AI43: 0 | AL43: 0 | AM43: 0 | AN43: 0 | AQ43: 0 | AR43: 0 | AS43: 0 | AV43: 0 | AW43: 0 | AX43: 0 | AZ43: 14 | BA43: 18 | BB43: 5 | BC43: 23 | BF43: 0 | BG43: 0 | BH43: 0 | BK43: 0 | BL43: 0 | BM43: 0 | BO43: 38 | BP43: 0 | BQ43: 0 | BR43: 0 | BS43: 0 | BT43: 0 | BU43: 0 | BV43: 0 | BW43: 0 | BX43: 1
A44: 39 | B44: Koblasa | C44: Dylan | D44: Njrd - Ski | E44: =IF(F44<=6,Q44,(Q44-SUM(SMALL(R44:Y44,{1;2})))) -> 18 | F44: 2 | J44: 24 | L44: 30 | Q44: 18 | AB44: 0 | AC44: 0 | AD44: 0 | AG44: 0 | AH44: 0 | AI44: 0 | AK44: 24 | AL44: 7 | AM44: 5 | AN44: 12 | AQ44: 0 | AR44: 0 | AS44: 0 | AU44: 30 | AV44: 1 | AW44: 5 | AX44: 6 | BA44: 0 | BB44: 0 | BC44: 0 | BF44: 0 | BG44: 0 | BH44: 0 | BK44: 0 | BL44: 0 | BM44: 0 | BO44: 39 | BP44: 0 | BQ44: 0 | BR44: 0 | BS44: 0 | BT44: 0 | BU44: 0 | BV44: 0 | BW44: 1 | BX44: 0
A45: 40 | B45: Slettvold | C45: Nicolai | E45: =IF(F45<=6,Q45,(Q45-SUM(SMALL(R45:Y45,{1;2})))) -> 16 | F45: 1 | L45: 20 | Q45: 16 | AB45: 0 | AC45: 0 | AD45: 0 | AG45: 0 | AH45: 0 | AI45: 0 | AL45: 0 | AM45: 0 | AN45: 0 | AQ45: 0 | AR45: 0 | AS45: 0 | AU45: 20 | AV45: 11 | AW45: 5 | AX45: 16 | BA45: 0 | BB45: 0 | BC45: 0 | BF45: 0 | BG45: 0 | BH45: 0 | BK45: 0 | BL45: 0 | BM45: 0 | BO45: 40 | BP45: 0 | BQ45: 0 | BR45: 0 | BS45: 0 | BT45: 0 | BU45: 0 | BV45: 0 | BW45: 0 | BX45: 1
A46: 40 | B46: Koblasa | C46: Jonah | D46: Njrd - Ski | E46: =IF(F46<=6,Q46,(Q46-SUM(SMALL(R46:Y46,{1;2})))) -> 16 | F46: 2 | J46: 25 | L46: DNF | Q46: 16 | AB46: 0 | AC46: 0 | AD46: 0 | AG46: 0 | AH46: 0 | AI46: 0 | AK46: 25 | AL46: 6 | AM46: 5 | AN46: 11 | AQ46: 0 | AR46: 0 | AS46: 0 | AU46: DNF | AV46: 0 | AW46: 5 | AX46: 5 | BA46: 0 | BB46: 0 | BC46: 0 | BF46: 0 | BG46: 0 | BH46: 0 | BK46: 0 | BL46: 0 | BM46: 0 | BO46: 41 | BP46: 0 | BQ46: 0 | BR46: 0 | BS46: 0 | BT46: 0 | BU46: 0 | BV46: 0 | BW46: 1 | BX46: 0
A47: 42 | B47: Stigen | C47: Mikkel Løvfall | D47: Kjelsås IL - Ski | E47: =IF(F47<=6,Q47,(Q47-SUM(SMALL(R47:Y47,{1;2})))) -> 15 | F47: 1 | O47: 21 | Q47: 15 | AB47: 0 | AC47: 0 | AD47: 0 | AG47: 0 | AH47: 0 | AI47: 0 | AL47: 0 | AM47: 0 | AN47: 0 | AQ47: 0 | AR47: 0 | AS47: 0 | AV47: 0 | AW47: 0 | AX47: 0 | BA47: 0 | BB47: 0 | BC47: 0 | BF47: 0 | BG47: 0 | BH47: 0 | BJ47: 21 | BK47: 10 | BL47: 5 | BM47: 15 | BO47: 42 | BP47: 0 | BQ47: 0 | BR47: 0 | BS47: 0 | BT47: 0 | BU47: 0 | BV47: 0 | BW47: 0 | BX47: 1
A48: 43 | B48: Bergseter | C48: Didrik | E48: =IF(F48<=6,Q48,(Q48-SUM(SMALL(R48:Y48,{1;2})))) -> 14 | F48: 1 | L48: 22 | Q48: 14 | AB48: 0 | AC48: 0 | AD48: 0 | AG48: 0 | AH48: 0 | AI48: 0 | AL48: 0 | AM48: 0 | AN48: 0 | AQ48: 0 | AR48: 0 | AS48: 0 | AU48: 22 | AV48: 9 | AW48: 5 | AX48: 14 | BA48: 0 | BB48: 0 | BC48: 0 | BF48: 0 | BG48: 0 | BH48: 0 | BK48: 0 | BL48: 0 | BM48: 0 | BO48: 43 | BP48: 0 | BQ48: 0 | BR48: 0 | BS48: 0 | BT48: 0 | BU48: 0 | BV48: 0 | BW48: 0 | BX48: 1
A49: 44 | B49: Skavik | C49: Trym | E49: =IF(F49<=6,Q49,(Q49-SUM(SMALL(R49:Y49,{1;2})))) -> 5 | F49: 1 | L49: DNF | Q49: 5 | AB49: 0 | AC49: 0 | AD49: 0 | AG49: 0 | AH49: 0 | AI49: 0 | AL49: 0 | AM49: 0 | AN49: 0 | AQ49: 0 | AR49: 0 | AS49: 0 | AU49: DNF | AV49: 0 | AW49: 5 | AX49: 5 | BA49: 0 | BB49: 0 | BC49: 0 | BF49: 0 | BG49: 0 | BH49: 0 | BK49: 0 | BL49: 0 | BM49: 0 | BO49: 44 | BP49: 0 | BQ49: 0 | BR49: 0 | BS49: 0 | BT49: 0 | BU49: 0 | BV49: 0 | BW49: 0 | BX49: 1
A50: 44 | B50: Samdal | C50: Simen | D50: Kjelsås IL - Ski | E50: =IF(F50<=6,Q50,(Q50-SUM(SMALL(R50:Y50,{1;2})))) -> 5 | F50: 1 | M50: DSQ | Q50: 5 | AB50: 0 | AC50: 0 | AD50: 0 | AG50: 0 | AH50: 0 | AI50: 0 | AL50: 0 | AM50: 0 | AN50: 0 | AQ50: 0 | AR50: 0 | AS50: 0 | AV50: 0 | AW50: 0 | AX50: 0 | AZ50: DSQ | BA50: 0 | BB50: 5 | BC50: 5 | BF50: 0 | BG50: 0 | BH50: 0 | BK50: 0 | BL50: 0 | BM50: 0 | BO50: 45 | BP50: 0 | BQ50: 0 | BR50: 0 | BS50: 0 | BT50: 0 | BU50: 0 | BV50: 0 | BW50: 0 | BX50: 1
A51: 44 | B51: Malling | C51: Peter | E51: =IF(F51<=6,Q51,(Q51-SUM(SMALL(R51:Y51,{1;2})))) -> 5 | F51: 1 | L51: DNF | Q51: 5 | AB51: 0 | AC51: 0 | AD51: 0 | AG51: 0 | AH51: 0 | AI51: 0 | AL51: 0 | AM51: 0 | AN51: 0 | AQ51: 0 | AR51: 0 | AS51: 0 | AU51: DNF | AV51: 0 | AW51: 5 | AX51: 5 | BA51: 0 | BB51: 0 | BC51: 0 | BF51: 0 | BG51: 0 | BH51: 0 | BK51: 0 | BL51: 0 | BM51: 0 | BO51: 46 | BP51: 0 | BQ51: 0 | BR51: 0 | BS51: 0 | BT51: 0 | BU51: 0 | BV51: 0 | BW51: 0 | BX51: 1
A52: 47 | E52: =IF(F52<=6,Q52,(Q52-SUM(SMALL(R52:Y52,{1;2})))) -> 0 | F52: 0 | Q52: 0 | AB52: 0 | AC52: 0 | AD52: 0 | AG52: 0 | AH52: 0 | AI52: 0 | AL52: 0 | AM52: 0 | AN52: 0 | AQ52: 0 | AR52: 0 | AS52: 0 | AV52: 0 | AW52: 0 | AX52: 0 | BA52: 0 | BB52: 0 | BC52: 0 | BF52: 0 | BG52: 0 | BH52: 0 | BK52: 0 | BL52: 0 | BM52: 0 | BO52: 47 | BP52: 0 | BQ52: 0 | BR52: 0 | BS52: 0 | BT52: 0 | BU52: 0 | BV52: 0 | BW52: 0 | BX52: 0
A53: 47 | E53: =IF(F53<=6,Q53,(Q53-SUM(SMALL(R53:Y53,{1;2})))) -> 0 | F53: 0 | Q53: 0 | AB53: 0 | AC53: 0 | AD53: 0 | AG53: 0 | AH53: 0 | AI53: 0 | AL53: 0 | AM53: 0 | AN53: 0 | AQ53: 0 | AR53: 0 | AS53: 0 | AV53: 0 | AW53: 0 | AX53: 0 | BA53: 0 | BB53: 0 | BC53: 0 | BF53: 0 | BG53: 0 | BH53: 0 | BK53: 0 | BL53: 0 | BM53: 0 | BO53: 48 | BP53: 0 | BQ53: 0 | BR53: 0 | BS53: 0 | BT53: 0 | BU53: 0 | BV53: 0 | BW53: 0 | BX53: 0
A54: =IF(E54<E53,BO55,A53) -> 47 | E54: =IF(F54<=6,Q54,(Q54-SUM(SMALL(R54:Y54,{1;2})))) -> 0 | F54: 0 | Q54: 0 | AB54: 0 | AC54: 0 | AD54: 0 | AG54: 0 | AH54: 0 | AI54: 0 | AL54: 0 | AM54: 0 | AN54: 0 | AQ54: 0 | AR54: 0 | AS54: 0 | AV54: 0 | AW54: 0 | AX54: 0 | BA54: 0 | BB54: 0 | BC54: 0 | BF54: 0 | BG54: 0 | BH54: 0 | BK54: 0 | BL54: 0 | BM54: 0 | BO54: 49 | BP54: 0 | BQ54: 0 | BR54: 0 | BS54: 0 | BT54: 0 | BU54: 0 | BV54: 0 | BW54: 0 | BX54: 0
A55: 47 | E55: =IF(F55<=6,Q55,(Q55-SUM(SMALL(R55:Y55,{1;2})))) -> 0 | F55: 0 | Q55: 0 | AB55: 0 | AC55: 0 | AD55: 0 | AG55: 0 | AH55: 0 | AI55: 0 | AL55: 0 | AM55: 0 | AN55: 0 | AQ55: 0 | AR55: 0 | AS55: 0 | AV55: 0 | AW55: 0 | AX55: 0 | BA55: 0 | BB55: 0 | BC55: 0 | BF55: 0 | BG55: 0 | BH55: 0 | BK55: 0 | BL55: 0 | BM55: 0 | BO55: 50 | BP55: 0 | BQ55: 0 | BR55: 0 | BS55: 0 | BT55: 0 | BU55: 0 | BV55: 0 | BW55: 0 | BX55: 0
A56: 47 | E56: =IF(F56<=6,Q56,(Q56-SUM(SMALL(R56:Y56,{1;2})))) -> 0 | F56: 0 | Q56: 0 | AB56: 0 | AC56: 0 | AD56: 0 | AG56: 0 | AH56: 0 | AI56: 0 | AL56: 0 | AM56: 0 | AN56: 0 | AQ56: 0 | AR56: 0 | AS56: 0 | AV56: 0 | AW56: 0 | AX56: 0 | BA56: 0 | BB56: 0 | BC56: 0 | BF56: 0 | BG56: 0 | BH56: 0 | BK56: 0 | BL56: 0 | BM56: 0 | BO56: 51 | BP56: 0 | BQ56: 0 | BR56: 0 | BS56: 0 | BT56: 0 | BU56: 0 | BV56: 0 | BW56: 0 | BX56: 0
A57: 47 | E57: =IF(F57<=6,Q57,(Q57-SUM(SMALL(R57:Y57,{1;2})))) -> 0 | F57: 0 | Q57: 0 | AB57: 0 | AC57: 0 | AD57: 0 | AG57: 0 | AH57: 0 | AI57: 0 | AL57: 0 | AM57: 0 | AN57: 0 | AQ57: 0 | AR57: 0 | AS57: 0 | AV57: 0 | AW57: 0 | AX57: 0 | BA57: 0 | BB57: 0 | BC57: 0 | BF57: 0 | BG57: 0 | BH57: 0 | BK57: 0 | BL57: 0 | BM57: 0 | BO57: 52 | BP57: 0 | BQ57: 0 | BR57: 0 | BS57: 0 | BT57: 0 | BU57: 0 | BV57: 0 | BW57: 0 | BX57: 0
A58: 47 | E58: =IF(F58<=6,Q58,(Q58-SUM(SMALL(R58:Y58,{1;2})))) -> 0 | F58: 0 | Q58: 0 | AB58: 0 | AC58: 0 | AD58: 0 | AG58: 0 | AH58: 0 | AI58: 0 | AL58: 0 | AM58: 0 | AN58: 0 | AQ58: 0 | AR58: 0 | AS58: 0 | AV58: 0 | AW58: 0 | AX58: 0 | BA58: 0 | BB58: 0 | BC58: 0 | BF58: 0 | BG58: 0 | BH58: 0 | BK58: 0 | BL58: 0 | BM58: 0 | BO58: 53 | BP58: 0 | BQ58: 0 | BR58: 0 | BS58: 0 | BT58: 0 | BU58: 0 | BV58: 0 | BW58: 0 | BX58: 0
A59: 47 | E59: =IF(F59<=6,Q59,(Q59-SUM(SMALL(R59:Y59,{1;2})))) -> 0 | F59: 0 | Q59: 0 | AB59: 0 | AC59: 0 | AD59: 0 | AG59: 0 | AH59: 0 | AI59: 0 | AL59: 0 | AM59: 0 | AN59: 0 | AQ59: 0 | AR59: 0 | AS59: 0 | AV59: 0 | AW59: 0 | AX59: 0 | BA59: 0 | BB59: 0 | BC59: 0 | BF59: 0 | BG59: 0 | BH59: 0 | BK59: 0 | BL59: 0 | BM59: 0 | BO59: 54 | BP59: 0 | BQ59: 0 | BR59: 0 | BS59: 0 | BT59: 0 | BU59: 0 | BV59: 0 | BW59: 0 | BX59: 0
A60: 47 | E60: =IF(F60<=6,Q60,(Q60-SUM(SMALL(R60:Y60,{1;2})))) -> 0 | F60: 0 | Q60: 0 | AB60: 0 | AC60: 0 | AD60: 0 | AG60: 0 | AH60: 0 | AI60: 0 | AL60: 0 | AM60: 0 | AN60: 0 | AQ60: 0 | AR60: 0 | AS60: 0 | AV60: 0 | AW60: 0 | AX60: 0 | BA60: 0 | BB60: 0 | BC60: 0 | BF60: 0 | BG60: 0 | BH60: 0 | BK60: 0 | BL60: 0 | BM60: 0 | BO60: 55 | BP60: 0 | BQ60: 0 | BR60: 0 | BS60: 0 | BT60: 0 | BU60: 0 | BV60: 0 | BW60: 0 | BX60: 0
A61: 47 | E61: =IF(F61<=6,Q61,(Q61-SUM(SMALL(R61:Y61,{1;2})))) -> 0 | F61: 0 | Q61: 0 | AB61: 0 | AC61: 0 | AD61: 0 | AG61: 0 | AH61: 0 | AI61: 0 | AL61: 0 | AM61: 0 | AN61: 0 | AQ61: 0 | AR61: 0 | AS61: 0 | AV61: 0 | AW61: 0 | AX61: 0 | BA61: 0 | BB61: 0 | BC61: 0 | BF61: 0 | BG61: 0 | BH61: 0 | BK61: 0 | BL61: 0 | BM61: 0 | BO61: 56 | BP61: 0 | BQ61: 0 | BR61: 0 | BS61: 0 | BT61: 0 | BU61: 0 | BV61: 0 | BW61: 0 | BX61: 0
A62: 47 | E62: =IF(F62<=6,Q62,(Q62-SUM(SMALL(R62:Y62,{1;2})))) -> 0 | F62: 0 | Q62: 0 | AB62: 0 | AC62: 0 | AD62: 0 | AG62: 0 | AH62: 0 | AI62: 0 | AL62: 0 | AM62: 0 | AN62: 0 | AQ62: 0 | AR62: 0 | AS62: 0 | AV62: 0 | AW62: 0 | AX62: 0 | BA62: 0 | BB62: 0 | BC62: 0 | BF62: 0 | BG62: 0 | BH62: 0 | BK62: 0 | BL62: 0 | BM62: 0 | BO62: 57 | BP62: 0 | BQ62: 0 | BR62: 0 | BS62: 0 | BT62: 0 | BU62: 0 | BV62: 0 | BW62: 0 | BX62: 0
A63: 47 | E63: =IF(F63<=6,Q63,(Q63-SUM(SMALL(R63:Y63,{1;2})))) -> 0 | F63: 0 | Q63: 0 | AB63: 0 | AC63: 0 | AD63: 0 | AG63: 0 | AH63: 0 | AI63: 0 | AL63: 0 | AM63: 0 | AN63: 0 | AQ63: 0 | AR63: 0 | AS63: 0 | AV63: 0 | AW63: 0 | AX63: 0 | BA63: 0 | BB63: 0 | BC63: 0 | BF63: 0 | BG63: 0 | BH63: 0 | BK63: 0 | BL63: 0 | BM63: 0 | BO63: 58 | BP63: 0 | BQ63: 0 | BR63: 0 | BS63: 0 | BT63: 0 | BU63: 0 | BV63: 0 | BW63: 0 | BX63: 0
A64: 47 | E64: =IF(F64<=6,Q64,(Q64-SUM(SMALL(R64:Y64,{1;2})))) -> 0 | F64: 0 | Q64: 0 | AB64: 0 | AC64: 0 | AD64: 0 | AG64: 0 | AH64: 0 | AI64: 0 | AL64: 0 | AM64: 0 | AN64: 0 | AQ64: 0 | AR64: 0 | AS64: 0 | AV64: 0 | AW64: 0 | AX64: 0 | BA64: 0 | BB64: 0 | BC64: 0 | BF64: 0 | BG64: 0 | BH64: 0 | BK64: 0 | BL64: 0 | BM64: 0 | BO64: 59 | BP64: 0 | BQ64: 0 | BR64: 0 | BS64: 0 | BT64: 0 | BU64: 0 | BV64: 0 | BW64: 0 | BX64: 0
A65: 47 | E65: =IF(F65<=6,Q65,(Q65-SUM(SMALL(R65:Y65,{1;2})))) -> 0 | F65: 0 | Q65: 0 | AB65: 0 | AC65: 0 | AD65: 0 | AG65: 0 | AH65: 0 | AI65: 0 | AL65: 0 | AM65: 0 | AN65: 0 | AQ65: 0 | AR65: 0 | AS65: 0 | AV65: 0 | AW65: 0 | AX65: 0 | BA65: 0 | BB65: 0 | BC65: 0 | BF65: 0 | BG65: 0 | BH65: 0 | BK65: 0 | BL65: 0 | BM65: 0 | BO65: 60 | BP65: 0 | BQ65: 0 | BR65: 0 | BS65: 0 | BT65: 0 | BU65: 0 | BV65: 0 | BW65: 0 | BX65: 0
A66: 47 | E66: =IF(F66<=6,Q66,(Q66-SUM(SMALL(R66:Y66,{1;2})))) -> 0 | F66: 0 | Q66: 0 | AB66: 0 | AC66: 0 | AD66: 0 | AG66: 0 | AH66: 0 | AI66: 0 | AL66: 0 | AM66: 0 | AN66: 0 | AQ66: 0 | AR66: 0 | AS66: 0 | AV66: 0 | AW66: 0 | AX66: 0 | BA66: 0 | BB66: 0 | BC66: 0 | BF66: 0 | BG66: 0 | BH66: 0 | BK66: 0 | BL66: 0 | BM66: 0 | BO66: 61 | BP66: 0 | BQ66: 0 | BR66: 0 | BS66: 0 | BT66: 0 | BU66: 0 | BV66: 0 | BW66: 0 | BX66: 0
A67: 47 | E67: =IF(F67<=6,Q67,(Q67-SUM(SMALL(R67:Y67,{1;2})))) -> 0 | F67: 0 | Q67: 0 | AB67: 0 | AC67: 0 | AD67: 0 | AG67: 0 | AH67: 0 | AI67: 0 | AL67: 0 | AM67: 0 | AN67: 0 | AQ67: 0 | AR67: 0 | AS67: 0 | AV67: 0 | AW67: 0 | AX67: 0 | BA67: 0 | BB67: 0 | BC67: 0 | BF67: 0 | BG67: 0 | BH67: 0 | BK67: 0 | BL67: 0 | BM67: 0 | BO67: 62 | BP67: 0 | BQ67: 0 | BR67: 0 | BS67: 0 | BT67: 0 | BU67: 0 | BV67: 0 | BW67: 0 | BX67: 0
A68: 47 | E68: =IF(F68<=6,Q68,(Q68-SUM(SMALL(R68:Y68,{1;2})))) -> 0 | F68: 0 | Q68: 0 | AB68: 0 | AC68: 0 | AD68: 0 | AG68: 0 | AH68: 0 | AI68: 0 | AL68: 0 | AM68: 0 | AN68: 0 | AQ68: 0 | AR68: 0 | AS68: 0 | AV68: 0 | AW68: 0 | AX68: 0 | BA68: 0 | BB68: 0 | BC68: 0 | BF68: 0 | BG68: 0 | BH68: 0 | BK68: 0 | BL68: 0 | BM68: 0 | BO68: 63 | BP68: 0 | BQ68: 0 | BR68: 0 | BS68: 0 | BT68: 0 | BU68: 0 | BV68: 0 | BW68: 0 | BX68: 0
A69: 47 | E69: =IF(F69<=6,Q69,(Q69-SUM(SMALL(R69:Y69,{1;2})))) -> 0 | F69: 0 | Q69: 0 | AB69: 0 | AC69: 0 | AD69: 0 | AG69: 0 | AH69: 0 | AI69: 0 | AL69: 0 | AM69: 0 | AN69: 0 | AQ69: 0 | AR69: 0 | AS69: 0 | AV69: 0 | AW69: 0 | AX69: 0 | BA69: 0 | BB69: 0 | BC69: 0 | BF69: 0 | BG69: 0 | BH69: 0 | BK69: 0 | BL69: 0 | BM69: 0 | BO69: 64 | BP69: 0 | BQ69: 0 | BR69: 0 | BS69: 0 | BT69: 0 | BU69: 0 | BV69: 0 | BW69: 0 | BX69: 0
A70: 47 | E70: =IF(F70<=6,Q70,(Q70-SUM(SMALL(R70:Y70,{1;2})))) -> 0 | F70: 0 | Q70: 0 | AB70: =IF(ISNUMBER(AA70),(VLOOKUP(AA70,$BO$6:$BP$50,2)),0) -> 0 | AC70: 0 | AD70: =AB70+AC70 -> 0 | AG70: =IF(ISNUMBER(AF70),(VLOOKUP(AF70,$BO$6:$BP$50,2)),0) -> 0 | AH70: 0 | AI70: =AG70+AH70 -> 0 | AL70: =IF(ISNUMBER(AK70),(VLOOKUP(AK70,$BO$6:$BP$50,2)),0) -> 0 | AM70: 0 | AN70: =AL70+AM70 -> 0 | AQ70: =IF(ISNUMBER(AP70),(VLOOKUP(AP70,$BO$6:$BP$50,2)),0) -> 0 | AR70: 0 | AS70: =AQ70+AR70 -> 0 | AV70: =IF(ISNUMBER(AU70),(VLOOKUP(AU70,$BO$6:$BP$50,2)),0) -> 0 | AW70: 0 | AX70: =AV70+AW70 -> 0 | BA70: =IF(ISNUMBER(AZ70),(VLOOKUP(AZ70,$BO$6:$BP$50,2)),0) -> 0 | BB70: 0 | BC70: =BA70+BB70 -> 0 | BF70: =IF(ISNUMBER(BE70),(VLOOKUP(BE70,$BO$6:$BP$50,2)),0) -> 0 | BG70: 0 | BH70: =BF70+BG70 -> 0 | BK70: =IF(ISNUMBER(BJ70),(VLOOKUP(BJ70,$BO$6:$BP$50,2)),0) -> 0 | BL70: 0 | BM70: =BK70+BL70 -> 0 | BO70: 65 | BP70: 0 | BQ70: 0 | BR70: =IF($F70=7,1,0) -> 0 | BS70: =IF($F70=6,1,0) -> 0 | BT70: =IF($F70=5,1,0) -> 0 | BU70: =IF($F70=4,1,0) -> 0 | BV70: =IF($F70=3,1,0) -> 0 | BW70: =IF($F70=2,1,0) -> 0 | BX70: =IF($F70=1,1,0) -> 0
A71: 47 | E71: =IF(F71<=6,Q71,(Q71-SUM(SMALL(R71:Y71,{1;2})))) -> 0 | F71: 0 | Q71: 0 | AB71: 0 | AC71: 0 | AD71: 0 | AG71: 0 | AH71: 0 | AI71: 0 | AL71: 0 | AM71: 0 | AN71: 0 | AQ71: 0 | AR71: 0 | AS71: 0 | AV71: 0 | AW71: 0 | AX71: 0 | BA71: 0 | BB71: 0 | BC71: 0 | BF71: 0 | BG71: 0 | BH71: 0 | BK71: 0 | BL71: 0 | BM71: 0 | BO71: 66 | BP71: 0 | BQ71: =IF($F71=8,1,0) -> 0 | BR71: 0 | BS71: 0 | BT71: 0 | BU71: 0 | BV71: 0 | BW71: 0 | BX71: 0
A72: 47 | E72: =IF(F72<=6,Q72,(Q72-SUM(SMALL(R72:Y72,{1;2})))) -> 0 | F72: 0 | Q72: 0 | AB72: 0 | AC72: 0 | AD72: 0 | AG72: 0 | AH72: 0 | AI72: 0 | AL72: 0 | AM72: 0 | AN72: 0 | AQ72: 0 | AR72: 0 | AS72: 0 | AV72: 0 | AW72: 0 | AX72: 0 | BA72: 0 | BB72: 0 | BC72: 0 | BF72: 0 | BG72: 0 | BH72: 0 | BK72: 0 | BL72: 0 | BM72: 0 | BO72: 67 | BP72: 0 | BQ72: 0 | BR72: 0 | BS72: 0 | BT72: 0 | BU72: 0 | BV72: 0 | BW72: 0 | BX72: 0
H73: =IF(AA73="","",AA73) ->  | I73: =IF(AF73="","",AF73) ->  | J73: =IF(AK73="","",AK73) ->  | K73: =IF(AP73="","",AP73) ->  | L73: =IF(AU73="","",AU73) ->  | M73: =IF(AZ73="","",AZ73) ->  | N73: =IF(BE73="","",BE73) ->  | O73: =IF(BJ73="","",BJ73) ->  | R73: =IF($F73>=7,IF(AB73="","",AB73),"") ->  | S73: =IF($F73>=7,IF(AG73="","",AG73),"") ->  | T73: =IF($F73>=7,IF(AL73="","",AL73),"") ->  | U73: =IF($F73>=7,IF(AQ73="","",AQ73),"") ->  | V73: =IF($F73>=7,IF(AV73="","",AV73),"") ->  | W73: =IF($F73>=7,IF(BA73="","",BA73),"") ->  | X73: =IF($F73>=7,IF(BF73="","",BF73),"") ->  | Y73: =IF($F73>=7,IF(BK73="","",BK73),"") -> 
